Body name,Directorate,Service Area Categorisation,Supplier Name,Payment Date,Card Transaction,Net Amount,Purpose of Spend,Procurement Classification: ProClass Label
Solihull MBC,Children's Services & Skills,Children & Education Services,1st Planner Ltd,07/06/2017,,6000.00,Professional Fees,Not Yet Classified
Solihull MBC,Children's Services & Skills,Children & Education Services,1st Planner Ltd,20/06/2017,,3250.00,Professional Fees,Not Yet Classified
Solihull MBC,Children's Services & Skills,Children & Education Services,3PB Barristers,09/06/2017,,780.00,Other Fees,Not Yet Classified
Solihull MBC,Children's Services & Skills,Children & Education Services,3PB Barristers,27/06/2017,,780.00,Other Fees,Not Yet Classified
Solihull MBC,Children's Services & Skills,Children & Education Services,3PB Barristers,09/06/2017,,780.00,Other Fees,Not Yet Classified
Solihull MBC,Children's Services & Skills,Children & Education Services,3PB Barristers,15/06/2017,,780.00,Other Fees,Not Yet Classified
Solihull MBC,Resources,Central Services to the Public,8 Solutions Ltd,06/06/2017,,535.00,IT Equipment & Software,130000 - Cleaning & Janitorial
Solihull MBC,Managed Growth and Communities,Environmental and Regulatory Services,A R Twigg & Son Ltd,06/06/2017,,1445.00,Furniture & Equipment,Not Yet Classified
Solihull MBC,Adult Social Care,Adult Social Care,A Rooke,27/06/2017,,1639.40,ASC - Residential Care Permanent,321000 - Social Community Care Supplies & Services - Adult
Solihull MBC,Adult Social Care,Adult Social Care,A Rooke,27/06/2017,,1587.60,ASC - Residential Care Permanent,321000 - Social Community Care Supplies & Services - Adult
Solihull MBC,Adult Social Care,Adult Social Care,A Rooke,27/06/2017,,2773.96,ASC - Residential Care Permanent,321000 - Social Community Care Supplies & Services - Adult
Solihull MBC,Adult Social Care,Adult Social Care,A S C Birch,01/06/2017,,540.00,Clients Transport Costs,360000 - Public Transport
Solihull MBC,Adult Social Care,Adult Social Care,A S C Birch,01/06/2017,,170.00,Clients Transport Costs,360000 - Public Transport
Solihull MBC,Children's Services & Skills,Children & Education Services,A S C Birch,14/06/2017,,24.83,Transport-Contract Hire,360000 - Public Transport
Solihull MBC,Children's Services & Skills,Children & Education Services,A S C Birch,14/06/2017,,1623.00,Transport-Contract Hire,360000 - Public Transport
Solihull MBC,Children's Services & Skills,Children & Education Services,A S C Birch,14/06/2017,,1714.00,Transport-Contract Hire,360000 - Public Transport
Solihull MBC,Children's Services & Skills,Children & Education Services,A S C Birch,14/06/2017,,1331.00,Transport-Contract Hire,360000 - Public Transport
Solihull MBC,Adult Social Care,Cultural & Related Services,A. C. Entertainment Technologies Ltd,13/06/2017,,324.00,Furniture & Equipment,Not Yet Classified
Solihull MBC,Children's Services & Skills,Children & Education Services,A1 Support Limited,06/06/2017,,3090.17,Supported Lodgings,Not Yet Classified
Solihull MBC,Children's Services & Skills,Children & Education Services,A1 Support Limited,06/06/2017,,231.60,Clients Expenses,Not Yet Classified
Solihull MBC,Children's Services & Skills,Children & Education Services,A1 Support Limited,06/06/2017,,3055.71,External Fostering,Not Yet Classified
Solihull MBC,Children's Services - DSG Central.,Children & Education Services,ABA Tutorship,02/06/2017,,1012.50,Professional Fees,Not Yet Classified
Solihull MBC,Children's Services & Skills,Children & Education Services,ABA Tutorship,08/06/2017,,1777.50,Other Contracted Services,Not Yet Classified
Solihull MBC,Children's Services & Skills,Children & Education Services,Abacus Fostering Ltd,21/06/2017,,3319.21,External Fostering,Not Yet Classified
Solihull MBC,Adult Social Care,Adult Social Care,Abbey Healthcare Homes Ltd,27/06/2017,,4370.28,ASC - Nursing Care Permanent,321000 - Social Community Care Supplies & Services - Adult
Solihull MBC,Adult Social Care,Adult Social Care,Abbey Healthcare Homes Ltd,27/06/2017,,4054.16,ASC - Nursing Care Permanent,321000 - Social Community Care Supplies & Services - Adult
Solihull MBC,Children's Services & Skills,Children & Education Services,ABC Does Ltd,13/06/2017,,219.00,Training,Not Yet Classified
Solihull MBC,Children's Services & Skills,Children & Education Services,ABC Fostering Services Ltd,01/06/2017,,1911.86,External Fostering,Not Yet Classified
Solihull MBC,Resources,Central Services to the Public,ACAS,06/06/2017,,3990.00,Training,Not Yet Classified
Solihull MBC,Children's Services & Skills,Children & Education Services,Access With Choice,21/06/2017,,320.00,External Fostering,Not Yet Classified
Solihull MBC,Children's Services & Skills,Children & Education Services,Access With Choice,28/06/2017,,231.60,Supported Lodgings,Not Yet Classified
Solihull MBC,Children's Services & Skills,Children & Education Services,Access With Choice,28/06/2017,,3875.00,Supported Lodgings,Not Yet Classified
Solihull MBC,Adult Social Care,Adult Social Care,Accord Housing Association,20/06/2017,,26228.44,ASC - Extra Care,321000 - Social Community Care Supplies & Services - Adult
Solihull MBC,Adult Social Care,Adult Social Care,Accord Housing Asssociation,22/06/2017,,4707.16,ASC - Residential Care Permanent,321000 - Social Community Care Supplies & Services - Adult
Solihull MBC,Adult Social Care,Adult Social Care,Accord Housing Asssociation,20/06/2017,,2196.68,ASC - Residential Care Permanent,321000 - Social Community Care Supplies & Services - Adult
Solihull MBC,Adult Social Care,Adult Social Care,Accord Housing Asssociation,20/06/2017,,2196.68,ASC - Residential Care Permanent,321000 - Social Community Care Supplies & Services - Adult
Solihull MBC,Adult Social Care,Adult Social Care,Accord Housing Asssociation,20/06/2017,,2196.68,ASC - Residential Care Permanent,321000 - Social Community Care Supplies & Services - Adult
Solihull MBC,Adult Social Care,Adult Social Care,Accord Housing Asssociation,20/06/2017,,2196.68,ASC - Residential Care Permanent,321000 - Social Community Care Supplies & Services - Adult
Solihull MBC,Adult Social Care,Adult Social Care,Accord Housing Asssociation,20/06/2017,,1725.96,ASC - Residential Care Respite,321000 - Social Community Care Supplies & Services - Adult
Solihull MBC,Adult Social Care,Adult Social Care,Accord Housing Asssociation,20/06/2017,,470.72,ASC - Residential Care Permanent,321000 - Social Community Care Supplies & Services - Adult
Solihull MBC,Adult Social Care,Adult Social Care,Accord Housing Asssociation,20/06/2017,,1098.34,ASC - Residential Care Permanent,321000 - Social Community Care Supplies & Services - Adult
Solihull MBC,Adult Social Care,Adult Social Care,Accord Housing Asssociation,20/06/2017,,2196.68,ASC - Residential Care Permanent,321000 - Social Community Care Supplies & Services - Adult
Solihull MBC,Adult Social Care,Adult Social Care,Accord Housing Asssociation,20/06/2017,,2196.68,ASC - Residential Care Permanent,321000 - Social Community Care Supplies & Services - Adult
Solihull MBC,Adult Social Care,Adult Social Care,Accord Housing Asssociation,20/06/2017,,2135.04,ASC - Residential Care Permanent,321000 - Social Community Care Supplies & Services - Adult
Solihull MBC,Adult Social Care,Adult Social Care,Accord Housing Asssociation,20/06/2017,,2196.68,ASC - Residential Care Permanent,321000 - Social Community Care Supplies & Services - Adult
Solihull MBC,Adult Social Care,Adult Social Care,Accord Housing Asssociation,20/06/2017,,1903.84,ASC - Residential Care Permanent,321000 - Social Community Care Supplies & Services - Adult
Solihull MBC,Adult Social Care,Adult Social Care,Accord Housing Asssociation,20/06/2017,,1903.84,ASC - Residential Care Permanent,321000 - Social Community Care Supplies & Services - Adult
Solihull MBC,Adult Social Care,Adult Social Care,Accord Housing Asssociation,20/06/2017,,2196.68,ASC - Residential Care Permanent,321000 - Social Community Care Supplies & Services - Adult
Solihull MBC,Adult Social Care,Adult Social Care,Accord Housing Asssociation,20/06/2017,,1903.84,ASC - Residential Care Permanent,321000 - Social Community Care Supplies & Services - Adult
Solihull MBC,Adult Social Care,Adult Social Care,Accord Housing Asssociation,20/06/2017,,2196.68,ASC - Residential Care Permanent,321000 - Social Community Care Supplies & Services - Adult
Solihull MBC,Adult Social Care,Adult Social Care,Accord Housing Asssociation,20/06/2017,,1903.84,ASC - Residential Care Permanent,321000 - Social Community Care Supplies & Services - Adult
Solihull MBC,Adult Social Care,Adult Social Care,Accord Housing Asssociation,20/06/2017,,2196.68,ASC - Residential Care Permanent,321000 - Social Community Care Supplies & Services - Adult
Solihull MBC,Adult Social Care,Adult Social Care,Accord Housing Asssociation,20/06/2017,,2196.68,ASC - Residential Care Permanent,321000 - Social Community Care Supplies & Services - Adult
Solihull MBC,Adult Social Care,Adult Social Care,Accord Housing Asssociation,20/06/2017,,2196.68,ASC - Residential Care Permanent,321000 - Social Community Care Supplies & Services - Adult
Solihull MBC,Adult Social Care,Adult Social Care,Accord Housing Asssociation,20/06/2017,,1903.84,ASC - Residential Care Permanent,321000 - Social Community Care Supplies & Services - Adult
Solihull MBC,Adult Social Care,Adult Social Care,Accord Housing Asssociation,20/06/2017,,2196.68,ASC - Residential Care Permanent,321000 - Social Community Care Supplies & Services - Adult
Solihull MBC,Adult Social Care,Adult Social Care,Accord Housing Asssociation,20/06/2017,,2196.68,ASC - Residential Care Permanent,321000 - Social Community Care Supplies & Services - Adult
Solihull MBC,Adult Social Care,Adult Social Care,Accord Housing Asssociation,20/06/2017,,2196.68,ASC - Residential Care Permanent,321000 - Social Community Care Supplies & Services - Adult
Solihull MBC,Adult Social Care,Adult Social Care,Accord Housing Asssociation,20/06/2017,,2196.68,ASC - Residential Care Permanent,321000 - Social Community Care Supplies & Services - Adult
Solihull MBC,Adult Social Care,Adult Social Care,Accord Housing Asssociation,20/06/2017,,2196.68,ASC - Residential Care Permanent,321000 - Social Community Care Supplies & Services - Adult
Solihull MBC,Adult Social Care,Adult Social Care,Accord Housing Asssociation,20/06/2017,,2196.68,ASC - Residential Care Permanent,321000 - Social Community Care Supplies & Services - Adult
Solihull MBC,Adult Social Care,Adult Social Care,Accord Housing Asssociation,20/06/2017,,2196.68,ASC - Residential Care Permanent,321000 - Social Community Care Supplies & Services - Adult
Solihull MBC,Adult Social Care,Adult Social Care,Accord Housing Asssociation,20/06/2017,,2196.68,ASC - Residential Care Permanent,321000 - Social Community Care Supplies & Services - Adult
Solihull MBC,Adult Social Care,Adult Social Care,Accord Housing Asssociation,20/06/2017,,2196.68,ASC - Residential Care Permanent,321000 - Social Community Care Supplies & Services - Adult
Solihull MBC,Adult Social Care,Adult Social Care,Accord Housing Asssociation,20/06/2017,,2196.68,ASC - Residential Care Permanent,321000 - Social Community Care Supplies & Services - Adult
Solihull MBC,Adult Social Care,Adult Social Care,Accord Housing Asssociation,20/06/2017,,2118.23,ASC - Residential Care Permanent,321000 - Social Community Care Supplies & Services - Adult
Solihull MBC,Adult Social Care,Adult Social Care,Accord Housing Asssociation,20/06/2017,,346.91,ASC - Residential Care Respite,321000 - Social Community Care Supplies & Services - Adult
Solihull MBC,Adult Social Care,Adult Social Care,Accord Housing Asssociation,20/06/2017,,2196.68,ASC - Residential Care Permanent,321000 - Social Community Care Supplies & Services - Adult
Solihull MBC,Adult Social Care,Adult Social Care,Accord Housing Asssociation,20/06/2017,,1333.70,ASC - Residential Care Respite,321000 - Social Community Care Supplies & Services - Adult
Solihull MBC,Adult Social Care,Adult Social Care,Accord Housing Asssociation,20/06/2017,,1474.36,ASC - Residential Care Respite,321000 - Social Community Care Supplies & Services - Adult
Solihull MBC,Adult Social Care,Adult Social Care,Accord Housing Asssociation,20/06/2017,,346.91,ASC - Residential Care Respite,321000 - Social Community Care Supplies & Services - Adult
Solihull MBC,Adult Social Care,Adult Social Care,Accord Housing Asssociation,20/06/2017,,2196.68,ASC - Residential Care Permanent,321000 - Social Community Care Supplies & Services - Adult
Solihull MBC,Adult Social Care,Adult Social Care,Accord Housing Asssociation,20/06/2017,,2196.68,ASC - Residential Care Permanent,321000 - Social Community Care Supplies & Services - Adult
Solihull MBC,Adult Social Care,Adult Social Care,Accord Housing Asssociation,20/06/2017,,2196.68,ASC - Residential Care Permanent,321000 - Social Community Care Supplies & Services - Adult
Solihull MBC,Adult Social Care,Adult Social Care,Accord Housing Asssociation,20/06/2017,,2196.68,ASC - Residential Care Permanent,321000 - Social Community Care Supplies & Services - Adult
Solihull MBC,Adult Social Care,Adult Social Care,Accord Housing Asssociation,20/06/2017,,1903.84,ASC - Residential Care Permanent,321000 - Social Community Care Supplies & Services - Adult
Solihull MBC,Adult Social Care,Adult Social Care,Accord Housing Asssociation,20/06/2017,,1903.84,ASC - Residential Care Permanent,321000 - Social Community Care Supplies & Services - Adult
Solihull MBC,Adult Social Care,Adult Social Care,Accord Housing Asssociation,20/06/2017,,2196.68,ASC - Residential Care Permanent,321000 - Social Community Care Supplies & Services - Adult
Solihull MBC,Managed Growth and Communities,Planning & Development Services,Acivico,15/06/2017,,2502.39,Agency Staff,Not Yet Classified
Solihull MBC,Children's Services & Skills,Children & Education Services,ACPAS Ltd,22/06/2017,,950.00,Professional Fees,Not Yet Classified
Solihull MBC,Managed Growth and Communities,Highways & Transport Services,Action Graphics (Bham) Ltd,20/06/2017,,996.25,Furniture & Equipment,"391111 - Works - Construction, Repair & Maintenance - Buildings - Repair & Maintenance"
Solihull MBC,Children's Services - DSG Central.,Children & Education Services,Active Angels,26/06/2017,,3222.60,Grant & Subscription (SCITT),321100 - Social Community Care Supplies & Services - Children
Solihull MBC,Children's Services - DSG Central.,Children & Education Services,Active Angels,26/06/2017,,5306.40,Grant & Subscription (SCITT),321100 - Social Community Care Supplies & Services - Children
Solihull MBC,Children's Services - DSG Central.,Children & Education Services,Active Angels,26/06/2017,,1646.10,Grant & Subscription (SCITT),321100 - Social Community Care Supplies & Services - Children
Solihull MBC,Resources,Central Services to the Public,Active Visual Supplies Ltd,15/06/2017,,3820.00,IT Equipment & Software,171011 - Education - School Services
Solihull MBC,Managed Growth and Communities,Planning & Development Services,Adecoe Ltd,12/06/2017,,846.71,Professional Fees,Not Yet Classified
Solihull MBC,Managed Growth and Communities,Planning & Development Services,Adecoe Ltd,12/06/2017,,2821.74,Professional Fees,Not Yet Classified
Solihull MBC,Adult Social Care,Adult Social Care,Adelphi Care Services Ltd,15/06/2017,,5031.00,ASC - Supported Living Care Costs,Not Yet Classified
Solihull MBC,Adult Social Care,Adult Social Care,Adelphi Care Services Ltd,15/06/2017,,387.00,ASC - Supported Living Care Costs,Not Yet Classified
Solihull MBC,Adult Social Care,Adult Social Care,Adelphi Care Services Ltd,15/06/2017,,1354.50,ASC - Supported Living Care Costs,Not Yet Classified
Solihull MBC,Adult Social Care,Adult Social Care,Adelphi Care Services Ltd,15/06/2017,,2257.50,ASC - Supported Living Care Costs,Not Yet Classified
Solihull MBC,Adult Social Care,Adult Social Care,Adelphi Care Services Ltd,15/06/2017,,3010.00,ASC - Supported Living Care Costs,Not Yet Classified
Solihull MBC,Children's Services & Skills,Children & Education Services,Adoption Focus,22/06/2017,,28667.00,Professional Fees,Not Yet Classified
Solihull MBC,Children's Services & Skills,Children & Education Services,Adoption Focus,02/06/2017,,18000.00,Professional Fees,Not Yet Classified
Solihull MBC,Children's Services & Skills,Children & Education Services,ADT Fire & Security PLC,12/06/2017,,798.28,Other Premise Costs,192200 - Facilities & Management Services - Security
Solihull MBC,Managed Growth and Communities,Highways & Transport Services,Advanced Maintenance Services,02/06/2017,,637.45,Other Contracted Services,Not Yet Classified
Solihull MBC,Adult Social Care,Adult Social Care,Age UK Solihull,12/06/2017,,29505.25,Other Contracted Services,321000 - Social Community Care Supplies & Services - Adult
Solihull MBC,Adult Social Care,Adult Social Care,Age UK Solihull,12/06/2017,,20206.25,Other Contracted Services,321000 - Social Community Care Supplies & Services - Adult
Solihull MBC,Adult Social Care,Adult Social Care,Age UK Solihull,12/06/2017,,8550.00,Other Contracted Services,321000 - Social Community Care Supplies & Services - Adult
Solihull MBC,Adult Social Care,Adult Social Care,Age UK Solihull,12/06/2017,,1250.00,Other Contracted Services,321000 - Social Community Care Supplies & Services - Adult
Solihull MBC,Adult Social Care,Adult Social Care,Age UK Solihull,12/06/2017,,1250.00,Other Contracted Services,321000 - Social Community Care Supplies & Services - Adult
Solihull MBC,Adult Social Care,Adult Social Care,Age UK Solihull,12/06/2017,,12000.00,Other Contracted Services,321000 - Social Community Care Supplies & Services - Adult
Solihull MBC,Adult Social Care,Adult Social Care,Age UK Solihull,12/06/2017,,625.00,Other Contracted Services,321000 - Social Community Care Supplies & Services - Adult
Solihull MBC,Adult Social Care,Adult Social Care,Age UK Solihull,12/06/2017,,625.00,Other Contracted Services,321000 - Social Community Care Supplies & Services - Adult
Solihull MBC,Adult Social Care,Adult Social Care,Age UK Solihull,12/06/2017,,3125.00,Other Contracted Services,321000 - Social Community Care Supplies & Services - Adult
Solihull MBC,Adult Social Care,Adult Social Care,Age UK Solihull,12/06/2017,,15500.00,Other Contracted Services,321000 - Social Community Care Supplies & Services - Adult
Solihull MBC,Adult Social Care,Adult Social Care,Aidapt Bathrooms Ltd,12/06/2017,,564.00,Furniture & Equipment,321000 - Social Community Care Supplies & Services - Adult
Solihull MBC,Adult Social Care,Adult Social Care,Aidapt Bathrooms Ltd,12/06/2017,,287.28,Furniture & Equipment,321000 - Social Community Care Supplies & Services - Adult
Solihull MBC,Adult Social Care,Adult Social Care,Aidapt Bathrooms Ltd,12/06/2017,,214.80,Furniture & Equipment,321000 - Social Community Care Supplies & Services - Adult
Solihull MBC,Adult Social Care,Adult Social Care,Aidapt Bathrooms Ltd,12/06/2017,,189.24,Furniture & Equipment,321000 - Social Community Care Supplies & Services - Adult
Solihull MBC,Adult Social Care,Adult Social Care,Aidapt Bathrooms Ltd,12/06/2017,,227.64,Furniture & Equipment,321000 - Social Community Care Supplies & Services - Adult
Solihull MBC,Adult Social Care,Adult Social Care,Aidapt Bathrooms Ltd,12/06/2017,,62.40,Furniture & Equipment,321000 - Social Community Care Supplies & Services - Adult
Solihull MBC,Adult Social Care,Adult Social Care,Aidapt Bathrooms Ltd,12/06/2017,,66.00,Furniture & Equipment,321000 - Social Community Care Supplies & Services - Adult
Solihull MBC,Adult Social Care,Adult Social Care,Aidapt Bathrooms Ltd,12/06/2017,,539.28,Furniture & Equipment,321000 - Social Community Care Supplies & Services - Adult
Solihull MBC,Adult Social Care,Adult Social Care,Aidapt Bathrooms Ltd,12/06/2017,,309.60,Furniture & Equipment,321000 - Social Community Care Supplies & Services - Adult
Solihull MBC,Resources,Children & Education Services,Airedale Group,08/06/2017,,1113.00,Furniture & Equipment,Not Yet Classified
Solihull MBC,Adult Social Care,Adult Social Care,Akari Care Ltd,27/06/2017,,1903.84,ASC - Residential Care Permanent,Not Yet Classified
Solihull MBC,Adult Social Care,Adult Social Care,Akari Care Ltd,27/06/2017,,1903.84,ASC - Residential Care Permanent,Not Yet Classified
Solihull MBC,Adult Social Care,Adult Social Care,Akari Care Ltd,27/06/2017,,799.03,ASC - Nursing Care Permanent,Not Yet Classified
Solihull MBC,Adult Social Care,Adult Social Care,Akari Care Ltd,27/06/2017,,2181.28,ASC - Nursing Care Permanent,Not Yet Classified
Solihull MBC,Adult Social Care,Adult Social Care,Akari Care Ltd,27/06/2017,,2181.28,ASC - Nursing Care Permanent,Not Yet Classified
Solihull MBC,Adult Social Care,Cultural & Related Services,Alan Field Associates,20/06/2017,,4337.52,General Receipts In Advance,Not Yet Classified
Solihull MBC,Adult Social Care,Adult Social Care,Alarm & Vision,07/06/2017,,350.00,Rents For Premises,171100 - Education - Supplies
Solihull MBC,Adult Social Care,Cultural & Related Services,Alarm & Vision,06/06/2017,,400.00,Other Premise Costs,171100 - Education - Supplies
Solihull MBC,Children's Services - DSG Central.,Children & Education Services,Al-Burhan Grammar School,26/06/2017,,2489.33,Other Contracted Services,Not Yet Classified
Solihull MBC,Adult Social Care,Adult Social Care,Aldermore Invoice Finance - Plan It Home Care Ltd,05/06/2017,,350.00,ASC - Domiciliary Care,Not Yet Classified
Solihull MBC,Adult Social Care,Adult Social Care,Aldermore Invoice Finance - Plan It Home Care Ltd,29/06/2017,,392.00,ASC - Domiciliary Care,Not Yet Classified
Solihull MBC,Adult Social Care,Adult Social Care,Aldermore Invoice Finance - Plan It Home Care Ltd,05/06/2017,,392.00,ASC - Domiciliary Care,Not Yet Classified
Solihull MBC,Adult Social Care,Adult Social Care,Aldermore Invoice Finance - Plan It Home Care Ltd,29/06/2017,,406.00,ASC - Domiciliary Care,Not Yet Classified
Solihull MBC,Adult Social Care,Adult Social Care,Aldermore Invoice Finance - Plan It Home Care Ltd,05/06/2017,,980.00,ASC - Domiciliary Care,Not Yet Classified
Solihull MBC,Adult Social Care,Adult Social Care,Aldermore Invoice Finance - Plan It Home Care Ltd,29/06/2017,,980.00,ASC - Domiciliary Care,Not Yet Classified
Solihull MBC,Adult Social Care,Adult Social Care,Aldermore Invoice Finance - Plan It Home Care Ltd,29/06/2017,,1568.00,ASC - Home Care Support Services,Not Yet Classified
Solihull MBC,Adult Social Care,Adult Social Care,Aldermore Invoice Finance - Plan It Home Care Ltd,05/06/2017,,1064.00,ASC - Domiciliary Care,Not Yet Classified
Solihull MBC,Adult Social Care,Adult Social Care,Aldermore Invoice Finance - Plan It Home Care Ltd,29/06/2017,,1064.00,ASC - Domiciliary Care,Not Yet Classified
Solihull MBC,Adult Social Care,Adult Social Care,Aldermore Invoice Finance - Plan It Home Care Ltd,05/06/2017,,1036.00,ASC - Domiciliary Care,Not Yet Classified
Solihull MBC,Adult Social Care,Adult Social Care,Aldermore Invoice Finance - Plan It Home Care Ltd,29/06/2017,,1036.00,ASC - Domiciliary Care,Not Yet Classified
Solihull MBC,Adult Social Care,Adult Social Care,Aldermore Invoice Finance - Plan It Home Care Ltd,05/06/2017,,252.00,ASC - Domiciliary Care,Not Yet Classified
Solihull MBC,Adult Social Care,Adult Social Care,Aldermore Invoice Finance - Plan It Home Care Ltd,29/06/2017,,252.00,ASC - Domiciliary Care,Not Yet Classified
Solihull MBC,Adult Social Care,Adult Social Care,Aldermore Invoice Finance - Plan It Home Care Ltd,05/06/2017,,728.00,ASC - Domiciliary Care,Not Yet Classified
Solihull MBC,Adult Social Care,Adult Social Care,Aldermore Invoice Finance - Plan It Home Care Ltd,29/06/2017,,728.00,ASC - Domiciliary Care,Not Yet Classified
Solihull MBC,Adult Social Care,Adult Social Care,Aldermore Invoice Finance - Plan It Home Care Ltd,28/06/2017,,406.00,ASC - Domiciliary Care,Not Yet Classified
Solihull MBC,Adult Social Care,Adult Social Care,Aldermore Invoice Finance - Plan It Home Care Ltd,05/06/2017,,1764.00,ASC - Domiciliary Care,Not Yet Classified
Solihull MBC,Adult Social Care,Adult Social Care,Aldermore Invoice Finance - Plan It Home Care Ltd,29/06/2017,,1764.00,ASC - Domiciliary Care,Not Yet Classified
Solihull MBC,Adult Social Care,Adult Social Care,Aldermore Invoice Finance - Plan It Home Care Ltd,05/06/2017,,840.00,ASC - Domiciliary Care,Not Yet Classified
Solihull MBC,Adult Social Care,Adult Social Care,Aldermore Invoice Finance - Plan It Home Care Ltd,29/06/2017,,840.00,ASC - Domiciliary Care,Not Yet Classified
Solihull MBC,Adult Social Care,Adult Social Care,Aldermore Invoice Finance - Plan It Home Care Ltd,05/06/2017,,1568.00,ASC - Domiciliary Care,Not Yet Classified
Solihull MBC,Adult Social Care,Adult Social Care,Aldermore Invoice Finance - Plan It Home Care Ltd,29/06/2017,,1568.00,ASC - Domiciliary Care,Not Yet Classified
Solihull MBC,Adult Social Care,Adult Social Care,Aldermore Invoice Finance - Plan It Home Care Ltd,05/06/2017,,504.00,ASC - Domiciliary Care,Not Yet Classified
Solihull MBC,Adult Social Care,Adult Social Care,Aldermore Invoice Finance - Plan It Home Care Ltd,29/06/2017,,504.00,ASC - Domiciliary Care,Not Yet Classified
Solihull MBC,Adult Social Care,Adult Social Care,Aldermore Invoice Finance - Plan It Home Care Ltd,29/06/2017,,588.00,ASC - Home Care Support Services,Not Yet Classified
Solihull MBC,Adult Social Care,Adult Social Care,Aldermore Invoice Finance - Plan It Home Care Ltd,05/06/2017,,1176.00,ASC - Domiciliary Care,Not Yet Classified
Solihull MBC,Adult Social Care,Adult Social Care,Aldermore Invoice Finance - Plan It Home Care Ltd,29/06/2017,,1176.00,ASC - Domiciliary Care,Not Yet Classified
Solihull MBC,Adult Social Care,Adult Social Care,Aldermore Invoice Finance - Plan It Home Care Ltd,29/06/2017,,588.00,ASC - Home Care Support Services,Not Yet Classified
Solihull MBC,Adult Social Care,Adult Social Care,Aldermore Invoice Finance - Plan It Home Care Ltd,05/06/2017,,1764.00,ASC - Domiciliary Care,Not Yet Classified
Solihull MBC,Adult Social Care,Adult Social Care,Aldermore Invoice Finance - Plan It Home Care Ltd,29/06/2017,,1764.00,ASC - Domiciliary Care,Not Yet Classified
Solihull MBC,Adult Social Care,Adult Social Care,Aldermore Invoice Finance - Plan It Home Care Ltd,05/06/2017,,546.00,ASC - Domiciliary Care,Not Yet Classified
Solihull MBC,Adult Social Care,Adult Social Care,Aldermore Invoice Finance - Plan It Home Care Ltd,29/06/2017,,574.00,ASC - Domiciliary Care,Not Yet Classified
Solihull MBC,Adult Social Care,Adult Social Care,Aldermore Invoice Finance - Plan It Home Care Ltd,29/06/2017,,1148.00,ASC - Home Care Support Services,Not Yet Classified
Solihull MBC,Adult Social Care,Adult Social Care,Aldermore Invoice Finance - Plan It Home Care Ltd,29/06/2017,,581.00,ASC - Home Care Support Services,Not Yet Classified
Solihull MBC,Adult Social Care,Adult Social Care,Aldermore Invoice Finance - Plan It Home Care Ltd,05/06/2017,,1764.00,ASC - Domiciliary Care,Not Yet Classified
Solihull MBC,Adult Social Care,Adult Social Care,Aldermore Invoice Finance - Plan It Home Care Ltd,29/06/2017,,1764.00,ASC - Domiciliary Care,Not Yet Classified
Solihull MBC,Adult Social Care,Adult Social Care,Aldermore Invoice Finance - Plan It Home Care Ltd,05/06/2017,,1176.00,ASC - Domiciliary Care,Not Yet Classified
Solihull MBC,Adult Social Care,Adult Social Care,Aldermore Invoice Finance - Plan It Home Care Ltd,29/06/2017,,1176.00,ASC - Domiciliary Care,Not Yet Classified
Solihull MBC,Adult Social Care,Adult Social Care,Aldermore Invoice Finance - Plan It Home Care Ltd,05/06/2017,,350.00,ASC - Domiciliary Care,Not Yet Classified
Solihull MBC,Adult Social Care,Adult Social Care,Aldermore Invoice Finance - Plan It Home Care Ltd,29/06/2017,,350.00,ASC - Domiciliary Care,Not Yet Classified
Solihull MBC,Resources - Non Monitored,Central Services to the Public,Alexander Stevens (1995) Ltd,08/06/2017,,1678.55,Bid Refunds,Not Yet Classified
Solihull MBC,Adult Social Care,Adult Social Care,Alexandra House - SJMT,05/06/2017,,1853.80,ASC - Residential Care Permanent,Not Yet Classified
Solihull MBC,Adult Social Care,Adult Social Care,Alexandra House - SJMT,05/06/2017,,463.45,ASC - Residential Care Permanent,Not Yet Classified
Solihull MBC,Adult Social Care,Adult Social Care,Alexandra House - SJMT,05/06/2017,,1427.79,ASC - Residential Care Permanent,Not Yet Classified
Solihull MBC,Adult Social Care,Adult Social Care,Alexandra House - SJMT,01/06/2017,,1903.72,ASC - Residential Care Permanent,Not Yet Classified
Solihull MBC,Adult Social Care,Adult Social Care,Alexandra House - SJMT,05/06/2017,,1141.46,ASC - Residential Care Permanent,Not Yet Classified
Solihull MBC,Adult Social Care,Adult Social Care,Alexandra House - SJMT,01/06/2017,,1146.45,ASC - Residential Care Respite,Not Yet Classified
Solihull MBC,Adult Social Care,Adult Social Care,Alexandra House - SJMT,05/06/2017,,2080.12,ASC - Residential Care Permanent,Not Yet Classified
Solihull MBC,Adult Social Care,Adult Social Care,Alexandra House - SJMT,05/06/2017,,520.03,ASC - Residential Care Permanent,Not Yet Classified
Solihull MBC,Adult Social Care,Adult Social Care,Alexandra House - SJMT,05/06/2017,,1560.09,ASC - Residential Care Permanent,Not Yet Classified
Solihull MBC,Adult Social Care,Adult Social Care,Alexandra House - SJMT,01/06/2017,,2080.12,ASC - Residential Care Permanent,Not Yet Classified
Solihull MBC,Adult Social Care,Adult Social Care,Alexandra House - SJMT,05/06/2017,,1699.60,ASC - Residential Care Permanent,Not Yet Classified
Solihull MBC,Adult Social Care,Adult Social Care,Alexandra House - SJMT,05/06/2017,,424.90,ASC - Residential Care Permanent,Not Yet Classified
Solihull MBC,Adult Social Care,Adult Social Care,Alexandra House - SJMT,05/06/2017,,1309.11,ASC - Residential Care Permanent,Not Yet Classified
Solihull MBC,Adult Social Care,Adult Social Care,Alexandra House - SJMT,01/06/2017,,1745.52,ASC - Residential Care Permanent,Not Yet Classified
Solihull MBC,Adult Social Care,Adult Social Care,Alexandra House - SJMT,05/06/2017,,2135.00,ASC - Residential Care Permanent,Not Yet Classified
Solihull MBC,Adult Social Care,Adult Social Care,Alexandra House - SJMT,05/06/2017,,533.75,ASC - Residential Care Permanent,Not Yet Classified
Solihull MBC,Adult Social Care,Adult Social Care,Alexandra House - SJMT,05/06/2017,,1647.45,ASC - Residential Care Permanent,Not Yet Classified
Solihull MBC,Adult Social Care,Adult Social Care,Alexandra House - SJMT,01/06/2017,,2196.60,ASC - Residential Care Permanent,Not Yet Classified
Solihull MBC,Adult Social Care,Adult Social Care,Alexandra House - SJMT,05/06/2017,,314.29,ASC - Residential Care Permanent,Not Yet Classified
Solihull MBC,Adult Social Care,Adult Social Care,Alexandra House - SJMT,05/06/2017,,520.03,ASC - Residential Care Permanent,Not Yet Classified
Solihull MBC,Adult Social Care,Adult Social Care,Alexandra House - SJMT,05/06/2017,,1560.09,ASC - Residential Care Permanent,Not Yet Classified
Solihull MBC,Adult Social Care,Adult Social Care,Alexandra House - SJMT,01/06/2017,,2080.12,ASC - Residential Care Permanent,Not Yet Classified
Solihull MBC,Adult Social Care,Adult Social Care,Alexandra House - SJMT,05/06/2017,,2135.00,ASC - Residential Care Permanent,Not Yet Classified
Solihull MBC,Adult Social Care,Adult Social Care,Alexandra House - SJMT,05/06/2017,,533.75,ASC - Residential Care Permanent,Not Yet Classified
Solihull MBC,Adult Social Care,Adult Social Care,Alexandra House - SJMT,05/06/2017,,627.60,ASC - Residential Care Permanent,Not Yet Classified
Solihull MBC,Adult Social Care,Adult Social Care,Alexandra House - SJMT,05/06/2017,,784.74,ASC - Residential Care Respite,Not Yet Classified
Solihull MBC,Adult Social Care,Adult Social Care,Alexandra House - SJMT,05/06/2017,,762.50,ASC - Residential Care Permanent,Not Yet Classified
Solihull MBC,Adult Social Care,Adult Social Care,Alexandra House - SJMT,05/06/2017,,2135.00,ASC - Residential Care Permanent,Not Yet Classified
Solihull MBC,Adult Social Care,Adult Social Care,Alexandra House - SJMT,05/06/2017,,533.75,ASC - Residential Care Permanent,Not Yet Classified
Solihull MBC,Adult Social Care,Adult Social Care,Alexandra House - SJMT,05/06/2017,,1647.45,ASC - Residential Care Permanent,Not Yet Classified
Solihull MBC,Adult Social Care,Adult Social Care,Alexandra House - SJMT,01/06/2017,,2196.60,ASC - Residential Care Permanent,Not Yet Classified
Solihull MBC,Adult Social Care,Adult Social Care,Alexandra House - SJMT,05/06/2017,,1560.09,ASC - Residential Care Permanent,Not Yet Classified
Solihull MBC,Adult Social Care,Adult Social Care,Alexandra House - SJMT,01/06/2017,,2080.12,ASC - Residential Care Permanent,Not Yet Classified
Solihull MBC,Adult Social Care,Cultural & Related Services,Alexandra PLC,07/06/2017,,240.00,Clothing & Uniforms,To be classified individually
Solihull MBC,Adult Social Care,Adult Social Care,Alison Thorneywork,27/06/2017,,2375.72,ASC - Residential Care Permanent,321000 - Social Community Care Supplies & Services - Adult
Solihull MBC,Adult Social Care,Adult Social Care,Alison Thorneywork,27/06/2017,,2422.88,ASC - Residential Care Permanent,321000 - Social Community Care Supplies & Services - Adult
Solihull MBC,Children's Services - DSG Central.,Children & Education Services,Alison Timmins,26/06/2017,,263.25,Grant & Subscription (SCITT),321100 - Social Community Care Supplies & Services - Children
Solihull MBC,Adult Social Care,Adult Social Care,Allambie Court Nursing Home,08/06/2017,,2999.99,ASC - Nursing Care Permanent,Not Yet Classified
Solihull MBC,Adult Social Care,Adult Social Care,Allambie Court Nursing Home,27/06/2017,,321.43,ASC - Nursing Care Permanent,Not Yet Classified
Solihull MBC,Managed Growth and Communities - HRA,Housing Revenue Account,Alliance Disposables ,26/06/2017,Card Transaction,335.10,General Debtors,111000 - Catering - Banquet & Catering
Solihull MBC,Adult Social Care,Adult Social Care,Allied Healthcare (UK) Ltd,12/06/2017,,288.77,ASC - Home Care Support Services,321000 - Social Community Care Supplies & Services - Adult
Solihull MBC,Adult Social Care,Adult Social Care,Allied Healthcare (UK) Ltd,12/06/2017,,330.00,ASC - Home Care Support Services,321000 - Social Community Care Supplies & Services - Adult
Solihull MBC,Adult Social Care,Adult Social Care,Allied Healthcare (UK) Ltd,12/06/2017,,330.03,ASC - Home Care Support Services,321000 - Social Community Care Supplies & Services - Adult
Solihull MBC,Managed Growth and Communities - HRA,Housing Revenue Account,Alligator Storage Garr,26/06/2017,Card Transaction,568.22,General Debtors,192300 - Facilities & Management Services - Storage
Solihull MBC,Adult Social Care,Adult Social Care,Alophonsus Services Ltd,27/06/2017,,10804.88,ASC - Residential Care Permanent,321000 - Social Community Care Supplies & Services - Adult
Solihull MBC,Adult Social Care,Adult Social Care,Alpha Health Care Ltd,20/06/2017,,2181.28,ASC - Nursing Care Permanent,321000 - Social Community Care Supplies & Services - Adult
Solihull MBC,Adult Social Care,Adult Social Care,Alpha Health Care Ltd,20/06/2017,,1869.56,ASC - Residential Care Permanent,321000 - Social Community Care Supplies & Services - Adult
Solihull MBC,Children's Services & Skills,Children & Education Services,Amazon UK Marketplace,18/05/2017,Card Transaction,283.33,General Creditors,171114 - Education - Literature
Solihull MBC,Resources,Central Services to the Public,Amazon UK Marketplace ,26/06/2017,Card Transaction,398.20,Purchase Card Statement Summary,161000 - Domestic Goods - Commercial
Solihull MBC,Resources,Central Services to the Public,Amazon UK Retail,26/06/2017,Card Transaction,270.60,Purchase Card Statement Summary,161000 - Domestic Goods - Commercial
Solihull MBC,Adult Social Care,Adult Social Care,Amberley Court Nursing Home,01/06/2017,,4000.00,ASC - Nursing Care Permanent,321000 - Social Community Care Supplies & Services - Adult
Solihull MBC,Managed Growth and Communities,Planning & Development Services,Amion Consulting,19/06/2017,,1433.00,Professional Fees,Not Yet Classified
Solihull MBC,Adult Social Care,Adult Social Care,Anchor Trust,27/06/2017,,2414.29,ASC - Residential Care Permanent,321000 - Social Community Care Supplies & Services - Adult
Solihull MBC,Adult Social Care,Adult Social Care,Anchor Trust,27/06/2017,,2600.00,ASC - Residential Care Permanent,321000 - Social Community Care Supplies & Services - Adult
Solihull MBC,Adult Social Care,Adult Social Care,Andrew Askew,15/06/2017,,4646.84,ASC - Residential Care Permanent,Not Yet Classified
Solihull MBC,Resources,Central Services to the Public,Andrew Robson R N L D,06/06/2017,,429.00,Training,Not Yet Classified
Solihull MBC,Children's Services & Skills,Children & Education Services,Angel Springs Ltd,08/06/2017,,538.50,Water,171100 - Education - Supplies
Solihull MBC,Children's Services - DSG Central.,Children & Education Services,Angels Daycare,26/06/2017,,3190.50,Grant & Subscription (SCITT),321100 - Social Community Care Supplies & Services - Children
Solihull MBC,Adult Social Care,Adult Social Care,Angels Healthcare Ltd,01/06/2017,,374.08,ASC - Home Care Support Services,321000 - Social Community Care Supplies & Services - Adult
Solihull MBC,Adult Social Care,Adult Social Care,Angels Healthcare Ltd,01/06/2017,,1683.36,ASC - Home Care Support Services,321000 - Social Community Care Supplies & Services - Adult
Solihull MBC,Adult Social Care,Adult Social Care,Angels Healthcare Ltd,01/06/2017,,1482.96,ASC - Home Care Support Services,321000 - Social Community Care Supplies & Services - Adult
Solihull MBC,Adult Social Care,Adult Social Care,Angels Healthcare Ltd,01/06/2017,,651.30,ASC - Home Care Support Services,321000 - Social Community Care Supplies & Services - Adult
Solihull MBC,Adult Social Care,Adult Social Care,Angels Healthcare Ltd,01/06/2017,,654.64,ASC - Home Care Support Services,321000 - Social Community Care Supplies & Services - Adult
Solihull MBC,Adult Social Care,Adult Social Care,Angels Healthcare Ltd,01/06/2017,,326.75,ASC - Home Care Support Services,321000 - Social Community Care Supplies & Services - Adult
Solihull MBC,Adult Social Care,Adult Social Care,Angels Healthcare Ltd,01/06/2017,,270.54,ASC - Home Care Support Services,321000 - Social Community Care Supplies & Services - Adult
Solihull MBC,Adult Social Care,Adult Social Care,Angels Healthcare Ltd,01/06/2017,,374.08,ASC - Home Care Support Services,321000 - Social Community Care Supplies & Services - Adult
Solihull MBC,Adult Social Care,Adult Social Care,Angels Healthcare Ltd,01/06/2017,,1566.46,ASC - Home Care Support Services,321000 - Social Community Care Supplies & Services - Adult
Solihull MBC,Adult Social Care,Adult Social Care,Angels Healthcare Ltd,01/06/2017,,711.42,ASC - Home Care Support Services,321000 - Social Community Care Supplies & Services - Adult
Solihull MBC,Adult Social Care,Adult Social Care,Angels Healthcare Ltd,01/06/2017,,1182.36,ASC - Home Care Support Services,321000 - Social Community Care Supplies & Services - Adult
Solihull MBC,Adult Social Care,Adult Social Care,Angels Healthcare Ltd,01/06/2017,,531.06,ASC - Home Care Support Services,321000 - Social Community Care Supplies & Services - Adult
Solihull MBC,Adult Social Care,Adult Social Care,Angels Healthcare Ltd,01/06/2017,,289.80,ASC - Home Care Support Services,321000 - Social Community Care Supplies & Services - Adult
Solihull MBC,Adult Social Care,Adult Social Care,Angels Healthcare Ltd,01/06/2017,,529.33,ASC - Home Care Support Services,321000 - Social Community Care Supplies & Services - Adult
Solihull MBC,Adult Social Care,Adult Social Care,Angels Healthcare Ltd,01/06/2017,,511.02,ASC - Home Care Support Services,321000 - Social Community Care Supplies & Services - Adult
Solihull MBC,Adult Social Care,Adult Social Care,Angels Healthcare Ltd,01/06/2017,,614.56,ASC - Home Care Support Services,321000 - Social Community Care Supplies & Services - Adult
Solihull MBC,Adult Social Care,Adult Social Care,Angels Healthcare Ltd,01/06/2017,,2464.92,ASC - Home Care Support Services,321000 - Social Community Care Supplies & Services - Adult
Solihull MBC,Adult Social Care,Adult Social Care,Angels Healthcare Ltd,01/06/2017,,587.84,ASC - Home Care Support Services,321000 - Social Community Care Supplies & Services - Adult
Solihull MBC,Adult Social Care,Adult Social Care,Angels Healthcare Ltd,01/06/2017,,1683.36,ASC - Home Care Support Services,321000 - Social Community Care Supplies & Services - Adult
Solihull MBC,Adult Social Care,Adult Social Care,Angels Healthcare Ltd,01/06/2017,,267.20,ASC - Home Care Support Services,321000 - Social Community Care Supplies & Services - Adult
Solihull MBC,Adult Social Care,Adult Social Care,Angels Healthcare Ltd,01/06/2017,,367.40,ASC - Home Care Support Services,321000 - Social Community Care Supplies & Services - Adult
Solihull MBC,Adult Social Care,Adult Social Care,Angels Healthcare Ltd,01/06/2017,,1122.24,ASC - Home Care Support Services,321000 - Social Community Care Supplies & Services - Adult
Solihull MBC,Adult Social Care,Adult Social Care,Angels Healthcare Ltd,01/06/2017,,918.50,ASC - Home Care Support Services,321000 - Social Community Care Supplies & Services - Adult
Solihull MBC,Adult Social Care,Adult Social Care,Anita Stone Court,14/06/2017,,2752.00,ASC - Residential Care Permanent,Not Yet Classified
Solihull MBC,Adult Social Care,Adult Social Care,Anita Stone Court,14/06/2017,,2752.00,ASC - Nursing Care Permanent,Not Yet Classified
Solihull MBC,Adult Social Care,Adult Social Care,Anita Stone Court,14/06/2017,,2892.00,ASC - Nursing Care Permanent,Not Yet Classified
Solihull MBC,Children's Services & Skills,Children & Education Services,Anna Carter,22/06/2017,,444.26,Professional Fees,Not Yet Classified
Solihull MBC,Resources,Central Services to the Public,Annodata Business Communications,12/06/2017,,48.48,General Office Expenses,Not Yet Classified
Solihull MBC,Resources,Central Services to the Public,Annodata Business Communications,12/06/2017,,6578.35,General Office Expenses,Not Yet Classified
Solihull MBC,Resources,Central Services to the Public,Annodata Business Communications,22/06/2017,,3850.00,IT Equipment & Software,Not Yet Classified
Solihull MBC,Adult Social Care,Adult Social Care,Apna Ghar(1995) Ltd,14/06/2017,,280.00,ASC - Day Care,321000 - Social Community Care Supplies & Services - Adult
Solihull MBC,Adult Social Care,Cultural & Related Services,Arcane Direct Marketing,02/06/2017,,588.26,Advertising/Publicity/Promotion,191000 - Facilities & Management Services
Solihull MBC,Adult Social Care,Cultural & Related Services,Arcane Direct Marketing,02/06/2017,,1855.21,Advertising/Publicity/Promotion,191000 - Facilities & Management Services
Solihull MBC,Children's Services - DSG Central.,Children & Education Services,Archway Academy Ltd,12/06/2017,,7200.00,Other Contracted Services,321100 - Social Community Care Supplies & Services - Children
Solihull MBC,Children's Services - DSG Central.,Children & Education Services,Archway Community College,05/06/2017,,2280.00,Other Contracted Services,Not Yet Classified
Solihull MBC,Children's Services - DSG Central.,Children & Education Services,Archway Community College,29/06/2017,,2400.00,Other Contracted Services,Not Yet Classified
Solihull MBC,Public Health & Commissioning,Central Services to the Public,Arco Ltd,23/06/2017,,163.02,Clothing & Uniforms,Not Yet Classified
Solihull MBC,Public Health & Commissioning,Central Services to the Public,Arco Ltd,23/06/2017,,163.02,Clothing & Uniforms,Not Yet Classified
Solihull MBC,Public Health & Commissioning,Central Services to the Public,Arco Ltd,23/06/2017,,380.38,Clothing & Uniforms,Not Yet Classified
Solihull MBC,Public Health & Commissioning,Central Services to the Public,Arco Ltd,23/06/2017,,13.00,Clothing & Uniforms,Not Yet Classified
Solihull MBC,Resources,Central Services to the Public,Arden Chambers,20/06/2017,,2000.00,Other Fees,Not Yet Classified
Solihull MBC,Adult Social Care,Adult Social Care,Ardenlea Court,05/06/2017,,4000.00,ASC - Nursing Care Permanent,321000 - Social Community Care Supplies & Services - Adult
Solihull MBC,Adult Social Care,Adult Social Care,Ardenlea Court,28/06/2017,,4000.00,ASC - Nursing Care Permanent,321000 - Social Community Care Supplies & Services - Adult
Solihull MBC,Adult Social Care,Adult Social Care,Ardenlea Court,05/06/2017,,3529.04,ASC - Nursing Care Permanent,321000 - Social Community Care Supplies & Services - Adult
Solihull MBC,Adult Social Care,Adult Social Care,Ardenlea Court,28/06/2017,,3529.04,ASC - Nursing Care Permanent,321000 - Social Community Care Supplies & Services - Adult
Solihull MBC,Adult Social Care,Adult Social Care,Ardenlea Grove Nursing Home,27/06/2017,,2158.16,ASC - Nursing Care Permanent,321000 - Social Community Care Supplies & Services - Adult
Solihull MBC,Adult Social Care,Adult Social Care,Ardenlea Grove Nursing Home,28/06/2017,,616.42,ASC - Nursing Care Permanent,321000 - Social Community Care Supplies & Services - Adult
Solihull MBC,Adult Social Care,Adult Social Care,Ardenlea Grove Nursing Home,27/06/2017,,3652.00,ASC - Nursing Care Permanent,321000 - Social Community Care Supplies & Services - Adult
Solihull MBC,Managed Growth and Communities,Planning & Development Services,Aries Entertainment Ltd,21/06/2017,,295.00,Furniture & Equipment,290000 - Arts & Leisure Services
Solihull MBC,Children's Services - DSG Central.,Children & Education Services,Arrow County Supplies,01/06/2017,,2.84,Cleaning,130000 - Cleaning & Janitorial
Solihull MBC,Children's Services - DSG Central.,Children & Education Services,Arrow County Supplies,01/06/2017,,115.20,Cleaning,130000 - Cleaning & Janitorial
Solihull MBC,Children's Services - DSG Central.,Children & Education Services,Arrow County Supplies,01/06/2017,,21.04,Cleaning,130000 - Cleaning & Janitorial
Solihull MBC,Children's Services - DSG Central.,Children & Education Services,Arrow County Supplies,01/06/2017,,36.24,Cleaning,130000 - Cleaning & Janitorial
Solihull MBC,Children's Services - DSG Central.,Children & Education Services,Arrow County Supplies,01/06/2017,,17.50,Cleaning,130000 - Cleaning & Janitorial
Solihull MBC,Children's Services - DSG Central.,Children & Education Services,Arrow County Supplies,01/06/2017,,16.22,Cleaning,130000 - Cleaning & Janitorial
Solihull MBC,Children's Services - DSG Central.,Children & Education Services,Arrow County Supplies,01/06/2017,,375.00,Cleaning,130000 - Cleaning & Janitorial
Solihull MBC,Children's Services - DSG Central.,Children & Education Services,Arrow County Supplies,01/06/2017,,110.88,Cleaning,130000 - Cleaning & Janitorial
Solihull MBC,Children's Services - DSG Central.,Children & Education Services,Arrow County Supplies,01/06/2017,,19.96,Cleaning,130000 - Cleaning & Janitorial
Solihull MBC,Children's Services - DSG Central.,Children & Education Services,Arrow County Supplies,01/06/2017,,115.20,Cleaning,130000 - Cleaning & Janitorial
Solihull MBC,Children's Services - DSG Central.,Children & Education Services,Arrow County Supplies,01/06/2017,,115.20,Cleaning,130000 - Cleaning & Janitorial
Solihull MBC,Children's Services - DSG Central.,Children & Education Services,Arrow County Supplies,01/06/2017,,9.46,Cleaning,130000 - Cleaning & Janitorial
Solihull MBC,Children's Services - DSG Central.,Children & Education Services,Arrow County Supplies,09/06/2017,,69.95,Cleaning,130000 - Cleaning & Janitorial
Solihull MBC,Children's Services - DSG Central.,Children & Education Services,Arrow County Supplies,09/06/2017,,22.50,Cleaning,130000 - Cleaning & Janitorial
Solihull MBC,Children's Services - DSG Central.,Children & Education Services,Arrow County Supplies,09/06/2017,,48.40,Cleaning,130000 - Cleaning & Janitorial
Solihull MBC,Children's Services - DSG Central.,Children & Education Services,Arrow County Supplies,09/06/2017,,19.36,Cleaning,130000 - Cleaning & Janitorial
Solihull MBC,Children's Services - DSG Central.,Children & Education Services,Arrow County Supplies,09/06/2017,,230.40,Cleaning,130000 - Cleaning & Janitorial
Solihull MBC,Children's Services - DSG Central.,Children & Education Services,Arrow County Supplies,09/06/2017,,26.20,Cleaning,130000 - Cleaning & Janitorial
Solihull MBC,Children's Services - DSG Central.,Children & Education Services,Arrow County Supplies,09/06/2017,,85.60,Cleaning,130000 - Cleaning & Janitorial
Solihull MBC,Children's Services - DSG Central.,Children & Education Services,Arrow County Supplies,09/06/2017,,135.60,Cleaning,130000 - Cleaning & Janitorial
Solihull MBC,Children's Services - DSG Central.,Children & Education Services,Arrow County Supplies,09/06/2017,,309.60,Cleaning,130000 - Cleaning & Janitorial
Solihull MBC,Children's Services - DSG Central.,Children & Education Services,Arrow County Supplies,09/06/2017,,130.80,Cleaning,130000 - Cleaning & Janitorial
Solihull MBC,Children's Services - DSG Central.,Children & Education Services,Arrow County Supplies,09/06/2017,,194.10,Cleaning,130000 - Cleaning & Janitorial
Solihull MBC,Children's Services - DSG Central.,Children & Education Services,Arrow County Supplies,09/06/2017,,547.60,Cleaning,130000 - Cleaning & Janitorial
Solihull MBC,Children's Services - DSG Central.,Children & Education Services,Arrow County Supplies,09/06/2017,,41.04,Cleaning,130000 - Cleaning & Janitorial
Solihull MBC,Children's Services - DSG Central.,Children & Education Services,Arrow County Supplies,09/06/2017,,10.80,Cleaning,130000 - Cleaning & Janitorial
Solihull MBC,Children's Services - DSG Central.,Children & Education Services,Arrow County Supplies,09/06/2017,,35.50,Cleaning,130000 - Cleaning & Janitorial
Solihull MBC,Children's Services - DSG Central.,Children & Education Services,Arrow County Supplies,09/06/2017,,46.40,Cleaning,130000 - Cleaning & Janitorial
Solihull MBC,Children's Services - DSG Central.,Children & Education Services,Arrow County Supplies,09/06/2017,,18.38,Cleaning,130000 - Cleaning & Janitorial
Solihull MBC,Children's Services - DSG Central.,Children & Education Services,Arrow County Supplies,09/06/2017,,29.90,Cleaning,130000 - Cleaning & Janitorial
Solihull MBC,Children's Services - DSG Central.,Children & Education Services,Arrow County Supplies,09/06/2017,,16.74,Cleaning,130000 - Cleaning & Janitorial
Solihull MBC,Children's Services - DSG Central.,Children & Education Services,Arrow County Supplies,09/06/2017,,30.20,Cleaning,130000 - Cleaning & Janitorial
Solihull MBC,Children's Services - DSG Central.,Children & Education Services,Arrow County Supplies,16/06/2017,,7.08,Cleaning,130000 - Cleaning & Janitorial
Solihull MBC,Children's Services - DSG Central.,Children & Education Services,Arrow County Supplies,16/06/2017,,7.08,Cleaning,130000 - Cleaning & Janitorial
Solihull MBC,Children's Services - DSG Central.,Children & Education Services,Arrow County Supplies,16/06/2017,,115.20,Cleaning,130000 - Cleaning & Janitorial
Solihull MBC,Children's Services - DSG Central.,Children & Education Services,Arrow County Supplies,16/06/2017,,26.20,Cleaning,130000 - Cleaning & Janitorial
Solihull MBC,Children's Services - DSG Central.,Children & Education Services,Arrow County Supplies,16/06/2017,,111.35,Cleaning,130000 - Cleaning & Janitorial
Solihull MBC,Children's Services - DSG Central.,Children & Education Services,Arrow County Supplies,16/06/2017,,42.80,Cleaning,130000 - Cleaning & Janitorial
Solihull MBC,Children's Services - DSG Central.,Children & Education Services,Arrow County Supplies,16/06/2017,,133.44,Cleaning,130000 - Cleaning & Janitorial
Solihull MBC,Children's Services - DSG Central.,Children & Education Services,Arrow County Supplies,16/06/2017,,69.95,Cleaning,130000 - Cleaning & Janitorial
Solihull MBC,Children's Services - DSG Central.,Children & Education Services,Arrow County Supplies,16/06/2017,,115.20,Cleaning,130000 - Cleaning & Janitorial
Solihull MBC,Children's Services - DSG Central.,Children & Education Services,Arrow County Supplies,16/06/2017,,39.90,Cleaning,130000 - Cleaning & Janitorial
Solihull MBC,Children's Services - DSG Central.,Children & Education Services,Arrow County Supplies,16/06/2017,,67.70,Cleaning,130000 - Cleaning & Janitorial
Solihull MBC,Children's Services - DSG Central.,Children & Education Services,Arrow County Supplies,16/06/2017,,232.20,Cleaning,130000 - Cleaning & Janitorial
Solihull MBC,Children's Services - DSG Central.,Children & Education Services,Arrow County Supplies,16/06/2017,,98.10,Cleaning,130000 - Cleaning & Janitorial
Solihull MBC,Children's Services - DSG Central.,Children & Education Services,Arrow County Supplies,16/06/2017,,37.36,Cleaning,130000 - Cleaning & Janitorial
Solihull MBC,Children's Services - DSG Central.,Children & Education Services,Arrow County Supplies,16/06/2017,,324.00,Cleaning,130000 - Cleaning & Janitorial
Solihull MBC,Children's Services - DSG Central.,Children & Education Services,Arrow County Supplies,16/06/2017,,362.50,Cleaning,130000 - Cleaning & Janitorial
Solihull MBC,Children's Services - DSG Central.,Children & Education Services,Arrow County Supplies,16/06/2017,,547.60,Cleaning,130000 - Cleaning & Janitorial
Solihull MBC,Children's Services - DSG Central.,Children & Education Services,Arrow County Supplies,16/06/2017,,116.00,Cleaning,130000 - Cleaning & Janitorial
Solihull MBC,Children's Services - DSG Central.,Children & Education Services,Arrow County Supplies,16/06/2017,,13.76,Cleaning,130000 - Cleaning & Janitorial
Solihull MBC,Children's Services - DSG Central.,Children & Education Services,Arrow County Supplies,16/06/2017,,15.08,Cleaning,130000 - Cleaning & Janitorial
Solihull MBC,Children's Services - DSG Central.,Children & Education Services,Arrow County Supplies,16/06/2017,,29.04,Cleaning,130000 - Cleaning & Janitorial
Solihull MBC,Children's Services - DSG Central.,Children & Education Services,Arrow County Supplies,16/06/2017,,-1.78,Cleaning,130000 - Cleaning & Janitorial
Solihull MBC,Children's Services - DSG Central.,Children & Education Services,Arrow County Supplies,16/06/2017,,12.76,Cleaning,130000 - Cleaning & Janitorial
Solihull MBC,Children's Services - DSG Central.,Children & Education Services,Arrow County Supplies,16/06/2017,,-0.01,Cleaning,130000 - Cleaning & Janitorial
Solihull MBC,Children's Services - DSG Central.,Children & Education Services,Arrow County Supplies,16/06/2017,,-1.33,Cleaning,130000 - Cleaning & Janitorial
Solihull MBC,Children's Services - DSG Central.,Children & Education Services,Arrow County Supplies,26/06/2017,,115.20,Cleaning,130000 - Cleaning & Janitorial
Solihull MBC,Children's Services - DSG Central.,Children & Education Services,Arrow County Supplies,26/06/2017,,146.20,Cleaning,130000 - Cleaning & Janitorial
Solihull MBC,Children's Services - DSG Central.,Children & Education Services,Arrow County Supplies,26/06/2017,,16.22,Cleaning,130000 - Cleaning & Janitorial
Solihull MBC,Children's Services - DSG Central.,Children & Education Services,Arrow County Supplies,26/06/2017,,47.70,Cleaning,130000 - Cleaning & Janitorial
Solihull MBC,Children's Services - DSG Central.,Children & Education Services,Arrow County Supplies,26/06/2017,,28.50,Cleaning,130000 - Cleaning & Janitorial
Solihull MBC,Children's Services - DSG Central.,Children & Education Services,Arrow County Supplies,26/06/2017,,342.25,Cleaning,130000 - Cleaning & Janitorial
Solihull MBC,Resources,Children & Education Services,Arthur Brett Catering Ltd,19/06/2017,,-521.06,Catering Provisions,110000 - Catering
Solihull MBC,Resources,Children & Education Services,Arthur Brett Catering Ltd,06/06/2017,,346.73,Catering Provisions,110000 - Catering
Solihull MBC,Resources,Children & Education Services,Arthur Brett Catering Ltd,12/06/2017,,321.19,Catering Provisions,110000 - Catering
Solihull MBC,Resources,Children & Education Services,Arthur Brett Catering Ltd,19/06/2017,,621.76,Catering Provisions,110000 - Catering
Solihull MBC,Resources,Children & Education Services,Arthur Brett Catering Ltd,19/06/2017,,271.83,Catering Provisions,110000 - Catering
Solihull MBC,Resources,Children & Education Services,Arthur Brett Catering Ltd,26/06/2017,,287.30,Catering Provisions,110000 - Catering
Solihull MBC,Resources,Central Services to the Public,Arthur J Gallagher Insurance Brokers Ltd,30/06/2017,,16500.00,Liability Insurance,Not Yet Classified
Solihull MBC,Resources,Central Services to the Public,Arthur J Gallagher Insurance Brokers Ltd,02/06/2017,,8800.00,Liability Insurance,Not Yet Classified
Solihull MBC,Children's Services & Skills,Children & Education Services,Asda Stores 5881 ,26/06/2017,Card Transaction,300.00,Purchase Card Statement Summary,161000 - Domestic Goods - Commercial
Solihull MBC,Adult Social Care,Adult Social Care,Ashdale Care Homes Ltd,01/06/2017,,2880.00,ASC - Residential Care Permanent,321000 - Social Community Care Supplies & Services - Adult
Solihull MBC,Children's Services - DSG Central.,Children & Education Services,Ashmita Parmar,26/06/2017,,351.00,Grant & Subscription (SCITT),Not Yet Classified
Solihull MBC,Adult Social Care,Cultural & Related Services,Askews Library Services Ltd,13/06/2017,,2000.00,Materials,170000 - Education
Solihull MBC,Adult Social Care,Cultural & Related Services,Askews Library Services Ltd,07/06/2017,,3746.95,Materials,170000 - Education
Solihull MBC,Adult Social Care,Cultural & Related Services,Askews Library Services Ltd,13/06/2017,,887.35,Materials,170000 - Education
Solihull MBC,Adult Social Care,Cultural & Related Services,Askews Library Services Ltd,22/06/2017,,1561.69,Materials,170000 - Education
Solihull MBC,Adult Social Care,Adult Social Care,Aspects Care Ltd,21/06/2017,,2582.00,ASC - Direct Payments,Not Yet Classified
Solihull MBC,Adult Social Care,Adult Social Care,Aspects Care Ltd,21/06/2017,,-160.00,Fairer Charging - Client Income,Not Yet Classified
Solihull MBC,Adult Social Care,Adult Social Care,Aspects Care Ltd,05/06/2017,,849.28,ASC - Home Care Support Services,Not Yet Classified
Solihull MBC,Adult Social Care,Adult Social Care,Aspects Care Ltd,29/06/2017,,4127.60,ASC - Supported Living Care Costs,Not Yet Classified
Solihull MBC,Adult Social Care,Adult Social Care,Aspects Care Ltd,08/06/2017,,1232.21,ASC - Home Care Support Services,Not Yet Classified
Solihull MBC,Adult Social Care,Adult Social Care,Aspects Care Ltd,05/06/2017,,1327.00,ASC - Home Care Support Services,Not Yet Classified
Solihull MBC,Adult Social Care,Adult Social Care,Aspects Care Ltd,05/06/2017,,5001.24,ASC - Supported Living Care Costs,Not Yet Classified
Solihull MBC,Adult Social Care,Adult Social Care,Aspects Care Ltd,21/06/2017,,2300.80,ASC - Direct Payments,Not Yet Classified
Solihull MBC,Adult Social Care,Adult Social Care,Aspects Care Ltd,21/06/2017,,-60.56,Fairer Charging - Client Income,Not Yet Classified
Solihull MBC,Adult Social Care,Adult Social Care,Aspects Care Ltd,05/06/2017,,9555.84,ASC - Domiciliary Care,Not Yet Classified
Solihull MBC,Adult Social Care,Adult Social Care,Aspects Care Ltd,05/06/2017,,663.50,ASC - Home Care Support Services,Not Yet Classified
Solihull MBC,Adult Social Care,Adult Social Care,Aspects Care Ltd,21/06/2017,,1562.16,ASC - Direct Payments,Not Yet Classified
Solihull MBC,Adult Social Care,Adult Social Care,Aspects Care Ltd,05/06/2017,,3867.84,ASC - Domiciliary Care,Not Yet Classified
Solihull MBC,Adult Social Care,Adult Social Care,Aspects Care Ltd,05/06/2017,,1353.54,ASC - Home Care Support Services,Not Yet Classified
Solihull MBC,Adult Social Care,Adult Social Care,Aspects Care Ltd,05/06/2017,,743.12,ASC - Home Care Support Services,Not Yet Classified
Solihull MBC,Adult Social Care,Adult Social Care,Aspects Care Ltd,05/06/2017,,902.36,ASC - Home Care Support Services,Not Yet Classified
Solihull MBC,Adult Social Care,Adult Social Care,Aspects Care Ltd,05/06/2017,,849.28,ASC - Home Care Support Services,Not Yet Classified
Solihull MBC,Adult Social Care,Adult Social Care,Aspects Care Ltd,05/06/2017,,796.20,ASC - Home Care Support Services,Not Yet Classified
Solihull MBC,Adult Social Care,Adult Social Care,Aspects Care Ltd,05/06/2017,,1112.24,ASC - Supported Living Care Costs,Not Yet Classified
Solihull MBC,Adult Social Care,Adult Social Care,Aspects Care Ltd,05/06/2017,,1406.62,ASC - Home Care Support Services,Not Yet Classified
Solihull MBC,Adult Social Care,Adult Social Care,Aspects Care Ltd,21/06/2017,,4433.56,ASC - Direct Payments,Not Yet Classified
Solihull MBC,Adult Social Care,Adult Social Care,Aspects Care Ltd,21/06/2017,,-3.00,Fairer Charging - Client Income,Not Yet Classified
Solihull MBC,Adult Social Care,Adult Social Care,Aspects Care Ltd,21/06/2017,,2634.60,ASC - Direct Payments,Not Yet Classified
Solihull MBC,Adult Social Care,Adult Social Care,Aspects Care Ltd,08/06/2017,,1478.66,ASC - Home Care Support Services,Not Yet Classified
Solihull MBC,Adult Social Care,Adult Social Care,Aspects Care Ltd,05/06/2017,,1592.40,ASC - Home Care Support Services,Not Yet Classified
Solihull MBC,Adult Social Care,Adult Social Care,Aspects Care Ltd,05/06/2017,,1114.68,ASC - Home Care Support Services,Not Yet Classified
Solihull MBC,Adult Social Care,Adult Social Care,Aspects Care Ltd,29/06/2017,,3478.80,ASC - Supported Living Care Costs,Not Yet Classified
Solihull MBC,Adult Social Care,Adult Social Care,Aspects Care Ltd,29/06/2017,,6581.64,ASC - Supported Living Care Costs,Not Yet Classified
Solihull MBC,Adult Social Care,Adult Social Care,Aspects Care Ltd,29/06/2017,,4268.72,ASC - Supported Living Care Costs,Not Yet Classified
Solihull MBC,Children's Services - DSG Central.,Children & Education Services,Asquith Court Nursery,26/06/2017,,1807.80,Grant & Subscription (SCITT),321100 - Social Community Care Supplies & Services - Children
Solihull MBC,Children's Services - DSG Central.,Children & Education Services,Asquith Court Nursery,26/06/2017,,2761.20,Grant & Subscription (SCITT),321100 - Social Community Care Supplies & Services - Children
Solihull MBC,Adult Social Care,Adult Social Care,Assisted Living Solutions - Inclusion Care,23/06/2017,,532.80,ASC - Supported Living Care Costs,Not Yet Classified
Solihull MBC,Adult Social Care,Adult Social Care,Assisted Living Solutions - Inclusion Care,23/06/2017,,532.80,ASC - Supported Living Care Costs,Not Yet Classified
Solihull MBC,Adult Social Care,Adult Social Care,Assisted Living Solutions - Inclusion Care,23/06/2017,,-10545.36,ASC - Supported Living Care Costs,Not Yet Classified
Solihull MBC,Children's Services & Skills,Children & Education Services,Aston Childrens Care,06/06/2017,,16828.35,Other Contracted Services,Not Yet Classified
Solihull MBC,Children's Services & Skills,Children & Education Services,Aston Childrens Care,23/06/2017,,16286.50,Other Contracted Services,Not Yet Classified
Solihull MBC,Managed Growth and Communities,Highways & Transport Services,Atkins,19/06/2017,,1503.20,Agency Staff,150000 - Consultancy
Solihull MBC,Managed Growth and Communities,Highways & Transport Services,Atkins,20/06/2017,,4509.60,Agency Staff,150000 - Consultancy
Solihull MBC,Resources,Central Services to the Public,Atos IT Services UK Ltd,28/06/2017,,19815.20,Hardware,Not Yet Classified
Solihull MBC,Resources,Central Services to the Public,Atos IT Services UK Ltd,28/06/2017,,20759.93,Hardware,Not Yet Classified
Solihull MBC,Resources,Other Housing Services,Auriga Services Ltd,09/06/2017,,994.00,Clients Expenses,Not Yet Classified
Solihull MBC,Resources,Other Housing Services,Auriga Services Ltd,09/06/2017,,-497.00,Clients Expenses,Not Yet Classified
Solihull MBC,Adult Social Care,Adult Social Care,Autism West Midlands,23/06/2017,,5874.24,ASC - Residential Care Permanent,321000 - Social Community Care Supplies & Services - Adult
Solihull MBC,Adult Social Care,Adult Social Care,Autism West Midlands,01/06/2017,,5874.24,ASC - Residential Care Permanent,321000 - Social Community Care Supplies & Services - Adult
Solihull MBC,Resources,Central Services to the Public,Autism West Midlands,28/06/2017,,2100.00,Training,321000 - Social Community Care Supplies & Services - Adult
Solihull MBC,Adult Social Care,Adult Social Care,Autism West Midlands,23/06/2017,,528.84,ASC - Home Care Support Services,321000 - Social Community Care Supplies & Services - Adult
Solihull MBC,Adult Social Care,Adult Social Care,Autism West Midlands,23/06/2017,,528.84,ASC - Home Care Support Services,321000 - Social Community Care Supplies & Services - Adult
Solihull MBC,Adult Social Care,Adult Social Care,Autism West Midlands,01/06/2017,,528.84,ASC - Home Care Support Services,321000 - Social Community Care Supplies & Services - Adult
Solihull MBC,Adult Social Care,Adult Social Care,Autism West Midlands,23/06/2017,,293.80,ASC - Home Care Support Services,321000 - Social Community Care Supplies & Services - Adult
Solihull MBC,Adult Social Care,Adult Social Care,Autism West Midlands,23/06/2017,,293.80,ASC - Home Care Support Services,321000 - Social Community Care Supplies & Services - Adult
Solihull MBC,Adult Social Care,Adult Social Care,Autism West Midlands,01/06/2017,,293.80,ASC - Home Care Support Services,321000 - Social Community Care Supplies & Services - Adult
Solihull MBC,Adult Social Care,Adult Social Care,Autism West Midlands,01/06/2017,,6266.04,ASC - Residential Care Permanent,321000 - Social Community Care Supplies & Services - Adult
Solihull MBC,Adult Social Care,Adult Social Care,Autism West Midlands,01/06/2017,,9816.80,ASC - Residential Care Permanent,321000 - Social Community Care Supplies & Services - Adult
Solihull MBC,Adult Social Care,Adult Social Care,Autism West Midlands,01/06/2017,,6337.36,ASC - Residential Care Permanent,321000 - Social Community Care Supplies & Services - Adult
Solihull MBC,Adult Social Care,Adult Social Care,Autism West Midlands,01/06/2017,,2875.32,ASC - Domiciliary Care,321000 - Social Community Care Supplies & Services - Adult
Solihull MBC,Adult Social Care,Adult Social Care,Autism West Midlands,23/06/2017,,4409.04,ASC - Residential Care Permanent,321000 - Social Community Care Supplies & Services - Adult
Solihull MBC,Adult Social Care,Adult Social Care,Autism West Midlands,01/06/2017,,4409.04,ASC - Residential Care Permanent,321000 - Social Community Care Supplies & Services - Adult
Solihull MBC,Managed Growth and Communities,Highways & Transport Services,Automotive Leasing (Orders),08/06/2017,,210.80,Transport-Contract Hire,360000 - Public Transport
Solihull MBC,Managed Growth and Communities,Cultural & Related Services,Automotive Leasing (Orders),16/06/2017,,281.81,Transport-Contract Hire,360000 - Public Transport
Solihull MBC,Managed Growth and Communities,Cultural & Related Services,Automotive Leasing (Orders),22/06/2017,,297.37,Transport-Contract Hire,360000 - Public Transport
Solihull MBC,Managed Growth and Communities,Cultural & Related Services,Automotive Leasing (Orders),22/06/2017,,297.37,Transport-Contract Hire,360000 - Public Transport
Solihull MBC,Managed Growth and Communities,Highways & Transport Services,Automotive Leasing (Orders),13/06/2017,,236.78,Transport-Contract Hire,360000 - Public Transport
Solihull MBC,Managed Growth and Communities,Highways & Transport Services,Automotive Leasing (Orders),13/06/2017,,236.78,Transport-Contract Hire,360000 - Public Transport
Solihull MBC,Adult Social Care,Cultural & Related Services,Automotive Leasing (Orders),21/06/2017,,210.70,Transport-Contract Hire,360000 - Public Transport
Solihull MBC,Adult Social Care,Cultural & Related Services,Automotive Leasing (Orders),21/06/2017,,318.57,Transport-Contract Hire,360000 - Public Transport
Solihull MBC,Managed Growth and Communities,Environmental and Regulatory Services,Automotive Leasing (Orders),22/06/2017,,386.68,Transport-Contract Hire,360000 - Public Transport
Solihull MBC,Resources,Central Services to the Public,Automotive Leasing (Orders),20/06/2017,,211.54,Transport-Contract Hire,360000 - Public Transport
Solihull MBC,Adult Social Care,Cultural & Related Services,Automotive Leasing (Orders),22/06/2017,,210.70,Transport-Contract Hire,360000 - Public Transport
Solihull MBC,Adult Social Care,Cultural & Related Services,Automotive Leasing (Orders),22/06/2017,,318.57,Transport-Contract Hire,360000 - Public Transport
Solihull MBC,Managed Growth and Communities,Cultural & Related Services,Automotive Leasing (Orders),28/06/2017,,281.81,Transport-Contract Hire,360000 - Public Transport
Solihull MBC,Managed Growth and Communities,Cultural & Related Services,Automotive Leasing (Orders),28/06/2017,,297.37,Transport-Contract Hire,360000 - Public Transport
Solihull MBC,Managed Growth and Communities,Cultural & Related Services,Automotive Leasing (Orders),28/06/2017,,297.37,Transport-Contract Hire,360000 - Public Transport
Solihull MBC,Adult Social Care,Adult Social Care,Auxilio Care Ltd,13/06/2017,,7475.68,ASC - Supported Living Care Costs,Not Yet Classified
Solihull MBC,Adult Social Care,Adult Social Care,Auxilio Care Ltd,13/06/2017,,4464.00,ASC - Supported Living Care Costs,Not Yet Classified
Solihull MBC,Adult Social Care,Adult Social Care,Auxilio Care Ltd,13/06/2017,,5947.60,ASC - Supported Living Care Costs,Not Yet Classified
Solihull MBC,Adult Social Care,Adult Social Care,Auxilio Care Ltd,13/06/2017,,4764.48,ASC - Supported Living Care Costs,Not Yet Classified
Solihull MBC,Adult Social Care,Adult Social Care,Auxilio Care Ltd,13/06/2017,,3738.00,ASC - Supported Living Care Costs,Not Yet Classified
Solihull MBC,Adult Social Care,Adult Social Care,Auxilio Care Ltd,13/06/2017,,9506.00,ASC - Supported Living Care Costs,Not Yet Classified
Solihull MBC,Adult Social Care,Adult Social Care,Auxilio Care Ltd,13/06/2017,,7154.00,ASC - Supported Living Care Costs,Not Yet Classified
Solihull MBC,Adult Social Care,Adult Social Care,Avalon Court Care Centre,28/06/2017,,-1539.24,ASC - Residential Care Permanent,Not Yet Classified
Solihull MBC,Adult Social Care,Adult Social Care,Avalon Court Care Centre,28/06/2017,,-2052.32,ASC - Residential Care Permanent,Not Yet Classified
Solihull MBC,Adult Social Care,Adult Social Care,Avalon Court Care Centre,28/06/2017,,-2052.32,ASC - Residential Care Permanent,Not Yet Classified
Solihull MBC,Adult Social Care,Adult Social Care,Avalon Court Care Centre,28/06/2017,,-2052.32,ASC - Residential Care Permanent,Not Yet Classified
Solihull MBC,Adult Social Care,Adult Social Care,Avalon Court Care Centre,28/06/2017,,-2052.32,ASC - Residential Care Permanent,Not Yet Classified
Solihull MBC,Adult Social Care,Adult Social Care,Avalon Court Care Centre,28/06/2017,,-2052.32,ASC - Residential Care Permanent,Not Yet Classified
Solihull MBC,Adult Social Care,Adult Social Care,Avalon Court Care Centre,28/06/2017,,-2052.32,ASC - Residential Care Permanent,Not Yet Classified
Solihull MBC,Adult Social Care,Adult Social Care,Avalon Court Care Centre,28/06/2017,,-2052.32,ASC - Residential Care Permanent,Not Yet Classified
Solihull MBC,Adult Social Care,Adult Social Care,Avalon Court Care Centre,28/06/2017,,-2052.32,ASC - Residential Care Permanent,Not Yet Classified
Solihull MBC,Adult Social Care,Adult Social Care,Avalon Court Care Centre,28/06/2017,,-2052.32,ASC - Residential Care Permanent,Not Yet Classified
Solihull MBC,Adult Social Care,Adult Social Care,Avalon Court Care Centre,28/06/2017,,1542.12,ASC - Residential Care Permanent,Not Yet Classified
Solihull MBC,Adult Social Care,Adult Social Care,Avalon Court Care Centre,28/06/2017,,2052.00,ASC - Residential Care Permanent,Not Yet Classified
Solihull MBC,Adult Social Care,Adult Social Care,Avalon Court Care Centre,28/06/2017,,2052.00,ASC - Residential Care Permanent,Not Yet Classified
Solihull MBC,Adult Social Care,Adult Social Care,Avalon Court Care Centre,28/06/2017,,2052.00,ASC - Residential Care Permanent,Not Yet Classified
Solihull MBC,Adult Social Care,Adult Social Care,Avalon Court Care Centre,28/06/2017,,2052.00,ASC - Residential Care Permanent,Not Yet Classified
Solihull MBC,Adult Social Care,Adult Social Care,Avalon Court Care Centre,28/06/2017,,2052.00,ASC - Residential Care Permanent,Not Yet Classified
Solihull MBC,Adult Social Care,Adult Social Care,Avalon Court Care Centre,28/06/2017,,2052.00,ASC - Residential Care Permanent,Not Yet Classified
Solihull MBC,Adult Social Care,Adult Social Care,Avalon Court Care Centre,28/06/2017,,2052.00,ASC - Residential Care Permanent,Not Yet Classified
Solihull MBC,Adult Social Care,Adult Social Care,Avalon Court Care Centre,28/06/2017,,2052.00,ASC - Residential Care Permanent,Not Yet Classified
Solihull MBC,Adult Social Care,Adult Social Care,Avalon Court Care Centre,28/06/2017,,2052.00,ASC - Residential Care Permanent,Not Yet Classified
Solihull MBC,Adult Social Care,Adult Social Care,Avalon Court Care Centre,27/06/2017,,2135.04,ASC - Residential Care Permanent,Not Yet Classified
Solihull MBC,Resources,Central Services to the Public,Avant Garde Team Building Ltd,22/06/2017,,675.00,Training,Not Yet Classified
Solihull MBC,Resources - Non Monitored,Central Services to the Public,Avignon Management Ltd,15/06/2017,,-11666.67,Professional Fees,Not Yet Classified
Solihull MBC,Adult Social Care,Cultural & Related Services,Axiell Ltd,21/06/2017,,1130.44,IT Equipment & Software,270000 - Information Communication Technology
Solihull MBC,Adult Social Care,Cultural & Related Services,Axiell Ltd,21/06/2017,,1077.05,Materials,270000 - Information Communication Technology
Solihull MBC,Resources,Central Services to the Public,B & K Building Services Ltd,23/06/2017,,11397.79,Contractors,Not Yet Classified
Solihull MBC,Resources,Central Services to the Public,B & K Building Services Ltd,23/06/2017,,59921.49,Contractors,Not Yet Classified
Solihull MBC,Resources,Central Services to the Public,B & K Building Services Ltd,23/06/2017,,637.36,Contractors,Not Yet Classified
Solihull MBC,Resources,Central Services to the Public,B & K Building Services Ltd,23/06/2017,,10133.27,Contractors,Not Yet Classified
Solihull MBC,Adult Social Care,Adult Social Care,Badenoch & Clark,07/06/2017,,3550.00,Interim Management,171011 - Education - School Services
Solihull MBC,Adult Social Care,Adult Social Care,Badenoch & Clark,22/06/2017,,3550.00,Interim Management,171011 - Education - School Services
Solihull MBC,Adult Social Care,Adult Social Care,Badenoch & Clark,23/06/2017,,3550.00,Interim Management,171011 - Education - School Services
Solihull MBC,Resources,Central Services to the Public,Balfour Beatty,14/06/2017,,45243.55,Short Term Provisions - Other,Not Yet Classified
Solihull MBC,Managed Growth and Communities,Highways & Transport Services,Balfour Beatty Living Places Ltd,26/06/2017,,1.00,Other Contracted Services,"391400 - Works - Construction, Repair & Maintenance"
Solihull MBC,Managed Growth and Communities,Highways & Transport Services,Balfour Beatty Living Places Ltd,26/06/2017,,40.86,Other Contracted Services,"391400 - Works - Construction, Repair & Maintenance"
Solihull MBC,Managed Growth and Communities,Highways & Transport Services,Balfour Beatty Living Places Ltd,26/06/2017,,9.96,Other Contracted Services,"391400 - Works - Construction, Repair & Maintenance"
Solihull MBC,Managed Growth and Communities,Highways & Transport Services,Balfour Beatty Living Places Ltd,26/06/2017,,18453.02,Other Contracted Services,"391400 - Works - Construction, Repair & Maintenance"
Solihull MBC,Managed Growth and Communities,Highways & Transport Services,Balfour Beatty Living Places Ltd,26/06/2017,,251.05,Contractors,"391400 - Works - Construction, Repair & Maintenance"
Solihull MBC,Managed Growth and Communities,Highways & Transport Services,Balfour Beatty Living Places Ltd,26/06/2017,,49.82,Other Contracted Services,"391400 - Works - Construction, Repair & Maintenance"
Solihull MBC,Managed Growth and Communities,Highways & Transport Services,Balfour Beatty Living Places Ltd,26/06/2017,,134.28,Other Contracted Services,"391400 - Works - Construction, Repair & Maintenance"
Solihull MBC,Managed Growth and Communities,Highways & Transport Services,Balfour Beatty Living Places Ltd,26/06/2017,,29.89,Other Contracted Services,"391400 - Works - Construction, Repair & Maintenance"
Solihull MBC,Managed Growth and Communities,Highways & Transport Services,Balfour Beatty Living Places Ltd,26/06/2017,,9.96,Other Contracted Services,"391400 - Works - Construction, Repair & Maintenance"
Solihull MBC,Managed Growth and Communities,Highways & Transport Services,Balfour Beatty Living Places Ltd,26/06/2017,,9.96,Other Contracted Services,"391400 - Works - Construction, Repair & Maintenance"
Solihull MBC,Managed Growth and Communities,Highways & Transport Services,Balfour Beatty Living Places Ltd,26/06/2017,,9.96,Other Contracted Services,"391400 - Works - Construction, Repair & Maintenance"
Solihull MBC,Managed Growth and Communities,Highways & Transport Services,Balfour Beatty Living Places Ltd,26/06/2017,,1.00,Other Contracted Services,"391400 - Works - Construction, Repair & Maintenance"
Solihull MBC,Managed Growth and Communities,Highways & Transport Services,Balfour Beatty Living Places Ltd,26/06/2017,,1.00,Other Contracted Services,"391400 - Works - Construction, Repair & Maintenance"
Solihull MBC,Managed Growth and Communities,Highways & Transport Services,Balfour Beatty Living Places Ltd,26/06/2017,,1.00,Other Contracted Services,"391400 - Works - Construction, Repair & Maintenance"
Solihull MBC,Managed Growth and Communities,Highways & Transport Services,Balfour Beatty Living Places Ltd,26/06/2017,,16.03,Other Contracted Services,"391400 - Works - Construction, Repair & Maintenance"
Solihull MBC,Managed Growth and Communities,Highways & Transport Services,Balfour Beatty Living Places Ltd,26/06/2017,,44.76,Other Contracted Services,"391400 - Works - Construction, Repair & Maintenance"
Solihull MBC,Managed Growth and Communities,Highways & Transport Services,Balfour Beatty Living Places Ltd,26/06/2017,,9.96,Other Contracted Services,"391400 - Works - Construction, Repair & Maintenance"
Solihull MBC,Managed Growth and Communities,Highways & Transport Services,Balfour Beatty Living Places Ltd,26/06/2017,,69.05,Other Contracted Services,"391400 - Works - Construction, Repair & Maintenance"
Solihull MBC,Managed Growth and Communities,Highways & Transport Services,Balfour Beatty Living Places Ltd,26/06/2017,,59.78,Other Contracted Services,"391400 - Works - Construction, Repair & Maintenance"
Solihull MBC,Managed Growth and Communities,Highways & Transport Services,Balfour Beatty Living Places Ltd,26/06/2017,,39.86,Other Contracted Services,"391400 - Works - Construction, Repair & Maintenance"
Solihull MBC,Managed Growth and Communities,Highways & Transport Services,Balfour Beatty Living Places Ltd,26/06/2017,,185.82,Other Contracted Services,"391400 - Works - Construction, Repair & Maintenance"
Solihull MBC,Managed Growth and Communities,Highways & Transport Services,Balfour Beatty Living Places Ltd,26/06/2017,,9.96,Other Contracted Services,"391400 - Works - Construction, Repair & Maintenance"
Solihull MBC,Managed Growth and Communities,Highways & Transport Services,Balfour Beatty Living Places Ltd,26/06/2017,,194.29,Other Contracted Services,"391400 - Works - Construction, Repair & Maintenance"
Solihull MBC,Managed Growth and Communities,Highways & Transport Services,Balfour Beatty Living Places Ltd,26/06/2017,,10.96,Other Contracted Services,"391400 - Works - Construction, Repair & Maintenance"
Solihull MBC,Managed Growth and Communities,Highways & Transport Services,Balfour Beatty Living Places Ltd,26/06/2017,,116.48,Other Contracted Services,"391400 - Works - Construction, Repair & Maintenance"
Solihull MBC,Managed Growth and Communities,Highways & Transport Services,Balfour Beatty Living Places Ltd,26/06/2017,,9.96,Other Contracted Services,"391400 - Works - Construction, Repair & Maintenance"
Solihull MBC,Managed Growth and Communities,Highways & Transport Services,Balfour Beatty Living Places Ltd,26/06/2017,,50.82,Other Contracted Services,"391400 - Works - Construction, Repair & Maintenance"
Solihull MBC,Managed Growth and Communities,Highways & Transport Services,Balfour Beatty Living Places Ltd,26/06/2017,,219.78,Other Contracted Services,"391400 - Works - Construction, Repair & Maintenance"
Solihull MBC,Managed Growth and Communities,Highways & Transport Services,Balfour Beatty Living Places Ltd,26/06/2017,,19.93,Other Contracted Services,"391400 - Works - Construction, Repair & Maintenance"
Solihull MBC,Managed Growth and Communities,Highways & Transport Services,Balfour Beatty Living Places Ltd,26/06/2017,,283.29,Other Contracted Services,"391400 - Works - Construction, Repair & Maintenance"
Solihull MBC,Managed Growth and Communities,Highways & Transport Services,Balfour Beatty Living Places Ltd,26/06/2017,,404.70,Other Contracted Services,"391400 - Works - Construction, Repair & Maintenance"
Solihull MBC,Managed Growth and Communities,Highways & Transport Services,Balfour Beatty Living Places Ltd,26/06/2017,,59.78,Other Contracted Services,"391400 - Works - Construction, Repair & Maintenance"
Solihull MBC,Managed Growth and Communities,Highways & Transport Services,Balfour Beatty Living Places Ltd,26/06/2017,,1.00,Other Contracted Services,"391400 - Works - Construction, Repair & Maintenance"
Solihull MBC,Managed Growth and Communities,Highways & Transport Services,Balfour Beatty Living Places Ltd,26/06/2017,,47.27,Other Contracted Services,"391400 - Works - Construction, Repair & Maintenance"
Solihull MBC,Managed Growth and Communities,Highways & Transport Services,Balfour Beatty Living Places Ltd,26/06/2017,,54.02,Other Contracted Services,"391400 - Works - Construction, Repair & Maintenance"
Solihull MBC,Managed Growth and Communities,Highways & Transport Services,Balfour Beatty Living Places Ltd,26/06/2017,,1.00,Other Contracted Services,"391400 - Works - Construction, Repair & Maintenance"
Solihull MBC,Managed Growth and Communities,Highways & Transport Services,Balfour Beatty Living Places Ltd,26/06/2017,,1.00,Other Contracted Services,"391400 - Works - Construction, Repair & Maintenance"
Solihull MBC,Managed Growth and Communities,Highways & Transport Services,Balfour Beatty Living Places Ltd,26/06/2017,,39.86,Other Contracted Services,"391400 - Works - Construction, Repair & Maintenance"
Solihull MBC,Managed Growth and Communities,Highways & Transport Services,Balfour Beatty Living Places Ltd,26/06/2017,,134.68,Other Contracted Services,"391400 - Works - Construction, Repair & Maintenance"
Solihull MBC,Managed Growth and Communities,Highways & Transport Services,Balfour Beatty Living Places Ltd,26/06/2017,,1.00,Other Contracted Services,"391400 - Works - Construction, Repair & Maintenance"
Solihull MBC,Managed Growth and Communities,Highways & Transport Services,Balfour Beatty Living Places Ltd,26/06/2017,,48.98,Other Contracted Services,"391400 - Works - Construction, Repair & Maintenance"
Solihull MBC,Managed Growth and Communities,Highways & Transport Services,Balfour Beatty Living Places Ltd,26/06/2017,,9.96,Other Contracted Services,"391400 - Works - Construction, Repair & Maintenance"
Solihull MBC,Managed Growth and Communities,Highways & Transport Services,Balfour Beatty Living Places Ltd,26/06/2017,,52.01,Other Contracted Services,"391400 - Works - Construction, Repair & Maintenance"
Solihull MBC,Managed Growth and Communities,Highways & Transport Services,Balfour Beatty Living Places Ltd,26/06/2017,,9.96,Other Contracted Services,"391400 - Works - Construction, Repair & Maintenance"
Solihull MBC,Managed Growth and Communities,Highways & Transport Services,Balfour Beatty Living Places Ltd,26/06/2017,,159.43,Other Contracted Services,"391400 - Works - Construction, Repair & Maintenance"
Solihull MBC,Managed Growth and Communities,Highways & Transport Services,Balfour Beatty Living Places Ltd,26/06/2017,,22.39,Other Contracted Services,"391400 - Works - Construction, Repair & Maintenance"
Solihull MBC,Managed Growth and Communities,Highways & Transport Services,Balfour Beatty Living Places Ltd,26/06/2017,,22.39,Other Contracted Services,"391400 - Works - Construction, Repair & Maintenance"
Solihull MBC,Managed Growth and Communities,Highways & Transport Services,Balfour Beatty Living Places Ltd,26/06/2017,,9.96,Other Contracted Services,"391400 - Works - Construction, Repair & Maintenance"
Solihull MBC,Managed Growth and Communities,Highways & Transport Services,Balfour Beatty Living Places Ltd,26/06/2017,,156.52,Other Contracted Services,"391400 - Works - Construction, Repair & Maintenance"
Solihull MBC,Managed Growth and Communities,Highways & Transport Services,Balfour Beatty Living Places Ltd,26/06/2017,,14.23,Other Contracted Services,"391400 - Works - Construction, Repair & Maintenance"
Solihull MBC,Managed Growth and Communities,Highways & Transport Services,Balfour Beatty Living Places Ltd,26/06/2017,,15.90,Other Contracted Services,"391400 - Works - Construction, Repair & Maintenance"
Solihull MBC,Managed Growth and Communities,Highways & Transport Services,Balfour Beatty Living Places Ltd,26/06/2017,,6.07,Other Contracted Services,"391400 - Works - Construction, Repair & Maintenance"
Solihull MBC,Managed Growth and Communities,Highways & Transport Services,Balfour Beatty Living Places Ltd,26/06/2017,,85.39,Other Contracted Services,"391400 - Works - Construction, Repair & Maintenance"
Solihull MBC,Managed Growth and Communities,Highways & Transport Services,Balfour Beatty Living Places Ltd,26/06/2017,,69.05,Other Contracted Services,"391400 - Works - Construction, Repair & Maintenance"
Solihull MBC,Managed Growth and Communities,Highways & Transport Services,Balfour Beatty Living Places Ltd,26/06/2017,,123.21,Other Contracted Services,"391400 - Works - Construction, Repair & Maintenance"
Solihull MBC,Managed Growth and Communities,Highways & Transport Services,Balfour Beatty Living Places Ltd,26/06/2017,,340.08,Other Contracted Services,"391400 - Works - Construction, Repair & Maintenance"
Solihull MBC,Managed Growth and Communities,Highways & Transport Services,Balfour Beatty Living Places Ltd,26/06/2017,,26.83,Other Contracted Services,"391400 - Works - Construction, Repair & Maintenance"
Solihull MBC,Managed Growth and Communities,Highways & Transport Services,Balfour Beatty Living Places Ltd,26/06/2017,,22.38,Other Contracted Services,"391400 - Works - Construction, Repair & Maintenance"
Solihull MBC,Managed Growth and Communities,Highways & Transport Services,Balfour Beatty Living Places Ltd,26/06/2017,,19.93,Other Contracted Services,"391400 - Works - Construction, Repair & Maintenance"
Solihull MBC,Managed Growth and Communities,Highways & Transport Services,Balfour Beatty Living Places Ltd,26/06/2017,,46.59,Other Contracted Services,"391400 - Works - Construction, Repair & Maintenance"
Solihull MBC,Managed Growth and Communities,Highways & Transport Services,Balfour Beatty Living Places Ltd,26/06/2017,,22.38,Other Contracted Services,"391400 - Works - Construction, Repair & Maintenance"
Solihull MBC,Managed Growth and Communities,Highways & Transport Services,Balfour Beatty Living Places Ltd,26/06/2017,,111.60,Other Contracted Services,"391400 - Works - Construction, Repair & Maintenance"
Solihull MBC,Managed Growth and Communities,Highways & Transport Services,Balfour Beatty Living Places Ltd,26/06/2017,,111.60,Other Contracted Services,"391400 - Works - Construction, Repair & Maintenance"
Solihull MBC,Managed Growth and Communities,Highways & Transport Services,Balfour Beatty Living Places Ltd,26/06/2017,,191.23,Other Contracted Services,"391400 - Works - Construction, Repair & Maintenance"
Solihull MBC,Managed Growth and Communities,Highways & Transport Services,Balfour Beatty Living Places Ltd,26/06/2017,,111.60,Other Contracted Services,"391400 - Works - Construction, Repair & Maintenance"
Solihull MBC,Managed Growth and Communities,Highways & Transport Services,Balfour Beatty Living Places Ltd,26/06/2017,,22.44,Other Contracted Services,"391400 - Works - Construction, Repair & Maintenance"
Solihull MBC,Managed Growth and Communities,Highways & Transport Services,Balfour Beatty Living Places Ltd,26/06/2017,,621.45,Other Contracted Services,"391400 - Works - Construction, Repair & Maintenance"
Solihull MBC,Managed Growth and Communities,Highways & Transport Services,Balfour Beatty Living Places Ltd,26/06/2017,,175.95,Other Contracted Services,"391400 - Works - Construction, Repair & Maintenance"
Solihull MBC,Managed Growth and Communities,Highways & Transport Services,Balfour Beatty Living Places Ltd,26/06/2017,,79.68,Other Contracted Services,"391400 - Works - Construction, Repair & Maintenance"
Solihull MBC,Managed Growth and Communities,Highways & Transport Services,Balfour Beatty Living Places Ltd,26/06/2017,,133.74,Other Contracted Services,"391400 - Works - Construction, Repair & Maintenance"
Solihull MBC,Managed Growth and Communities,Highways & Transport Services,Balfour Beatty Living Places Ltd,26/06/2017,,42.51,Other Contracted Services,"391400 - Works - Construction, Repair & Maintenance"
Solihull MBC,Managed Growth and Communities,Highways & Transport Services,Balfour Beatty Living Places Ltd,26/06/2017,,111.60,Other Contracted Services,"391400 - Works - Construction, Repair & Maintenance"
Solihull MBC,Managed Growth and Communities,Highways & Transport Services,Balfour Beatty Living Places Ltd,26/06/2017,,23.01,Other Contracted Services,"391400 - Works - Construction, Repair & Maintenance"
Solihull MBC,Managed Growth and Communities,Highways & Transport Services,Balfour Beatty Living Places Ltd,26/06/2017,,27.01,Other Contracted Services,"391400 - Works - Construction, Repair & Maintenance"
Solihull MBC,Managed Growth and Communities,Highways & Transport Services,Balfour Beatty Living Places Ltd,26/06/2017,,86.42,Other Contracted Services,"391400 - Works - Construction, Repair & Maintenance"
Solihull MBC,Managed Growth and Communities,Highways & Transport Services,Balfour Beatty Living Places Ltd,26/06/2017,,22.39,Other Contracted Services,"391400 - Works - Construction, Repair & Maintenance"
Solihull MBC,Managed Growth and Communities,Highways & Transport Services,Balfour Beatty Living Places Ltd,26/06/2017,,162.06,Other Contracted Services,"391400 - Works - Construction, Repair & Maintenance"
Solihull MBC,Managed Growth and Communities,Highways & Transport Services,Balfour Beatty Living Places Ltd,26/06/2017,,86.58,Other Contracted Services,"391400 - Works - Construction, Repair & Maintenance"
Solihull MBC,Managed Growth and Communities,Highways & Transport Services,Balfour Beatty Living Places Ltd,26/06/2017,,186.60,Other Contracted Services,"391400 - Works - Construction, Repair & Maintenance"
Solihull MBC,Managed Growth and Communities,Highways & Transport Services,Balfour Beatty Living Places Ltd,26/06/2017,,23.01,Other Contracted Services,"391400 - Works - Construction, Repair & Maintenance"
Solihull MBC,Managed Growth and Communities,Highways & Transport Services,Balfour Beatty Living Places Ltd,26/06/2017,,49.56,Other Contracted Services,"391400 - Works - Construction, Repair & Maintenance"
Solihull MBC,Managed Growth and Communities,Highways & Transport Services,Balfour Beatty Living Places Ltd,26/06/2017,,179.04,Other Contracted Services,"391400 - Works - Construction, Repair & Maintenance"
Solihull MBC,Managed Growth and Communities,Highways & Transport Services,Balfour Beatty Living Places Ltd,26/06/2017,,44.76,Other Contracted Services,"391400 - Works - Construction, Repair & Maintenance"
Solihull MBC,Managed Growth and Communities,Highways & Transport Services,Balfour Beatty Living Places Ltd,26/06/2017,,19.93,Other Contracted Services,"391400 - Works - Construction, Repair & Maintenance"
Solihull MBC,Managed Growth and Communities,Highways & Transport Services,Balfour Beatty Living Places Ltd,26/06/2017,,186.60,Other Contracted Services,"391400 - Works - Construction, Repair & Maintenance"
Solihull MBC,Managed Growth and Communities,Highways & Transport Services,Balfour Beatty Living Places Ltd,26/06/2017,,69.05,Other Contracted Services,"391400 - Works - Construction, Repair & Maintenance"
Solihull MBC,Managed Growth and Communities,Highways & Transport Services,Balfour Beatty Living Places Ltd,26/06/2017,,2.31,Other Contracted Services,"391400 - Works - Construction, Repair & Maintenance"
Solihull MBC,Managed Growth and Communities,Highways & Transport Services,Balfour Beatty Living Places Ltd,26/06/2017,,274.36,Other Contracted Services,"391400 - Works - Construction, Repair & Maintenance"
Solihull MBC,Managed Growth and Communities,Highways & Transport Services,Balfour Beatty Living Places Ltd,26/06/2017,,2639.06,Other Contracted Services,"391400 - Works - Construction, Repair & Maintenance"
Solihull MBC,Managed Growth and Communities,Highways & Transport Services,Balfour Beatty Living Places Ltd,26/06/2017,,35.92,Other Contracted Services,"391400 - Works - Construction, Repair & Maintenance"
Solihull MBC,Managed Growth and Communities,Highways & Transport Services,Balfour Beatty Living Places Ltd,26/06/2017,,69.05,Other Contracted Services,"391400 - Works - Construction, Repair & Maintenance"
Solihull MBC,Managed Growth and Communities,Highways & Transport Services,Balfour Beatty Living Places Ltd,26/06/2017,,94.26,Other Contracted Services,"391400 - Works - Construction, Repair & Maintenance"
Solihull MBC,Managed Growth and Communities,Highways & Transport Services,Balfour Beatty Living Places Ltd,26/06/2017,,126.40,Other Contracted Services,"391400 - Works - Construction, Repair & Maintenance"
Solihull MBC,Managed Growth and Communities,Highways & Transport Services,Balfour Beatty Living Places Ltd,26/06/2017,,37.01,Other Contracted Services,"391400 - Works - Construction, Repair & Maintenance"
Solihull MBC,Managed Growth and Communities,Highways & Transport Services,Balfour Beatty Living Places Ltd,26/06/2017,,22.39,Other Contracted Services,"391400 - Works - Construction, Repair & Maintenance"
Solihull MBC,Managed Growth and Communities,Highways & Transport Services,Balfour Beatty Living Places Ltd,26/06/2017,,22.39,Other Contracted Services,"391400 - Works - Construction, Repair & Maintenance"
Solihull MBC,Managed Growth and Communities,Highways & Transport Services,Balfour Beatty Living Places Ltd,26/06/2017,,100.49,Other Contracted Services,"391400 - Works - Construction, Repair & Maintenance"
Solihull MBC,Managed Growth and Communities,Highways & Transport Services,Balfour Beatty Living Places Ltd,26/06/2017,,44.76,Other Contracted Services,"391400 - Works - Construction, Repair & Maintenance"
Solihull MBC,Managed Growth and Communities,Highways & Transport Services,Balfour Beatty Living Places Ltd,26/06/2017,,74.43,Other Contracted Services,"391400 - Works - Construction, Repair & Maintenance"
Solihull MBC,Managed Growth and Communities,Highways & Transport Services,Balfour Beatty Living Places Ltd,26/06/2017,,22.39,Other Contracted Services,"391400 - Works - Construction, Repair & Maintenance"
Solihull MBC,Managed Growth and Communities,Highways & Transport Services,Balfour Beatty Living Places Ltd,26/06/2017,,17.91,Other Contracted Services,"391400 - Works - Construction, Repair & Maintenance"
Solihull MBC,Managed Growth and Communities,Highways & Transport Services,Balfour Beatty Living Places Ltd,26/06/2017,,17.91,Other Contracted Services,"391400 - Works - Construction, Repair & Maintenance"
Solihull MBC,Managed Growth and Communities,Highways & Transport Services,Balfour Beatty Living Places Ltd,26/06/2017,,66.27,Other Contracted Services,"391400 - Works - Construction, Repair & Maintenance"
Solihull MBC,Managed Growth and Communities,Highways & Transport Services,Balfour Beatty Living Places Ltd,26/06/2017,,44.76,Other Contracted Services,"391400 - Works - Construction, Repair & Maintenance"
Solihull MBC,Managed Growth and Communities,Highways & Transport Services,Balfour Beatty Living Places Ltd,26/06/2017,,62.69,Other Contracted Services,"391400 - Works - Construction, Repair & Maintenance"
Solihull MBC,Managed Growth and Communities,Highways & Transport Services,Balfour Beatty Living Places Ltd,26/06/2017,,32.24,Other Contracted Services,"391400 - Works - Construction, Repair & Maintenance"
Solihull MBC,Managed Growth and Communities,Highways & Transport Services,Balfour Beatty Living Places Ltd,26/06/2017,,17.91,Other Contracted Services,"391400 - Works - Construction, Repair & Maintenance"
Solihull MBC,Managed Growth and Communities,Highways & Transport Services,Balfour Beatty Living Places Ltd,26/06/2017,,25.76,Other Contracted Services,"391400 - Works - Construction, Repair & Maintenance"
Solihull MBC,Managed Growth and Communities,Highways & Transport Services,Balfour Beatty Living Places Ltd,26/06/2017,,92090.81,Contractors,"391400 - Works - Construction, Repair & Maintenance"
Solihull MBC,Managed Growth and Communities,Highways & Transport Services,Balfour Beatty Living Places Ltd,26/06/2017,,223.20,Other Contracted Services,"391400 - Works - Construction, Repair & Maintenance"
Solihull MBC,Managed Growth and Communities,Highways & Transport Services,Balfour Beatty Living Places Ltd,26/06/2017,,105.51,Other Contracted Services,"391400 - Works - Construction, Repair & Maintenance"
Solihull MBC,Managed Growth and Communities,Highways & Transport Services,Balfour Beatty Living Places Ltd,26/06/2017,,293.88,Other Contracted Services,"391400 - Works - Construction, Repair & Maintenance"
Solihull MBC,Managed Growth and Communities,Highways & Transport Services,Balfour Beatty Living Places Ltd,26/06/2017,,74.43,Other Contracted Services,"391400 - Works - Construction, Repair & Maintenance"
Solihull MBC,Managed Growth and Communities,Highways & Transport Services,Balfour Beatty Living Places Ltd,26/06/2017,,86.58,Other Contracted Services,"391400 - Works - Construction, Repair & Maintenance"
Solihull MBC,Managed Growth and Communities,Highways & Transport Services,Balfour Beatty Living Places Ltd,26/06/2017,,53.73,Other Contracted Services,"391400 - Works - Construction, Repair & Maintenance"
Solihull MBC,Managed Growth and Communities,Highways & Transport Services,Balfour Beatty Living Places Ltd,26/06/2017,,44.76,Other Contracted Services,"391400 - Works - Construction, Repair & Maintenance"
Solihull MBC,Managed Growth and Communities,Highways & Transport Services,Balfour Beatty Living Places Ltd,26/06/2017,,237.63,Other Contracted Services,"391400 - Works - Construction, Repair & Maintenance"
Solihull MBC,Managed Growth and Communities,Highways & Transport Services,Balfour Beatty Living Places Ltd,26/06/2017,,17.91,Other Contracted Services,"391400 - Works - Construction, Repair & Maintenance"
Solihull MBC,Managed Growth and Communities,Highways & Transport Services,Balfour Beatty Living Places Ltd,26/06/2017,,111.65,Other Contracted Services,"391400 - Works - Construction, Repair & Maintenance"
Solihull MBC,Managed Growth and Communities,Highways & Transport Services,Balfour Beatty Living Places Ltd,26/06/2017,,77.96,Other Contracted Services,"391400 - Works - Construction, Repair & Maintenance"
Solihull MBC,Managed Growth and Communities,Highways & Transport Services,Balfour Beatty Living Places Ltd,26/06/2017,,75.04,Other Contracted Services,"391400 - Works - Construction, Repair & Maintenance"
Solihull MBC,Managed Growth and Communities,Highways & Transport Services,Balfour Beatty Living Places Ltd,26/06/2017,,121.24,Other Contracted Services,"391400 - Works - Construction, Repair & Maintenance"
Solihull MBC,Managed Growth and Communities,Highways & Transport Services,Balfour Beatty Living Places Ltd,26/06/2017,,35.96,Other Contracted Services,"391400 - Works - Construction, Repair & Maintenance"
Solihull MBC,Managed Growth and Communities,Highways & Transport Services,Balfour Beatty Living Places Ltd,26/06/2017,,734.86,Other Contracted Services,"391400 - Works - Construction, Repair & Maintenance"
Solihull MBC,Managed Growth and Communities,Highways & Transport Services,Balfour Beatty Living Places Ltd,26/06/2017,,9.96,Other Contracted Services,"391400 - Works - Construction, Repair & Maintenance"
Solihull MBC,Managed Growth and Communities,Highways & Transport Services,Balfour Beatty Living Places Ltd,26/06/2017,,148.60,Other Contracted Services,"391400 - Works - Construction, Repair & Maintenance"
Solihull MBC,Managed Growth and Communities,Highways & Transport Services,Balfour Beatty Living Places Ltd,26/06/2017,,151.27,Other Contracted Services,"391400 - Works - Construction, Repair & Maintenance"
Solihull MBC,Managed Growth and Communities,Highways & Transport Services,Balfour Beatty Living Places Ltd,26/06/2017,,6.93,Other Contracted Services,"391400 - Works - Construction, Repair & Maintenance"
Solihull MBC,Managed Growth and Communities,Highways & Transport Services,Balfour Beatty Living Places Ltd,26/06/2017,,76.96,Other Contracted Services,"391400 - Works - Construction, Repair & Maintenance"
Solihull MBC,Managed Growth and Communities,Highways & Transport Services,Balfour Beatty Living Places Ltd,26/06/2017,,125.06,Other Contracted Services,"391400 - Works - Construction, Repair & Maintenance"
Solihull MBC,Managed Growth and Communities,Highways & Transport Services,Balfour Beatty Living Places Ltd,26/06/2017,,233.95,Other Contracted Services,"391400 - Works - Construction, Repair & Maintenance"
Solihull MBC,Managed Growth and Communities,Highways & Transport Services,Balfour Beatty Living Places Ltd,26/06/2017,,6.07,Other Contracted Services,"391400 - Works - Construction, Repair & Maintenance"
Solihull MBC,Managed Growth and Communities,Highways & Transport Services,Balfour Beatty Living Places Ltd,26/06/2017,,316.69,Other Contracted Services,"391400 - Works - Construction, Repair & Maintenance"
Solihull MBC,Managed Growth and Communities,Highways & Transport Services,Balfour Beatty Living Places Ltd,26/06/2017,,79.92,Other Contracted Services,"391400 - Works - Construction, Repair & Maintenance"
Solihull MBC,Managed Growth and Communities,Highways & Transport Services,Balfour Beatty Living Places Ltd,26/06/2017,,111.60,Other Contracted Services,"391400 - Works - Construction, Repair & Maintenance"
Solihull MBC,Managed Growth and Communities,Highways & Transport Services,Balfour Beatty Living Places Ltd,26/06/2017,,25.00,Other Contracted Services,"391400 - Works - Construction, Repair & Maintenance"
Solihull MBC,Managed Growth and Communities,Highways & Transport Services,Balfour Beatty Living Places Ltd,26/06/2017,,7.70,Other Contracted Services,"391400 - Works - Construction, Repair & Maintenance"
Solihull MBC,Managed Growth and Communities,Highways & Transport Services,Balfour Beatty Living Places Ltd,26/06/2017,,3.46,Other Contracted Services,"391400 - Works - Construction, Repair & Maintenance"
Solihull MBC,Managed Growth and Communities,Highways & Transport Services,Balfour Beatty Living Places Ltd,26/06/2017,,9.92,Other Contracted Services,"391400 - Works - Construction, Repair & Maintenance"
Solihull MBC,Managed Growth and Communities,Highways & Transport Services,Balfour Beatty Living Places Ltd,26/06/2017,,113.26,Other Contracted Services,"391400 - Works - Construction, Repair & Maintenance"
Solihull MBC,Managed Growth and Communities,Highways & Transport Services,Balfour Beatty Living Places Ltd,26/06/2017,,5.77,Other Contracted Services,"391400 - Works - Construction, Repair & Maintenance"
Solihull MBC,Managed Growth and Communities,Highways & Transport Services,Balfour Beatty Living Places Ltd,26/06/2017,,19.24,Other Contracted Services,"391400 - Works - Construction, Repair & Maintenance"
Solihull MBC,Managed Growth and Communities,Highways & Transport Services,Balfour Beatty Living Places Ltd,26/06/2017,,27.01,Other Contracted Services,"391400 - Works - Construction, Repair & Maintenance"
Solihull MBC,Managed Growth and Communities,Highways & Transport Services,Balfour Beatty Living Places Ltd,26/06/2017,,19.24,Other Contracted Services,"391400 - Works - Construction, Repair & Maintenance"
Solihull MBC,Managed Growth and Communities,Highways & Transport Services,Balfour Beatty Living Places Ltd,26/06/2017,,3.46,Other Contracted Services,"391400 - Works - Construction, Repair & Maintenance"
Solihull MBC,Managed Growth and Communities,Highways & Transport Services,Balfour Beatty Living Places Ltd,26/06/2017,,9.56,Other Contracted Services,"391400 - Works - Construction, Repair & Maintenance"
Solihull MBC,Managed Growth and Communities,Highways & Transport Services,Balfour Beatty Living Places Ltd,26/06/2017,,19.24,Other Contracted Services,"391400 - Works - Construction, Repair & Maintenance"
Solihull MBC,Managed Growth and Communities,Highways & Transport Services,Balfour Beatty Living Places Ltd,26/06/2017,,10.39,Other Contracted Services,"391400 - Works - Construction, Repair & Maintenance"
Solihull MBC,Managed Growth and Communities,Highways & Transport Services,Balfour Beatty Living Places Ltd,26/06/2017,,1.00,Other Contracted Services,"391400 - Works - Construction, Repair & Maintenance"
Solihull MBC,Managed Growth and Communities,Highways & Transport Services,Balfour Beatty Living Places Ltd,26/06/2017,,24.81,Other Contracted Services,"391400 - Works - Construction, Repair & Maintenance"
Solihull MBC,Managed Growth and Communities,Highways & Transport Services,Balfour Beatty Living Places Ltd,26/06/2017,,38.48,Other Contracted Services,"391400 - Works - Construction, Repair & Maintenance"
Solihull MBC,Managed Growth and Communities,Highways & Transport Services,Balfour Beatty Living Places Ltd,26/06/2017,,9.96,Other Contracted Services,"391400 - Works - Construction, Repair & Maintenance"
Solihull MBC,Managed Growth and Communities,Highways & Transport Services,Balfour Beatty Living Places Ltd,26/06/2017,,414.30,Other Contracted Services,"391400 - Works - Construction, Repair & Maintenance"
Solihull MBC,Managed Growth and Communities,Highways & Transport Services,Balfour Beatty Living Places Ltd,26/06/2017,,27.70,Other Contracted Services,"391400 - Works - Construction, Repair & Maintenance"
Solihull MBC,Managed Growth and Communities,Highways & Transport Services,Balfour Beatty Living Places Ltd,26/06/2017,,195.92,Other Contracted Services,"391400 - Works - Construction, Repair & Maintenance"
Solihull MBC,Managed Growth and Communities,Highways & Transport Services,Balfour Beatty Living Places Ltd,26/06/2017,,11.54,Other Contracted Services,"391400 - Works - Construction, Repair & Maintenance"
Solihull MBC,Managed Growth and Communities,Highways & Transport Services,Balfour Beatty Living Places Ltd,26/06/2017,,11.54,Other Contracted Services,"391400 - Works - Construction, Repair & Maintenance"
Solihull MBC,Managed Growth and Communities,Highways & Transport Services,Balfour Beatty Living Places Ltd,26/06/2017,,107.87,Other Contracted Services,"391400 - Works - Construction, Repair & Maintenance"
Solihull MBC,Managed Growth and Communities,Highways & Transport Services,Balfour Beatty Living Places Ltd,26/06/2017,,1.73,Other Contracted Services,"391400 - Works - Construction, Repair & Maintenance"
Solihull MBC,Managed Growth and Communities,Highways & Transport Services,Balfour Beatty Living Places Ltd,26/06/2017,,24.81,Other Contracted Services,"391400 - Works - Construction, Repair & Maintenance"
Solihull MBC,Managed Growth and Communities,Highways & Transport Services,Balfour Beatty Living Places Ltd,26/06/2017,,107.87,Other Contracted Services,"391400 - Works - Construction, Repair & Maintenance"
Solihull MBC,Managed Growth and Communities,Highways & Transport Services,Balfour Beatty Living Places Ltd,26/06/2017,,107.87,Other Contracted Services,"391400 - Works - Construction, Repair & Maintenance"
Solihull MBC,Managed Growth and Communities,Highways & Transport Services,Balfour Beatty Living Places Ltd,26/06/2017,,39.28,Other Contracted Services,"391400 - Works - Construction, Repair & Maintenance"
Solihull MBC,Managed Growth and Communities,Highways & Transport Services,Balfour Beatty Living Places Ltd,26/06/2017,,6.07,Other Contracted Services,"391400 - Works - Construction, Repair & Maintenance"
Solihull MBC,Managed Growth and Communities,Highways & Transport Services,Balfour Beatty Living Places Ltd,26/06/2017,,6.07,Other Contracted Services,"391400 - Works - Construction, Repair & Maintenance"
Solihull MBC,Managed Growth and Communities,Highways & Transport Services,Balfour Beatty Living Places Ltd,26/06/2017,,107.87,Other Contracted Services,"391400 - Works - Construction, Repair & Maintenance"
Solihull MBC,Managed Growth and Communities,Highways & Transport Services,Balfour Beatty Living Places Ltd,26/06/2017,,49.62,Other Contracted Services,"391400 - Works - Construction, Repair & Maintenance"
Solihull MBC,Managed Growth and Communities,Highways & Transport Services,Balfour Beatty Living Places Ltd,26/06/2017,,19.24,Other Contracted Services,"391400 - Works - Construction, Repair & Maintenance"
Solihull MBC,Managed Growth and Communities,Highways & Transport Services,Balfour Beatty Living Places Ltd,26/06/2017,,98.87,Other Contracted Services,"391400 - Works - Construction, Repair & Maintenance"
Solihull MBC,Managed Growth and Communities,Highways & Transport Services,Balfour Beatty Living Places Ltd,26/06/2017,,44.76,Other Contracted Services,"391400 - Works - Construction, Repair & Maintenance"
Solihull MBC,Managed Growth and Communities,Highways & Transport Services,Balfour Beatty Living Places Ltd,26/06/2017,,44.76,Other Contracted Services,"391400 - Works - Construction, Repair & Maintenance"
Solihull MBC,Managed Growth and Communities,Highways & Transport Services,Balfour Beatty Living Places Ltd,26/06/2017,,9.62,Other Contracted Services,"391400 - Works - Construction, Repair & Maintenance"
Solihull MBC,Managed Growth and Communities,Highways & Transport Services,Balfour Beatty Living Places Ltd,26/06/2017,,94.03,Other Contracted Services,"391400 - Works - Construction, Repair & Maintenance"
Solihull MBC,Managed Growth and Communities,Highways & Transport Services,Balfour Beatty Living Places Ltd,26/06/2017,,55.82,Other Contracted Services,"391400 - Works - Construction, Repair & Maintenance"
Solihull MBC,Managed Growth and Communities,Highways & Transport Services,Balfour Beatty Living Places Ltd,26/06/2017,,129.44,Other Contracted Services,"391400 - Works - Construction, Repair & Maintenance"
Solihull MBC,Managed Growth and Communities,Highways & Transport Services,Balfour Beatty Living Places Ltd,26/06/2017,,139.65,Other Contracted Services,"391400 - Works - Construction, Repair & Maintenance"
Solihull MBC,Managed Growth and Communities,Highways & Transport Services,Balfour Beatty Living Places Ltd,26/06/2017,,24.81,Other Contracted Services,"391400 - Works - Construction, Repair & Maintenance"
Solihull MBC,Managed Growth and Communities,Highways & Transport Services,Balfour Beatty Living Places Ltd,26/06/2017,,269.36,Other Contracted Services,"391400 - Works - Construction, Repair & Maintenance"
Solihull MBC,Managed Growth and Communities,Highways & Transport Services,Balfour Beatty Living Places Ltd,26/06/2017,,22.39,Other Contracted Services,"391400 - Works - Construction, Repair & Maintenance"
Solihull MBC,Managed Growth and Communities,Highways & Transport Services,Balfour Beatty Living Places Ltd,26/06/2017,,9.62,Other Contracted Services,"391400 - Works - Construction, Repair & Maintenance"
Solihull MBC,Managed Growth and Communities,Highways & Transport Services,Balfour Beatty Living Places Ltd,26/06/2017,,69.05,Other Contracted Services,"391400 - Works - Construction, Repair & Maintenance"
Solihull MBC,Managed Growth and Communities,Highways & Transport Services,Balfour Beatty Living Places Ltd,26/06/2017,,1040.67,Contractors,"391400 - Works - Construction, Repair & Maintenance"
Solihull MBC,Managed Growth and Communities,Highways & Transport Services,Balfour Beatty Living Places Ltd,26/06/2017,,28.86,Other Contracted Services,"391400 - Works - Construction, Repair & Maintenance"
Solihull MBC,Managed Growth and Communities,Highways & Transport Services,Balfour Beatty Living Places Ltd,26/06/2017,,3.42,Other Contracted Services,"391400 - Works - Construction, Repair & Maintenance"
Solihull MBC,Managed Growth and Communities,Highways & Transport Services,Balfour Beatty Living Places Ltd,26/06/2017,,44.76,Other Contracted Services,"391400 - Works - Construction, Repair & Maintenance"
Solihull MBC,Managed Growth and Communities,Highways & Transport Services,Balfour Beatty Living Places Ltd,26/06/2017,,69.05,Other Contracted Services,"391400 - Works - Construction, Repair & Maintenance"
Solihull MBC,Managed Growth and Communities,Highways & Transport Services,Balfour Beatty Living Places Ltd,26/06/2017,,17.11,Other Contracted Services,"391400 - Works - Construction, Repair & Maintenance"
Solihull MBC,Managed Growth and Communities,Highways & Transport Services,Balfour Beatty Living Places Ltd,26/06/2017,,99.24,Other Contracted Services,"391400 - Works - Construction, Repair & Maintenance"
Solihull MBC,Managed Growth and Communities,Highways & Transport Services,Balfour Beatty Living Places Ltd,26/06/2017,,83.70,Other Contracted Services,"391400 - Works - Construction, Repair & Maintenance"
Solihull MBC,Managed Growth and Communities,Highways & Transport Services,Balfour Beatty Living Places Ltd,26/06/2017,,103.55,Other Contracted Services,"391400 - Works - Construction, Repair & Maintenance"
Solihull MBC,Managed Growth and Communities,Highways & Transport Services,Balfour Beatty Living Places Ltd,26/06/2017,,44.78,Other Contracted Services,"391400 - Works - Construction, Repair & Maintenance"
Solihull MBC,Managed Growth and Communities,Highways & Transport Services,Balfour Beatty Living Places Ltd,26/06/2017,,175.88,Contractors,"391400 - Works - Construction, Repair & Maintenance"
Solihull MBC,Managed Growth and Communities,Highways & Transport Services,Balfour Beatty Living Places Ltd,26/06/2017,,129.33,Other Contracted Services,"391400 - Works - Construction, Repair & Maintenance"
Solihull MBC,Managed Growth and Communities,Highways & Transport Services,Balfour Beatty Living Places Ltd,26/06/2017,,97.08,Other Contracted Services,"391400 - Works - Construction, Repair & Maintenance"
Solihull MBC,Managed Growth and Communities,Highways & Transport Services,Balfour Beatty Living Places Ltd,26/06/2017,,89.52,Other Contracted Services,"391400 - Works - Construction, Repair & Maintenance"
Solihull MBC,Managed Growth and Communities,Highways & Transport Services,Balfour Beatty Living Places Ltd,26/06/2017,,7.07,Other Contracted Services,"391400 - Works - Construction, Repair & Maintenance"
Solihull MBC,Managed Growth and Communities,Highways & Transport Services,Balfour Beatty Living Places Ltd,26/06/2017,,7.70,Other Contracted Services,"391400 - Works - Construction, Repair & Maintenance"
Solihull MBC,Managed Growth and Communities,Highways & Transport Services,Balfour Beatty Living Places Ltd,26/06/2017,,21.55,Other Contracted Services,"391400 - Works - Construction, Repair & Maintenance"
Solihull MBC,Managed Growth and Communities,Highways & Transport Services,Balfour Beatty Living Places Ltd,26/06/2017,,41.85,Other Contracted Services,"391400 - Works - Construction, Repair & Maintenance"
Solihull MBC,Managed Growth and Communities,Highways & Transport Services,Balfour Beatty Living Places Ltd,26/06/2017,,34.05,Other Contracted Services,"391400 - Works - Construction, Repair & Maintenance"
Solihull MBC,Managed Growth and Communities,Highways & Transport Services,Balfour Beatty Living Places Ltd,26/06/2017,,111.60,Other Contracted Services,"391400 - Works - Construction, Repair & Maintenance"
Solihull MBC,Managed Growth and Communities,Highways & Transport Services,Balfour Beatty Living Places Ltd,26/06/2017,,6.45,Other Contracted Services,"391400 - Works - Construction, Repair & Maintenance"
Solihull MBC,Managed Growth and Communities,Highways & Transport Services,Balfour Beatty Living Places Ltd,26/06/2017,,91.83,Other Contracted Services,"391400 - Works - Construction, Repair & Maintenance"
Solihull MBC,Managed Growth and Communities,Highways & Transport Services,Balfour Beatty Living Places Ltd,26/06/2017,,111.60,Other Contracted Services,"391400 - Works - Construction, Repair & Maintenance"
Solihull MBC,Managed Growth and Communities,Highways & Transport Services,Balfour Beatty Living Places Ltd,26/06/2017,,60.60,Other Contracted Services,"391400 - Works - Construction, Repair & Maintenance"
Solihull MBC,Managed Growth and Communities,Highways & Transport Services,Balfour Beatty Living Places Ltd,26/06/2017,,17.56,Other Contracted Services,"391400 - Works - Construction, Repair & Maintenance"
Solihull MBC,Managed Growth and Communities,Highways & Transport Services,Balfour Beatty Living Places Ltd,26/06/2017,,177.10,Other Contracted Services,"391400 - Works - Construction, Repair & Maintenance"
Solihull MBC,Managed Growth and Communities,Highways & Transport Services,Balfour Beatty Living Places Ltd,26/06/2017,,9.96,Other Contracted Services,"391400 - Works - Construction, Repair & Maintenance"
Solihull MBC,Managed Growth and Communities,Highways & Transport Services,Balfour Beatty Living Places Ltd,26/06/2017,,10.96,Other Contracted Services,"391400 - Works - Construction, Repair & Maintenance"
Solihull MBC,Managed Growth and Communities,Highways & Transport Services,Balfour Beatty Living Places Ltd,26/06/2017,,9.96,Other Contracted Services,"391400 - Works - Construction, Repair & Maintenance"
Solihull MBC,Managed Growth and Communities,Highways & Transport Services,Balfour Beatty Living Places Ltd,26/06/2017,,9.96,Other Contracted Services,"391400 - Works - Construction, Repair & Maintenance"
Solihull MBC,Managed Growth and Communities,Highways & Transport Services,Balfour Beatty Living Places Ltd,26/06/2017,,13.50,Other Contracted Services,"391400 - Works - Construction, Repair & Maintenance"
Solihull MBC,Managed Growth and Communities,Highways & Transport Services,Balfour Beatty Living Places Ltd,26/06/2017,,19.92,Other Contracted Services,"391400 - Works - Construction, Repair & Maintenance"
Solihull MBC,Managed Growth and Communities,Highways & Transport Services,Balfour Beatty Living Places Ltd,26/06/2017,,9.96,Other Contracted Services,"391400 - Works - Construction, Repair & Maintenance"
Solihull MBC,Managed Growth and Communities,Highways & Transport Services,Balfour Beatty Living Places Ltd,26/06/2017,,40.86,Other Contracted Services,"391400 - Works - Construction, Repair & Maintenance"
Solihull MBC,Managed Growth and Communities,Highways & Transport Services,Balfour Beatty Living Places Ltd,26/06/2017,,35.01,Other Contracted Services,"391400 - Works - Construction, Repair & Maintenance"
Solihull MBC,Managed Growth and Communities,Highways & Transport Services,Balfour Beatty Living Places Ltd,26/06/2017,,19.92,Other Contracted Services,"391400 - Works - Construction, Repair & Maintenance"
Solihull MBC,Managed Growth and Communities,Highways & Transport Services,Balfour Beatty Living Places Ltd,26/06/2017,,6.25,Other Contracted Services,"391400 - Works - Construction, Repair & Maintenance"
Solihull MBC,Managed Growth and Communities,Highways & Transport Services,Balfour Beatty Living Places Ltd,26/06/2017,,1.00,Other Contracted Services,"391400 - Works - Construction, Repair & Maintenance"
Solihull MBC,Managed Growth and Communities,Highways & Transport Services,Balfour Beatty Living Places Ltd,26/06/2017,,9.46,Contractors,"391400 - Works - Construction, Repair & Maintenance"
Solihull MBC,Managed Growth and Communities,Highways & Transport Services,Balfour Beatty Living Places Ltd,26/06/2017,,10.96,Other Contracted Services,"391400 - Works - Construction, Repair & Maintenance"
Solihull MBC,Managed Growth and Communities,Highways & Transport Services,Balfour Beatty Living Places Ltd,26/06/2017,,111.60,Other Contracted Services,"391400 - Works - Construction, Repair & Maintenance"
Solihull MBC,Managed Growth and Communities,Highways & Transport Services,Balfour Beatty Living Places Ltd,26/06/2017,,62.03,Other Contracted Services,"391400 - Works - Construction, Repair & Maintenance"
Solihull MBC,Managed Growth and Communities,Highways & Transport Services,Balfour Beatty Living Places Ltd,26/06/2017,,69.05,Other Contracted Services,"391400 - Works - Construction, Repair & Maintenance"
Solihull MBC,Managed Growth and Communities,Highways & Transport Services,Balfour Beatty Living Places Ltd,26/06/2017,,108.04,Other Contracted Services,"391400 - Works - Construction, Repair & Maintenance"
Solihull MBC,Managed Growth and Communities,Highways & Transport Services,Balfour Beatty Living Places Ltd,26/06/2017,,137.20,Other Contracted Services,"391400 - Works - Construction, Repair & Maintenance"
Solihull MBC,Managed Growth and Communities,Highways & Transport Services,Balfour Beatty Living Places Ltd,26/06/2017,,22.39,Other Contracted Services,"391400 - Works - Construction, Repair & Maintenance"
Solihull MBC,Managed Growth and Communities,Highways & Transport Services,Balfour Beatty Living Places Ltd,26/06/2017,,111.60,Other Contracted Services,"391400 - Works - Construction, Repair & Maintenance"
Solihull MBC,Managed Growth and Communities,Highways & Transport Services,Balfour Beatty Living Places Ltd,26/06/2017,,138.10,Other Contracted Services,"391400 - Works - Construction, Repair & Maintenance"
Solihull MBC,Managed Growth and Communities,Highways & Transport Services,Balfour Beatty Living Places Ltd,26/06/2017,,69.05,Other Contracted Services,"391400 - Works - Construction, Repair & Maintenance"
Solihull MBC,Managed Growth and Communities,Highways & Transport Services,Balfour Beatty Living Places Ltd,26/06/2017,,18.83,Other Contracted Services,"391400 - Works - Construction, Repair & Maintenance"
Solihull MBC,Managed Growth and Communities,Highways & Transport Services,Balfour Beatty Living Places Ltd,26/06/2017,,7.70,Other Contracted Services,"391400 - Works - Construction, Repair & Maintenance"
Solihull MBC,Managed Growth and Communities,Highways & Transport Services,Balfour Beatty Living Places Ltd,26/06/2017,,44.63,Other Contracted Services,"391400 - Works - Construction, Repair & Maintenance"
Solihull MBC,Managed Growth and Communities,Highways & Transport Services,Balfour Beatty Living Places Ltd,26/06/2017,,53.87,Other Contracted Services,"391400 - Works - Construction, Repair & Maintenance"
Solihull MBC,Managed Growth and Communities,Highways & Transport Services,Balfour Beatty Living Places Ltd,26/06/2017,,111.60,Other Contracted Services,"391400 - Works - Construction, Repair & Maintenance"
Solihull MBC,Managed Growth and Communities,Highways & Transport Services,Balfour Beatty Living Places Ltd,26/06/2017,,6.07,Other Contracted Services,"391400 - Works - Construction, Repair & Maintenance"
Solihull MBC,Managed Growth and Communities,Highways & Transport Services,Balfour Beatty Living Places Ltd,26/06/2017,,533.88,Other Contracted Services,"391400 - Works - Construction, Repair & Maintenance"
Solihull MBC,Managed Growth and Communities,Highways & Transport Services,Balfour Beatty Living Places Ltd,26/06/2017,,18.83,Contractors,"391400 - Works - Construction, Repair & Maintenance"
Solihull MBC,Managed Growth and Communities,Highways & Transport Services,Balfour Beatty Living Places Ltd,26/06/2017,,37.91,Other Contracted Services,"391400 - Works - Construction, Repair & Maintenance"
Solihull MBC,Managed Growth and Communities,Highways & Transport Services,Balfour Beatty Living Places Ltd,26/06/2017,,1.00,Other Contracted Services,"391400 - Works - Construction, Repair & Maintenance"
Solihull MBC,Managed Growth and Communities,Highways & Transport Services,Balfour Beatty Living Places Ltd,26/06/2017,,97.79,Other Contracted Services,"391400 - Works - Construction, Repair & Maintenance"
Solihull MBC,Managed Growth and Communities,Highways & Transport Services,Balfour Beatty Living Places Ltd,26/06/2017,,868.79,Other Contracted Services,"391400 - Works - Construction, Repair & Maintenance"
Solihull MBC,Managed Growth and Communities,Highways & Transport Services,Balfour Beatty Living Places Ltd,26/06/2017,,136.20,Other Contracted Services,"391400 - Works - Construction, Repair & Maintenance"
Solihull MBC,Managed Growth and Communities,Highways & Transport Services,Balfour Beatty Living Places Ltd,26/06/2017,,1.00,Other Contracted Services,"391400 - Works - Construction, Repair & Maintenance"
Solihull MBC,Managed Growth and Communities,Highways & Transport Services,Balfour Beatty Living Places Ltd,26/06/2017,,10.96,Other Contracted Services,"391400 - Works - Construction, Repair & Maintenance"
Solihull MBC,Managed Growth and Communities,Highways & Transport Services,Balfour Beatty Living Places Ltd,26/06/2017,,139.65,Other Contracted Services,"391400 - Works - Construction, Repair & Maintenance"
Solihull MBC,Managed Growth and Communities,Highways & Transport Services,Balfour Beatty Living Places Ltd,26/06/2017,,23.39,Other Contracted Services,"391400 - Works - Construction, Repair & Maintenance"
Solihull MBC,Managed Growth and Communities,Highways & Transport Services,Balfour Beatty Living Places Ltd,26/06/2017,,4.47,Other Contracted Services,"391400 - Works - Construction, Repair & Maintenance"
Solihull MBC,Managed Growth and Communities,Highways & Transport Services,Balfour Beatty Living Places Ltd,26/06/2017,,18.83,Other Contracted Services,"391400 - Works - Construction, Repair & Maintenance"
Solihull MBC,Managed Growth and Communities,Highways & Transport Services,Balfour Beatty Living Places Ltd,26/06/2017,,18.83,Other Contracted Services,"391400 - Works - Construction, Repair & Maintenance"
Solihull MBC,Managed Growth and Communities,Highways & Transport Services,Balfour Beatty Living Places Ltd,26/06/2017,,7.07,Other Contracted Services,"391400 - Works - Construction, Repair & Maintenance"
Solihull MBC,Managed Growth and Communities,Highways & Transport Services,Balfour Beatty Living Places Ltd,26/06/2017,,1.00,Other Contracted Services,"391400 - Works - Construction, Repair & Maintenance"
Solihull MBC,Managed Growth and Communities,Highways & Transport Services,Balfour Beatty Living Places Ltd,26/06/2017,,70.58,Other Contracted Services,"391400 - Works - Construction, Repair & Maintenance"
Solihull MBC,Managed Growth and Communities,Highways & Transport Services,Balfour Beatty Living Places Ltd,26/06/2017,,10.96,Other Contracted Services,"391400 - Works - Construction, Repair & Maintenance"
Solihull MBC,Managed Growth and Communities,Highways & Transport Services,Balfour Beatty Living Places Ltd,26/06/2017,,10.96,Other Contracted Services,"391400 - Works - Construction, Repair & Maintenance"
Solihull MBC,Managed Growth and Communities,Highways & Transport Services,Balfour Beatty Living Places Ltd,26/06/2017,,4.47,Other Contracted Services,"391400 - Works - Construction, Repair & Maintenance"
Solihull MBC,Managed Growth and Communities,Highways & Transport Services,Balfour Beatty Living Places Ltd,26/06/2017,,24.81,Other Contracted Services,"391400 - Works - Construction, Repair & Maintenance"
Solihull MBC,Managed Growth and Communities,Highways & Transport Services,Balfour Beatty Living Places Ltd,26/06/2017,,44.76,Other Contracted Services,"391400 - Works - Construction, Repair & Maintenance"
Solihull MBC,Managed Growth and Communities,Highways & Transport Services,Balfour Beatty Living Places Ltd,26/06/2017,,48.98,Other Contracted Services,"391400 - Works - Construction, Repair & Maintenance"
Solihull MBC,Managed Growth and Communities,Highways & Transport Services,Balfour Beatty Living Places Ltd,26/06/2017,,114.63,Other Contracted Services,"391400 - Works - Construction, Repair & Maintenance"
Solihull MBC,Managed Growth and Communities,Highways & Transport Services,Balfour Beatty Living Places Ltd,26/06/2017,,69.46,Other Contracted Services,"391400 - Works - Construction, Repair & Maintenance"
Solihull MBC,Managed Growth and Communities,Highways & Transport Services,Balfour Beatty Living Places Ltd,26/06/2017,,35.82,Other Contracted Services,"391400 - Works - Construction, Repair & Maintenance"
Solihull MBC,Managed Growth and Communities,Highways & Transport Services,Balfour Beatty Living Places Ltd,26/06/2017,,113.81,Other Contracted Services,"391400 - Works - Construction, Repair & Maintenance"
Solihull MBC,Managed Growth and Communities,Highways & Transport Services,Balfour Beatty Living Places Ltd,26/06/2017,,128.46,Other Contracted Services,"391400 - Works - Construction, Repair & Maintenance"
Solihull MBC,Managed Growth and Communities,Highways & Transport Services,Balfour Beatty Living Places Ltd,26/06/2017,,22.39,Other Contracted Services,"391400 - Works - Construction, Repair & Maintenance"
Solihull MBC,Managed Growth and Communities,Highways & Transport Services,Balfour Beatty Living Places Ltd,26/06/2017,,468.69,Other Contracted Services,"391400 - Works - Construction, Repair & Maintenance"
Solihull MBC,Managed Growth and Communities,Highways & Transport Services,Balfour Beatty Living Places Ltd,26/06/2017,,22.39,Other Contracted Services,"391400 - Works - Construction, Repair & Maintenance"
Solihull MBC,Managed Growth and Communities,Highways & Transport Services,Balfour Beatty Living Places Ltd,26/06/2017,,9.96,Other Contracted Services,"391400 - Works - Construction, Repair & Maintenance"
Solihull MBC,Managed Growth and Communities,Highways & Transport Services,Balfour Beatty Living Places Ltd,26/06/2017,,328.83,Other Contracted Services,"391400 - Works - Construction, Repair & Maintenance"
Solihull MBC,Managed Growth and Communities,Highways & Transport Services,Balfour Beatty Living Places Ltd,26/06/2017,,19.11,Other Contracted Services,"391400 - Works - Construction, Repair & Maintenance"
Solihull MBC,Managed Growth and Communities,Highways & Transport Services,Balfour Beatty Living Places Ltd,26/06/2017,,69.05,Other Contracted Services,"391400 - Works - Construction, Repair & Maintenance"
Solihull MBC,Managed Growth and Communities,Highways & Transport Services,Balfour Beatty Living Places Ltd,26/06/2017,,66.99,Other Contracted Services,"391400 - Works - Construction, Repair & Maintenance"
Solihull MBC,Managed Growth and Communities,Highways & Transport Services,Balfour Beatty Living Places Ltd,26/06/2017,,10.96,Other Contracted Services,"391400 - Works - Construction, Repair & Maintenance"
Solihull MBC,Managed Growth and Communities,Highways & Transport Services,Balfour Beatty Living Places Ltd,26/06/2017,,10.96,Other Contracted Services,"391400 - Works - Construction, Repair & Maintenance"
Solihull MBC,Managed Growth and Communities,Highways & Transport Services,Balfour Beatty Living Places Ltd,26/06/2017,,19.24,Other Contracted Services,"391400 - Works - Construction, Repair & Maintenance"
Solihull MBC,Managed Growth and Communities,Highways & Transport Services,Balfour Beatty Living Places Ltd,26/06/2017,,100.49,Other Contracted Services,"391400 - Works - Construction, Repair & Maintenance"
Solihull MBC,Managed Growth and Communities,Highways & Transport Services,Balfour Beatty Living Places Ltd,26/06/2017,,145.62,Other Contracted Services,"391400 - Works - Construction, Repair & Maintenance"
Solihull MBC,Managed Growth and Communities,Highways & Transport Services,Balfour Beatty Living Places Ltd,26/06/2017,,12584.73,Contractors,"391400 - Works - Construction, Repair & Maintenance"
Solihull MBC,Managed Growth and Communities,Highways & Transport Services,Balfour Beatty Living Places Ltd,26/06/2017,,54.12,Other Contracted Services,"391400 - Works - Construction, Repair & Maintenance"
Solihull MBC,Managed Growth and Communities,Highways & Transport Services,Balfour Beatty Living Places Ltd,26/06/2017,,111.95,Other Contracted Services,"391400 - Works - Construction, Repair & Maintenance"
Solihull MBC,Managed Growth and Communities,Highways & Transport Services,Balfour Beatty Living Places Ltd,26/06/2017,,97.00,Other Contracted Services,"391400 - Works - Construction, Repair & Maintenance"
Solihull MBC,Managed Growth and Communities,Highways & Transport Services,Balfour Beatty Living Places Ltd,26/06/2017,,77.15,Other Contracted Services,"391400 - Works - Construction, Repair & Maintenance"
Solihull MBC,Managed Growth and Communities,Highways & Transport Services,Balfour Beatty Living Places Ltd,26/06/2017,,77.15,Other Contracted Services,"391400 - Works - Construction, Repair & Maintenance"
Solihull MBC,Managed Growth and Communities,Highways & Transport Services,Balfour Beatty Living Places Ltd,26/06/2017,,44.76,Other Contracted Services,"391400 - Works - Construction, Repair & Maintenance"
Solihull MBC,Managed Growth and Communities,Highways & Transport Services,Balfour Beatty Living Places Ltd,26/06/2017,,69.05,Other Contracted Services,"391400 - Works - Construction, Repair & Maintenance"
Solihull MBC,Managed Growth and Communities,Highways & Transport Services,Balfour Beatty Living Places Ltd,26/06/2017,,182.86,Other Contracted Services,"391400 - Works - Construction, Repair & Maintenance"
Solihull MBC,Managed Growth and Communities,Highways & Transport Services,Balfour Beatty Living Places Ltd,26/06/2017,,106.66,Other Contracted Services,"391400 - Works - Construction, Repair & Maintenance"
Solihull MBC,Managed Growth and Communities,Highways & Transport Services,Balfour Beatty Living Places Ltd,26/06/2017,,22.39,Other Contracted Services,"391400 - Works - Construction, Repair & Maintenance"
Solihull MBC,Managed Growth and Communities,Highways & Transport Services,Balfour Beatty Living Places Ltd,26/06/2017,,113.81,Other Contracted Services,"391400 - Works - Construction, Repair & Maintenance"
Solihull MBC,Managed Growth and Communities,Highways & Transport Services,Balfour Beatty Living Places Ltd,26/06/2017,,35.82,Other Contracted Services,"391400 - Works - Construction, Repair & Maintenance"
Solihull MBC,Managed Growth and Communities,Highways & Transport Services,Balfour Beatty Living Places Ltd,26/06/2017,,22.39,Other Contracted Services,"391400 - Works - Construction, Repair & Maintenance"
Solihull MBC,Managed Growth and Communities,Highways & Transport Services,Balfour Beatty Living Places Ltd,26/06/2017,,143.59,Other Contracted Services,"391400 - Works - Construction, Repair & Maintenance"
Solihull MBC,Managed Growth and Communities,Highways & Transport Services,Balfour Beatty Living Places Ltd,26/06/2017,,85.62,Other Contracted Services,"391400 - Works - Construction, Repair & Maintenance"
Solihull MBC,Managed Growth and Communities,Highways & Transport Services,Balfour Beatty Living Places Ltd,26/06/2017,,29.04,Other Contracted Services,"391400 - Works - Construction, Repair & Maintenance"
Solihull MBC,Managed Growth and Communities,Highways & Transport Services,Balfour Beatty Living Places Ltd,26/06/2017,,98.87,Other Contracted Services,"391400 - Works - Construction, Repair & Maintenance"
Solihull MBC,Managed Growth and Communities,Highways & Transport Services,Balfour Beatty Living Places Ltd,26/06/2017,,69.05,Other Contracted Services,"391400 - Works - Construction, Repair & Maintenance"
Solihull MBC,Managed Growth and Communities,Highways & Transport Services,Balfour Beatty Living Places Ltd,26/06/2017,,99.24,Other Contracted Services,"391400 - Works - Construction, Repair & Maintenance"
Solihull MBC,Managed Growth and Communities,Highways & Transport Services,Balfour Beatty Living Places Ltd,26/06/2017,,63.11,Other Contracted Services,"391400 - Works - Construction, Repair & Maintenance"
Solihull MBC,Managed Growth and Communities,Highways & Transport Services,Balfour Beatty Living Places Ltd,26/06/2017,,111.60,Other Contracted Services,"391400 - Works - Construction, Repair & Maintenance"
Solihull MBC,Managed Growth and Communities,Highways & Transport Services,Balfour Beatty Living Places Ltd,26/06/2017,,33.49,Other Contracted Services,"391400 - Works - Construction, Repair & Maintenance"
Solihull MBC,Managed Growth and Communities,Highways & Transport Services,Balfour Beatty Living Places Ltd,26/06/2017,,15.90,Contractors,"391400 - Works - Construction, Repair & Maintenance"
Solihull MBC,Managed Growth and Communities,Highways & Transport Services,Balfour Beatty Living Places Ltd,26/06/2017,,139.65,Other Contracted Services,"391400 - Works - Construction, Repair & Maintenance"
Solihull MBC,Managed Growth and Communities,Highways & Transport Services,Balfour Beatty Living Places Ltd,26/06/2017,,44.76,Other Contracted Services,"391400 - Works - Construction, Repair & Maintenance"
Solihull MBC,Managed Growth and Communities,Highways & Transport Services,Balfour Beatty Living Places Ltd,26/06/2017,,22.39,Other Contracted Services,"391400 - Works - Construction, Repair & Maintenance"
Solihull MBC,Managed Growth and Communities,Highways & Transport Services,Balfour Beatty Living Places Ltd,26/06/2017,,162.36,Other Contracted Services,"391400 - Works - Construction, Repair & Maintenance"
Solihull MBC,Managed Growth and Communities,Highways & Transport Services,Balfour Beatty Living Places Ltd,26/06/2017,,76.30,Other Contracted Services,"391400 - Works - Construction, Repair & Maintenance"
Solihull MBC,Managed Growth and Communities,Highways & Transport Services,Balfour Beatty Living Places Ltd,26/06/2017,,69.05,Other Contracted Services,"391400 - Works - Construction, Repair & Maintenance"
Solihull MBC,Managed Growth and Communities,Highways & Transport Services,Balfour Beatty Living Places Ltd,26/06/2017,,4.69,Other Contracted Services,"391400 - Works - Construction, Repair & Maintenance"
Solihull MBC,Managed Growth and Communities,Highways & Transport Services,Balfour Beatty Living Places Ltd,26/06/2017,,29.24,Other Contracted Services,"391400 - Works - Construction, Repair & Maintenance"
Solihull MBC,Managed Growth and Communities,Highways & Transport Services,Balfour Beatty Living Places Ltd,26/06/2017,,279.91,Other Contracted Services,"391400 - Works - Construction, Repair & Maintenance"
Solihull MBC,Managed Growth and Communities,Highways & Transport Services,Balfour Beatty Living Places Ltd,26/06/2017,,134.34,Other Contracted Services,"391400 - Works - Construction, Repair & Maintenance"
Solihull MBC,Managed Growth and Communities,Highways & Transport Services,Balfour Beatty Living Places Ltd,26/06/2017,,290.32,Other Contracted Services,"391400 - Works - Construction, Repair & Maintenance"
Solihull MBC,Managed Growth and Communities,Highways & Transport Services,Balfour Beatty Living Places Ltd,26/06/2017,,198.88,Other Contracted Services,"391400 - Works - Construction, Repair & Maintenance"
Solihull MBC,Managed Growth and Communities,Highways & Transport Services,Balfour Beatty Living Places Ltd,26/06/2017,,62.03,Other Contracted Services,"391400 - Works - Construction, Repair & Maintenance"
Solihull MBC,Managed Growth and Communities,Highways & Transport Services,Balfour Beatty Living Places Ltd,26/06/2017,,49.62,Other Contracted Services,"391400 - Works - Construction, Repair & Maintenance"
Solihull MBC,Managed Growth and Communities,Highways & Transport Services,Balfour Beatty Living Places Ltd,26/06/2017,,138.10,Other Contracted Services,"391400 - Works - Construction, Repair & Maintenance"
Solihull MBC,Managed Growth and Communities,Highways & Transport Services,Balfour Beatty Living Places Ltd,26/06/2017,,22.39,Other Contracted Services,"391400 - Works - Construction, Repair & Maintenance"
Solihull MBC,Managed Growth and Communities,Highways & Transport Services,Balfour Beatty Living Places Ltd,26/06/2017,,139.65,Other Contracted Services,"391400 - Works - Construction, Repair & Maintenance"
Solihull MBC,Managed Growth and Communities,Highways & Transport Services,Balfour Beatty Living Places Ltd,26/06/2017,,40.40,Other Contracted Services,"391400 - Works - Construction, Repair & Maintenance"
Solihull MBC,Managed Growth and Communities,Highways & Transport Services,Balfour Beatty Living Places Ltd,26/06/2017,,149.71,Other Contracted Services,"391400 - Works - Construction, Repair & Maintenance"
Solihull MBC,Managed Growth and Communities,Highways & Transport Services,Balfour Beatty Living Places Ltd,26/06/2017,,16.80,Other Contracted Services,"391400 - Works - Construction, Repair & Maintenance"
Solihull MBC,Managed Growth and Communities,Highways & Transport Services,Balfour Beatty Living Places Ltd,26/06/2017,,192.07,Other Contracted Services,"391400 - Works - Construction, Repair & Maintenance"
Solihull MBC,Managed Growth and Communities,Highways & Transport Services,Balfour Beatty Living Places Ltd,26/06/2017,,62.03,Other Contracted Services,"391400 - Works - Construction, Repair & Maintenance"
Solihull MBC,Managed Growth and Communities,Highways & Transport Services,Balfour Beatty Living Places Ltd,26/06/2017,,133.99,Other Contracted Services,"391400 - Works - Construction, Repair & Maintenance"
Solihull MBC,Managed Growth and Communities,Highways & Transport Services,Balfour Beatty Living Places Ltd,26/06/2017,,433.34,Other Contracted Services,"391400 - Works - Construction, Repair & Maintenance"
Solihull MBC,Managed Growth and Communities,Highways & Transport Services,Balfour Beatty Living Places Ltd,26/06/2017,,296.69,Other Contracted Services,"391400 - Works - Construction, Repair & Maintenance"
Solihull MBC,Managed Growth and Communities,Highways & Transport Services,Balfour Beatty Living Places Ltd,26/06/2017,,650.02,Other Contracted Services,"391400 - Works - Construction, Repair & Maintenance"
Solihull MBC,Managed Growth and Communities,Highways & Transport Services,Balfour Beatty Living Places Ltd,26/06/2017,,155.07,Other Contracted Services,"391400 - Works - Construction, Repair & Maintenance"
Solihull MBC,Managed Growth and Communities,Highways & Transport Services,Balfour Beatty Living Places Ltd,26/06/2017,,97.08,Other Contracted Services,"391400 - Works - Construction, Repair & Maintenance"
Solihull MBC,Managed Growth and Communities,Highways & Transport Services,Balfour Beatty Living Places Ltd,26/06/2017,,55.82,Other Contracted Services,"391400 - Works - Construction, Repair & Maintenance"
Solihull MBC,Managed Growth and Communities,Highways & Transport Services,Balfour Beatty Living Places Ltd,26/06/2017,,93.04,Other Contracted Services,"391400 - Works - Construction, Repair & Maintenance"
Solihull MBC,Managed Growth and Communities,Highways & Transport Services,Balfour Beatty Living Places Ltd,26/06/2017,,49.62,Other Contracted Services,"391400 - Works - Construction, Repair & Maintenance"
Solihull MBC,Managed Growth and Communities,Highways & Transport Services,Balfour Beatty Living Places Ltd,26/06/2017,,174.49,Other Contracted Services,"391400 - Works - Construction, Repair & Maintenance"
Solihull MBC,Managed Growth and Communities,Highways & Transport Services,Balfour Beatty Living Places Ltd,26/06/2017,,44.76,Other Contracted Services,"391400 - Works - Construction, Repair & Maintenance"
Solihull MBC,Managed Growth and Communities,Highways & Transport Services,Balfour Beatty Living Places Ltd,26/06/2017,,297.90,Other Contracted Services,"391400 - Works - Construction, Repair & Maintenance"
Solihull MBC,Managed Growth and Communities,Highways & Transport Services,Balfour Beatty Living Places Ltd,26/06/2017,,173.16,Other Contracted Services,"391400 - Works - Construction, Repair & Maintenance"
Solihull MBC,Managed Growth and Communities,Highways & Transport Services,Balfour Beatty Living Places Ltd,26/06/2017,,69.05,Other Contracted Services,"391400 - Works - Construction, Repair & Maintenance"
Solihull MBC,Managed Growth and Communities,Highways & Transport Services,Balfour Beatty Living Places Ltd,26/06/2017,,102.91,Other Contracted Services,"391400 - Works - Construction, Repair & Maintenance"
Solihull MBC,Managed Growth and Communities,Highways & Transport Services,Balfour Beatty Living Places Ltd,26/06/2017,,10.96,Other Contracted Services,"391400 - Works - Construction, Repair & Maintenance"
Solihull MBC,Managed Growth and Communities,Cultural & Related Services,Balfour Beatty Living Places Ltd,26/06/2017,,148.79,Other Contracted Services,"391400 - Works - Construction, Repair & Maintenance"
Solihull MBC,Managed Growth and Communities,Highways & Transport Services,Balfour Beatty Living Places Ltd,26/06/2017,,276.20,Other Contracted Services,"391400 - Works - Construction, Repair & Maintenance"
Solihull MBC,Managed Growth and Communities,Highways & Transport Services,Balfour Beatty Living Places Ltd,26/06/2017,,10.96,Other Contracted Services,"391400 - Works - Construction, Repair & Maintenance"
Solihull MBC,Managed Growth and Communities,Highways & Transport Services,Balfour Beatty Living Places Ltd,26/06/2017,,112.19,Other Contracted Services,"391400 - Works - Construction, Repair & Maintenance"
Solihull MBC,Managed Growth and Communities,Highways & Transport Services,Balfour Beatty Living Places Ltd,26/06/2017,,907.39,Other Contracted Services,"391400 - Works - Construction, Repair & Maintenance"
Solihull MBC,Managed Growth and Communities,Highways & Transport Services,Balfour Beatty Living Places Ltd,26/06/2017,,2761.66,Other Contracted Services,"391400 - Works - Construction, Repair & Maintenance"
Solihull MBC,Managed Growth and Communities,Highways & Transport Services,Balfour Beatty Living Places Ltd,26/06/2017,,69.05,Other Contracted Services,"391400 - Works - Construction, Repair & Maintenance"
Solihull MBC,Managed Growth and Communities,Highways & Transport Services,Balfour Beatty Living Places Ltd,26/06/2017,,232.96,Other Contracted Services,"391400 - Works - Construction, Repair & Maintenance"
Solihull MBC,Managed Growth and Communities,Highways & Transport Services,Balfour Beatty Living Places Ltd,26/06/2017,,44.76,Other Contracted Services,"391400 - Works - Construction, Repair & Maintenance"
Solihull MBC,Managed Growth and Communities,Highways & Transport Services,Balfour Beatty Living Places Ltd,26/06/2017,,114.63,Other Contracted Services,"391400 - Works - Construction, Repair & Maintenance"
Solihull MBC,Managed Growth and Communities,Highways & Transport Services,Balfour Beatty Living Places Ltd,26/06/2017,,178.27,Other Contracted Services,"391400 - Works - Construction, Repair & Maintenance"
Solihull MBC,Managed Growth and Communities,Highways & Transport Services,Balfour Beatty Living Places Ltd,26/06/2017,,312.23,Other Contracted Services,"391400 - Works - Construction, Repair & Maintenance"
Solihull MBC,Managed Growth and Communities,Highways & Transport Services,Balfour Beatty Living Places Ltd,26/06/2017,,9.96,Other Contracted Services,"391400 - Works - Construction, Repair & Maintenance"
Solihull MBC,Managed Growth and Communities,Highways & Transport Services,Balfour Beatty Living Places Ltd,26/06/2017,,5.49,Other Contracted Services,"391400 - Works - Construction, Repair & Maintenance"
Solihull MBC,Managed Growth and Communities,Highways & Transport Services,Balfour Beatty Living Places Ltd,26/06/2017,,38.21,Other Contracted Services,"391400 - Works - Construction, Repair & Maintenance"
Solihull MBC,Managed Growth and Communities,Highways & Transport Services,Balfour Beatty Living Places Ltd,26/06/2017,,560.28,Other Contracted Services,"391400 - Works - Construction, Repair & Maintenance"
Solihull MBC,Managed Growth and Communities,Highways & Transport Services,Balfour Beatty Living Places Ltd,26/06/2017,,325.32,Other Contracted Services,"391400 - Works - Construction, Repair & Maintenance"
Solihull MBC,Managed Growth and Communities,Highways & Transport Services,Balfour Beatty Living Places Ltd,26/06/2017,,71.89,Other Contracted Services,"391400 - Works - Construction, Repair & Maintenance"
Solihull MBC,Managed Growth and Communities,Highways & Transport Services,Balfour Beatty Living Places Ltd,26/06/2017,,46.56,Other Contracted Services,"391400 - Works - Construction, Repair & Maintenance"
Solihull MBC,Managed Growth and Communities,Highways & Transport Services,Balfour Beatty Living Places Ltd,26/06/2017,,143.78,Other Contracted Services,"391400 - Works - Construction, Repair & Maintenance"
Solihull MBC,Managed Growth and Communities,Highways & Transport Services,Balfour Beatty Living Places Ltd,26/06/2017,,71.89,Other Contracted Services,"391400 - Works - Construction, Repair & Maintenance"
Solihull MBC,Managed Growth and Communities,Highways & Transport Services,Balfour Beatty Living Places Ltd,26/06/2017,,138.40,Other Contracted Services,"391400 - Works - Construction, Repair & Maintenance"
Solihull MBC,Managed Growth and Communities,Highways & Transport Services,Balfour Beatty Living Places Ltd,26/06/2017,,71.89,Other Contracted Services,"391400 - Works - Construction, Repair & Maintenance"
Solihull MBC,Managed Growth and Communities,Highways & Transport Services,Balfour Beatty Living Places Ltd,26/06/2017,,23.30,Other Contracted Services,"391400 - Works - Construction, Repair & Maintenance"
Solihull MBC,Managed Growth and Communities,Highways & Transport Services,Balfour Beatty Living Places Ltd,26/06/2017,,23.30,Other Contracted Services,"391400 - Works - Construction, Repair & Maintenance"
Solihull MBC,Managed Growth and Communities,Highways & Transport Services,Balfour Beatty Living Places Ltd,26/06/2017,,171.53,Other Contracted Services,"391400 - Works - Construction, Repair & Maintenance"
Solihull MBC,Managed Growth and Communities,Highways & Transport Services,Balfour Beatty Living Places Ltd,26/06/2017,,119.60,Other Contracted Services,"391400 - Works - Construction, Repair & Maintenance"
Solihull MBC,Managed Growth and Communities,Highways & Transport Services,Balfour Beatty Living Places Ltd,26/06/2017,,8.59,Other Contracted Services,"391400 - Works - Construction, Repair & Maintenance"
Solihull MBC,Managed Growth and Communities,Highways & Transport Services,Balfour Beatty Living Places Ltd,26/06/2017,,50.94,Other Contracted Services,"391400 - Works - Construction, Repair & Maintenance"
Solihull MBC,Managed Growth and Communities,Highways & Transport Services,Balfour Beatty Living Places Ltd,26/06/2017,,60.55,Other Contracted Services,"391400 - Works - Construction, Repair & Maintenance"
Solihull MBC,Managed Growth and Communities,Highways & Transport Services,Balfour Beatty Living Places Ltd,26/06/2017,,71.89,Other Contracted Services,"391400 - Works - Construction, Repair & Maintenance"
Solihull MBC,Managed Growth and Communities,Highways & Transport Services,Balfour Beatty Living Places Ltd,26/06/2017,,40.56,Other Contracted Services,"391400 - Works - Construction, Repair & Maintenance"
Solihull MBC,Managed Growth and Communities,Highways & Transport Services,Balfour Beatty Living Places Ltd,26/06/2017,,56.26,Other Contracted Services,"391400 - Works - Construction, Repair & Maintenance"
Solihull MBC,Managed Growth and Communities,Highways & Transport Services,Balfour Beatty Living Places Ltd,26/06/2017,,116.50,Other Contracted Services,"391400 - Works - Construction, Repair & Maintenance"
Solihull MBC,Managed Growth and Communities,Highways & Transport Services,Balfour Beatty Living Places Ltd,26/06/2017,,60.84,Other Contracted Services,"391400 - Works - Construction, Repair & Maintenance"
Solihull MBC,Managed Growth and Communities,Highways & Transport Services,Balfour Beatty Living Places Ltd,26/06/2017,,287.56,Other Contracted Services,"391400 - Works - Construction, Repair & Maintenance"
Solihull MBC,Managed Growth and Communities,Highways & Transport Services,Balfour Beatty Living Places Ltd,26/06/2017,,75.72,Other Contracted Services,"391400 - Works - Construction, Repair & Maintenance"
Solihull MBC,Managed Growth and Communities,Highways & Transport Services,Balfour Beatty Living Places Ltd,26/06/2017,,23.30,Other Contracted Services,"391400 - Works - Construction, Repair & Maintenance"
Solihull MBC,Managed Growth and Communities,Highways & Transport Services,Balfour Beatty Living Places Ltd,26/06/2017,,34.42,Other Contracted Services,"391400 - Works - Construction, Repair & Maintenance"
Solihull MBC,Managed Growth and Communities,Highways & Transport Services,Balfour Beatty Living Places Ltd,26/06/2017,,46.60,Other Contracted Services,"391400 - Works - Construction, Repair & Maintenance"
Solihull MBC,Managed Growth and Communities,Highways & Transport Services,Balfour Beatty Living Places Ltd,26/06/2017,,70.98,Other Contracted Services,"391400 - Works - Construction, Repair & Maintenance"
Solihull MBC,Managed Growth and Communities,Highways & Transport Services,Balfour Beatty Living Places Ltd,26/06/2017,,23.30,Other Contracted Services,"391400 - Works - Construction, Repair & Maintenance"
Solihull MBC,Managed Growth and Communities,Highways & Transport Services,Balfour Beatty Living Places Ltd,26/06/2017,,50.94,Other Contracted Services,"391400 - Works - Construction, Repair & Maintenance"
Solihull MBC,Managed Growth and Communities,Highways & Transport Services,Balfour Beatty Living Places Ltd,26/06/2017,,22.48,Other Contracted Services,"391400 - Works - Construction, Repair & Maintenance"
Solihull MBC,Managed Growth and Communities,Highways & Transport Services,Balfour Beatty Living Places Ltd,26/06/2017,,69.90,Other Contracted Services,"391400 - Works - Construction, Repair & Maintenance"
Solihull MBC,Managed Growth and Communities,Highways & Transport Services,Balfour Beatty Living Places Ltd,26/06/2017,,47.84,Other Contracted Services,"391400 - Works - Construction, Repair & Maintenance"
Solihull MBC,Managed Growth and Communities,Highways & Transport Services,Balfour Beatty Living Places Ltd,26/06/2017,,48.26,Other Contracted Services,"391400 - Works - Construction, Repair & Maintenance"
Solihull MBC,Managed Growth and Communities,Highways & Transport Services,Balfour Beatty Living Places Ltd,26/06/2017,,71.89,Other Contracted Services,"391400 - Works - Construction, Repair & Maintenance"
Solihull MBC,Managed Growth and Communities,Highways & Transport Services,Balfour Beatty Living Places Ltd,26/06/2017,,71.89,Other Contracted Services,"391400 - Works - Construction, Repair & Maintenance"
Solihull MBC,Managed Growth and Communities,Highways & Transport Services,Balfour Beatty Living Places Ltd,26/06/2017,,147.57,Other Contracted Services,"391400 - Works - Construction, Repair & Maintenance"
Solihull MBC,Managed Growth and Communities,Highways & Transport Services,Balfour Beatty Living Places Ltd,26/06/2017,,67.51,Other Contracted Services,"391400 - Works - Construction, Repair & Maintenance"
Solihull MBC,Managed Growth and Communities,Highways & Transport Services,Balfour Beatty Living Places Ltd,26/06/2017,,46.60,Other Contracted Services,"391400 - Works - Construction, Repair & Maintenance"
Solihull MBC,Managed Growth and Communities,Highways & Transport Services,Balfour Beatty Living Places Ltd,26/06/2017,,93.20,Other Contracted Services,"391400 - Works - Construction, Repair & Maintenance"
Solihull MBC,Managed Growth and Communities,Highways & Transport Services,Balfour Beatty Living Places Ltd,26/06/2017,,69.90,Other Contracted Services,"391400 - Works - Construction, Repair & Maintenance"
Solihull MBC,Managed Growth and Communities,Highways & Transport Services,Balfour Beatty Living Places Ltd,26/06/2017,,23.30,Other Contracted Services,"391400 - Works - Construction, Repair & Maintenance"
Solihull MBC,Managed Growth and Communities,Highways & Transport Services,Balfour Beatty Living Places Ltd,26/06/2017,,118.49,Other Contracted Services,"391400 - Works - Construction, Repair & Maintenance"
Solihull MBC,Managed Growth and Communities,Highways & Transport Services,Balfour Beatty Living Places Ltd,26/06/2017,,258.29,Other Contracted Services,"391400 - Works - Construction, Repair & Maintenance"
Solihull MBC,Managed Growth and Communities,Highways & Transport Services,Balfour Beatty Living Places Ltd,26/06/2017,,12.29,Other Contracted Services,"391400 - Works - Construction, Repair & Maintenance"
Solihull MBC,Managed Growth and Communities,Highways & Transport Services,Balfour Beatty Living Places Ltd,26/06/2017,,54.24,Other Contracted Services,"391400 - Works - Construction, Repair & Maintenance"
Solihull MBC,Managed Growth and Communities,Highways & Transport Services,Balfour Beatty Living Places Ltd,26/06/2017,,23.30,Other Contracted Services,"391400 - Works - Construction, Repair & Maintenance"
Solihull MBC,Managed Growth and Communities,Highways & Transport Services,Balfour Beatty Living Places Ltd,26/06/2017,,15.06,Other Contracted Services,"391400 - Works - Construction, Repair & Maintenance"
Solihull MBC,Managed Growth and Communities,Highways & Transport Services,Balfour Beatty Living Places Ltd,26/06/2017,,56.29,Other Contracted Services,"391400 - Works - Construction, Repair & Maintenance"
Solihull MBC,Managed Growth and Communities,Highways & Transport Services,Balfour Beatty Living Places Ltd,26/06/2017,,121.10,Other Contracted Services,"391400 - Works - Construction, Repair & Maintenance"
Solihull MBC,Managed Growth and Communities,Highways & Transport Services,Balfour Beatty Living Places Ltd,26/06/2017,,71.89,Other Contracted Services,"391400 - Works - Construction, Repair & Maintenance"
Solihull MBC,Managed Growth and Communities,Highways & Transport Services,Balfour Beatty Living Places Ltd,26/06/2017,,71.89,Other Contracted Services,"391400 - Works - Construction, Repair & Maintenance"
Solihull MBC,Managed Growth and Communities,Highways & Transport Services,Balfour Beatty Living Places Ltd,26/06/2017,,34.42,Other Contracted Services,"391400 - Works - Construction, Repair & Maintenance"
Solihull MBC,Managed Growth and Communities,Highways & Transport Services,Balfour Beatty Living Places Ltd,26/06/2017,,35.62,Other Contracted Services,"391400 - Works - Construction, Repair & Maintenance"
Solihull MBC,Managed Growth and Communities,Highways & Transport Services,Balfour Beatty Living Places Ltd,26/06/2017,,143.78,Other Contracted Services,"391400 - Works - Construction, Repair & Maintenance"
Solihull MBC,Managed Growth and Communities,Highways & Transport Services,Balfour Beatty Living Places Ltd,26/06/2017,,93.20,Other Contracted Services,"391400 - Works - Construction, Repair & Maintenance"
Solihull MBC,Managed Growth and Communities,Highways & Transport Services,Balfour Beatty Living Places Ltd,26/06/2017,,77.85,Other Contracted Services,"391400 - Works - Construction, Repair & Maintenance"
Solihull MBC,Managed Growth and Communities,Highways & Transport Services,Balfour Beatty Living Places Ltd,26/06/2017,,56.26,Other Contracted Services,"391400 - Works - Construction, Repair & Maintenance"
Solihull MBC,Managed Growth and Communities,Highways & Transport Services,Balfour Beatty Living Places Ltd,26/06/2017,,128.55,Other Contracted Services,"391400 - Works - Construction, Repair & Maintenance"
Solihull MBC,Managed Growth and Communities,Highways & Transport Services,Balfour Beatty Living Places Ltd,26/06/2017,,56.26,Other Contracted Services,"391400 - Works - Construction, Repair & Maintenance"
Solihull MBC,Managed Growth and Communities,Highways & Transport Services,Balfour Beatty Living Places Ltd,26/06/2017,,84.39,Other Contracted Services,"391400 - Works - Construction, Repair & Maintenance"
Solihull MBC,Managed Growth and Communities,Highways & Transport Services,Balfour Beatty Living Places Ltd,26/06/2017,,112.52,Other Contracted Services,"391400 - Works - Construction, Repair & Maintenance"
Solihull MBC,Managed Growth and Communities,Highways & Transport Services,Balfour Beatty Living Places Ltd,26/06/2017,,42.20,Other Contracted Services,"391400 - Works - Construction, Repair & Maintenance"
Solihull MBC,Managed Growth and Communities,Highways & Transport Services,Balfour Beatty Living Places Ltd,26/06/2017,,470.35,Other Contracted Services,"391400 - Works - Construction, Repair & Maintenance"
Solihull MBC,Managed Growth and Communities,Highways & Transport Services,Balfour Beatty Living Places Ltd,26/06/2017,,71.89,Other Contracted Services,"391400 - Works - Construction, Repair & Maintenance"
Solihull MBC,Managed Growth and Communities,Highways & Transport Services,Balfour Beatty Living Places Ltd,26/06/2017,,71.89,Other Contracted Services,"391400 - Works - Construction, Repair & Maintenance"
Solihull MBC,Managed Growth and Communities,Highways & Transport Services,Balfour Beatty Living Places Ltd,26/06/2017,,154.80,Other Contracted Services,"391400 - Works - Construction, Repair & Maintenance"
Solihull MBC,Managed Growth and Communities,Highways & Transport Services,Balfour Beatty Living Places Ltd,26/06/2017,,401.11,Other Contracted Services,"391400 - Works - Construction, Repair & Maintenance"
Solihull MBC,Managed Growth and Communities,Highways & Transport Services,Balfour Beatty Living Places Ltd,26/06/2017,,159.09,Other Contracted Services,"391400 - Works - Construction, Repair & Maintenance"
Solihull MBC,Managed Growth and Communities,Highways & Transport Services,Balfour Beatty Living Places Ltd,26/06/2017,,198.95,Other Contracted Services,"391400 - Works - Construction, Repair & Maintenance"
Solihull MBC,Managed Growth and Communities,Highways & Transport Services,Balfour Beatty Living Places Ltd,26/06/2017,,42.20,Other Contracted Services,"391400 - Works - Construction, Repair & Maintenance"
Solihull MBC,Managed Growth and Communities,Highways & Transport Services,Balfour Beatty Living Places Ltd,26/06/2017,,20.03,Other Contracted Services,"391400 - Works - Construction, Repair & Maintenance"
Solihull MBC,Managed Growth and Communities,Highways & Transport Services,Balfour Beatty Living Places Ltd,26/06/2017,,162.35,Other Contracted Services,"391400 - Works - Construction, Repair & Maintenance"
Solihull MBC,Managed Growth and Communities,Highways & Transport Services,Balfour Beatty Living Places Ltd,26/06/2017,,64.46,Other Contracted Services,"391400 - Works - Construction, Repair & Maintenance"
Solihull MBC,Managed Growth and Communities,Highways & Transport Services,Balfour Beatty Living Places Ltd,26/06/2017,,67.07,Other Contracted Services,"391400 - Works - Construction, Repair & Maintenance"
Solihull MBC,Managed Growth and Communities,Highways & Transport Services,Balfour Beatty Living Places Ltd,26/06/2017,,1.00,Other Contracted Services,"391400 - Works - Construction, Repair & Maintenance"
Solihull MBC,Managed Growth and Communities,Highways & Transport Services,Balfour Beatty Living Places Ltd,26/06/2017,,23.30,Other Contracted Services,"391400 - Works - Construction, Repair & Maintenance"
Solihull MBC,Managed Growth and Communities,Highways & Transport Services,Balfour Beatty Living Places Ltd,26/06/2017,,46.60,Other Contracted Services,"391400 - Works - Construction, Repair & Maintenance"
Solihull MBC,Managed Growth and Communities,Highways & Transport Services,Balfour Beatty Living Places Ltd,26/06/2017,,9.96,Other Contracted Services,"391400 - Works - Construction, Repair & Maintenance"
Solihull MBC,Managed Growth and Communities,Highways & Transport Services,Balfour Beatty Living Places Ltd,26/06/2017,,71.89,Other Contracted Services,"391400 - Works - Construction, Repair & Maintenance"
Solihull MBC,Managed Growth and Communities,Highways & Transport Services,Balfour Beatty Living Places Ltd,26/06/2017,,171.53,Other Contracted Services,"391400 - Works - Construction, Repair & Maintenance"
Solihull MBC,Managed Growth and Communities,Highways & Transport Services,Balfour Beatty Living Places Ltd,26/06/2017,,46.60,Other Contracted Services,"391400 - Works - Construction, Repair & Maintenance"
Solihull MBC,Managed Growth and Communities,Highways & Transport Services,Balfour Beatty Living Places Ltd,26/06/2017,,688.40,Other Contracted Services,"391400 - Works - Construction, Repair & Maintenance"
Solihull MBC,Managed Growth and Communities,Highways & Transport Services,Balfour Beatty Living Places Ltd,26/06/2017,,71.89,Other Contracted Services,"391400 - Works - Construction, Repair & Maintenance"
Solihull MBC,Managed Growth and Communities,Highways & Transport Services,Balfour Beatty Living Places Ltd,26/06/2017,,23.30,Other Contracted Services,"391400 - Works - Construction, Repair & Maintenance"
Solihull MBC,Managed Growth and Communities,Highways & Transport Services,Balfour Beatty Living Places Ltd,26/06/2017,,9.96,Other Contracted Services,"391400 - Works - Construction, Repair & Maintenance"
Solihull MBC,Managed Growth and Communities,Highways & Transport Services,Balfour Beatty Living Places Ltd,26/06/2017,,5.27,Other Contracted Services,"391400 - Works - Construction, Repair & Maintenance"
Solihull MBC,Managed Growth and Communities,Highways & Transport Services,Balfour Beatty Living Places Ltd,26/06/2017,,6.82,Other Contracted Services,"391400 - Works - Construction, Repair & Maintenance"
Solihull MBC,Managed Growth and Communities,Highways & Transport Services,Balfour Beatty Living Places Ltd,26/06/2017,,9.96,Other Contracted Services,"391400 - Works - Construction, Repair & Maintenance"
Solihull MBC,Managed Growth and Communities,Highways & Transport Services,Balfour Beatty Living Places Ltd,26/06/2017,,17.07,Other Contracted Services,"391400 - Works - Construction, Repair & Maintenance"
Solihull MBC,Managed Growth and Communities,Highways & Transport Services,Balfour Beatty Living Places Ltd,26/06/2017,,23.92,Other Contracted Services,"391400 - Works - Construction, Repair & Maintenance"
Solihull MBC,Managed Growth and Communities,Highways & Transport Services,Balfour Beatty Living Places Ltd,26/06/2017,,71.89,Other Contracted Services,"391400 - Works - Construction, Repair & Maintenance"
Solihull MBC,Managed Growth and Communities,Highways & Transport Services,Balfour Beatty Living Places Ltd,26/06/2017,,293.30,Other Contracted Services,"391400 - Works - Construction, Repair & Maintenance"
Solihull MBC,Managed Growth and Communities,Highways & Transport Services,Balfour Beatty Living Places Ltd,26/06/2017,,9.96,Other Contracted Services,"391400 - Works - Construction, Repair & Maintenance"
Solihull MBC,Managed Growth and Communities,Highways & Transport Services,Balfour Beatty Living Places Ltd,26/06/2017,,9.96,Other Contracted Services,"391400 - Works - Construction, Repair & Maintenance"
Solihull MBC,Managed Growth and Communities,Highways & Transport Services,Balfour Beatty Living Places Ltd,26/06/2017,,9.96,Other Contracted Services,"391400 - Works - Construction, Repair & Maintenance"
Solihull MBC,Managed Growth and Communities,Highways & Transport Services,Balfour Beatty Living Places Ltd,26/06/2017,,19.93,Other Contracted Services,"391400 - Works - Construction, Repair & Maintenance"
Solihull MBC,Managed Growth and Communities,Highways & Transport Services,Balfour Beatty Living Places Ltd,26/06/2017,,29.89,Other Contracted Services,"391400 - Works - Construction, Repair & Maintenance"
Solihull MBC,Managed Growth and Communities,Highways & Transport Services,Balfour Beatty Living Places Ltd,26/06/2017,,153.06,Other Contracted Services,"391400 - Works - Construction, Repair & Maintenance"
Solihull MBC,Managed Growth and Communities,Highways & Transport Services,Balfour Beatty Living Places Ltd,26/06/2017,,29.89,Other Contracted Services,"391400 - Works - Construction, Repair & Maintenance"
Solihull MBC,Managed Growth and Communities,Highways & Transport Services,Balfour Beatty Living Places Ltd,26/06/2017,,9.96,Other Contracted Services,"391400 - Works - Construction, Repair & Maintenance"
Solihull MBC,Managed Growth and Communities,Highways & Transport Services,Balfour Beatty Living Places Ltd,26/06/2017,,46.60,Other Contracted Services,"391400 - Works - Construction, Repair & Maintenance"
Solihull MBC,Managed Growth and Communities,Highways & Transport Services,Balfour Beatty Living Places Ltd,26/06/2017,,97.89,Other Contracted Services,"391400 - Works - Construction, Repair & Maintenance"
Solihull MBC,Managed Growth and Communities,Highways & Transport Services,Balfour Beatty Living Places Ltd,26/06/2017,,31.95,Other Contracted Services,"391400 - Works - Construction, Repair & Maintenance"
Solihull MBC,Managed Growth and Communities,Highways & Transport Services,Balfour Beatty Living Places Ltd,26/06/2017,,132.07,Other Contracted Services,"391400 - Works - Construction, Repair & Maintenance"
Solihull MBC,Managed Growth and Communities,Highways & Transport Services,Balfour Beatty Living Places Ltd,26/06/2017,,69.90,Other Contracted Services,"391400 - Works - Construction, Repair & Maintenance"
Solihull MBC,Managed Growth and Communities,Highways & Transport Services,Balfour Beatty Living Places Ltd,26/06/2017,,9.96,Other Contracted Services,"391400 - Works - Construction, Repair & Maintenance"
Solihull MBC,Managed Growth and Communities,Highways & Transport Services,Balfour Beatty Living Places Ltd,26/06/2017,,143.78,Other Contracted Services,"391400 - Works - Construction, Repair & Maintenance"
Solihull MBC,Managed Growth and Communities,Highways & Transport Services,Balfour Beatty Living Places Ltd,26/06/2017,,413.04,Other Contracted Services,"391400 - Works - Construction, Repair & Maintenance"
Solihull MBC,Managed Growth and Communities,Highways & Transport Services,Balfour Beatty Living Places Ltd,26/06/2017,,46.60,Other Contracted Services,"391400 - Works - Construction, Repair & Maintenance"
Solihull MBC,Managed Growth and Communities,Highways & Transport Services,Balfour Beatty Living Places Ltd,26/06/2017,,23.30,Other Contracted Services,"391400 - Works - Construction, Repair & Maintenance"
Solihull MBC,Managed Growth and Communities,Highways & Transport Services,Balfour Beatty Living Places Ltd,26/06/2017,,143.78,Other Contracted Services,"391400 - Works - Construction, Repair & Maintenance"
Solihull MBC,Managed Growth and Communities,Highways & Transport Services,Balfour Beatty Living Places Ltd,26/06/2017,,9.96,Other Contracted Services,"391400 - Works - Construction, Repair & Maintenance"
Solihull MBC,Managed Growth and Communities,Highways & Transport Services,Balfour Beatty Living Places Ltd,26/06/2017,,59.78,Other Contracted Services,"391400 - Works - Construction, Repair & Maintenance"
Solihull MBC,Managed Growth and Communities,Highways & Transport Services,Balfour Beatty Living Places Ltd,26/06/2017,,19.93,Other Contracted Services,"391400 - Works - Construction, Repair & Maintenance"
Solihull MBC,Managed Growth and Communities,Highways & Transport Services,Balfour Beatty Living Places Ltd,26/06/2017,,23.30,Other Contracted Services,"391400 - Works - Construction, Repair & Maintenance"
Solihull MBC,Managed Growth and Communities,Highways & Transport Services,Balfour Beatty Living Places Ltd,26/06/2017,,78.25,Other Contracted Services,"391400 - Works - Construction, Repair & Maintenance"
Solihull MBC,Managed Growth and Communities,Highways & Transport Services,Balfour Beatty Living Places Ltd,26/06/2017,,23.30,Other Contracted Services,"391400 - Works - Construction, Repair & Maintenance"
Solihull MBC,Managed Growth and Communities,Highways & Transport Services,Balfour Beatty Living Places Ltd,26/06/2017,,60.55,Other Contracted Services,"391400 - Works - Construction, Repair & Maintenance"
Solihull MBC,Managed Growth and Communities,Highways & Transport Services,Balfour Beatty Living Places Ltd,26/06/2017,,46.60,Other Contracted Services,"391400 - Works - Construction, Repair & Maintenance"
Solihull MBC,Managed Growth and Communities,Highways & Transport Services,Balfour Beatty Living Places Ltd,26/06/2017,,23.30,Other Contracted Services,"391400 - Works - Construction, Repair & Maintenance"
Solihull MBC,Managed Growth and Communities,Highways & Transport Services,Balfour Beatty Living Places Ltd,26/06/2017,,163.60,Other Contracted Services,"391400 - Works - Construction, Repair & Maintenance"
Solihull MBC,Managed Growth and Communities,Highways & Transport Services,Balfour Beatty Living Places Ltd,26/06/2017,,726.60,Other Contracted Services,"391400 - Works - Construction, Repair & Maintenance"
Solihull MBC,Managed Growth and Communities,Highways & Transport Services,Balfour Beatty Living Places Ltd,26/06/2017,,3.00,Other Contracted Services,"391400 - Works - Construction, Repair & Maintenance"
Solihull MBC,Managed Growth and Communities,Highways & Transport Services,Balfour Beatty Living Places Ltd,26/06/2017,,56.26,Other Contracted Services,"391400 - Works - Construction, Repair & Maintenance"
Solihull MBC,Managed Growth and Communities,Highways & Transport Services,Balfour Beatty Living Places Ltd,26/06/2017,,793.48,Other Contracted Services,"391400 - Works - Construction, Repair & Maintenance"
Solihull MBC,Managed Growth and Communities,Highways & Transport Services,Balfour Beatty Living Places Ltd,26/06/2017,,518.13,Other Contracted Services,"391400 - Works - Construction, Repair & Maintenance"
Solihull MBC,Managed Growth and Communities,Highways & Transport Services,Balfour Beatty Living Places Ltd,26/06/2017,,951.57,Other Contracted Services,"391400 - Works - Construction, Repair & Maintenance"
Solihull MBC,Managed Growth and Communities,Highways & Transport Services,Balfour Beatty Living Places Ltd,26/06/2017,,573.18,Other Contracted Services,"391400 - Works - Construction, Repair & Maintenance"
Solihull MBC,Managed Growth and Communities,Highways & Transport Services,Balfour Beatty Living Places Ltd,26/06/2017,,256.93,Other Contracted Services,"391400 - Works - Construction, Repair & Maintenance"
Solihull MBC,Managed Growth and Communities,Highways & Transport Services,Balfour Beatty Living Places Ltd,26/06/2017,,466.56,Other Contracted Services,"391400 - Works - Construction, Repair & Maintenance"
Solihull MBC,Managed Growth and Communities,Highways & Transport Services,Balfour Beatty Living Places Ltd,26/06/2017,,56.29,Other Contracted Services,"391400 - Works - Construction, Repair & Maintenance"
Solihull MBC,Managed Growth and Communities,Highways & Transport Services,Balfour Beatty Living Places Ltd,26/06/2017,,132.32,Other Contracted Services,"391400 - Works - Construction, Repair & Maintenance"
Solihull MBC,Managed Growth and Communities,Highways & Transport Services,Balfour Beatty Living Places Ltd,26/06/2017,,46.60,Other Contracted Services,"391400 - Works - Construction, Repair & Maintenance"
Solihull MBC,Managed Growth and Communities,Highways & Transport Services,Balfour Beatty Living Places Ltd,26/06/2017,,8.16,Other Contracted Services,"391400 - Works - Construction, Repair & Maintenance"
Solihull MBC,Managed Growth and Communities,Highways & Transport Services,Balfour Beatty Living Places Ltd,26/06/2017,,489.16,Other Contracted Services,"391400 - Works - Construction, Repair & Maintenance"
Solihull MBC,Managed Growth and Communities,Highways & Transport Services,Balfour Beatty Living Places Ltd,26/06/2017,,722.03,Other Contracted Services,"391400 - Works - Construction, Repair & Maintenance"
Solihull MBC,Managed Growth and Communities,Highways & Transport Services,Balfour Beatty Living Places Ltd,26/06/2017,,791.19,Other Contracted Services,"391400 - Works - Construction, Repair & Maintenance"
Solihull MBC,Managed Growth and Communities,Highways & Transport Services,Balfour Beatty Living Places Ltd,26/06/2017,,426.42,Other Contracted Services,"391400 - Works - Construction, Repair & Maintenance"
Solihull MBC,Managed Growth and Communities,Highways & Transport Services,Balfour Beatty Living Places Ltd,26/06/2017,,788.60,Other Contracted Services,"391400 - Works - Construction, Repair & Maintenance"
Solihull MBC,Managed Growth and Communities,Highways & Transport Services,Balfour Beatty Living Places Ltd,26/06/2017,,9.56,Other Contracted Services,"391400 - Works - Construction, Repair & Maintenance"
Solihull MBC,Managed Growth and Communities,Highways & Transport Services,Balfour Beatty Living Places Ltd,26/06/2017,,470.29,Other Contracted Services,"391400 - Works - Construction, Repair & Maintenance"
Solihull MBC,Managed Growth and Communities,Highways & Transport Services,Balfour Beatty Living Places Ltd,26/06/2017,,393.78,Other Contracted Services,"391400 - Works - Construction, Repair & Maintenance"
Solihull MBC,Managed Growth and Communities,Highways & Transport Services,Balfour Beatty Living Places Ltd,26/06/2017,,470.95,Other Contracted Services,"391400 - Works - Construction, Repair & Maintenance"
Solihull MBC,Managed Growth and Communities,Highways & Transport Services,Balfour Beatty Living Places Ltd,26/06/2017,,103.20,Other Contracted Services,"391400 - Works - Construction, Repair & Maintenance"
Solihull MBC,Managed Growth and Communities,Highways & Transport Services,Balfour Beatty Living Places Ltd,26/06/2017,,505.71,Other Contracted Services,"391400 - Works - Construction, Repair & Maintenance"
Solihull MBC,Managed Growth and Communities,Highways & Transport Services,Balfour Beatty Living Places Ltd,26/06/2017,,511.99,Other Contracted Services,"391400 - Works - Construction, Repair & Maintenance"
Solihull MBC,Managed Growth and Communities,Highways & Transport Services,Balfour Beatty Living Places Ltd,26/06/2017,,23.30,Other Contracted Services,"391400 - Works - Construction, Repair & Maintenance"
Solihull MBC,Managed Growth and Communities,Highways & Transport Services,Balfour Beatty Living Places Ltd,26/06/2017,,803.10,Other Contracted Services,"391400 - Works - Construction, Repair & Maintenance"
Solihull MBC,Managed Growth and Communities,Highways & Transport Services,Balfour Beatty Living Places Ltd,26/06/2017,,854.88,Other Contracted Services,"391400 - Works - Construction, Repair & Maintenance"
Solihull MBC,Managed Growth and Communities,Highways & Transport Services,Balfour Beatty Living Places Ltd,26/06/2017,,69.90,Other Contracted Services,"391400 - Works - Construction, Repair & Maintenance"
Solihull MBC,Managed Growth and Communities,Highways & Transport Services,Balfour Beatty Living Places Ltd,26/06/2017,,1287.69,Other Contracted Services,"391400 - Works - Construction, Repair & Maintenance"
Solihull MBC,Managed Growth and Communities,Highways & Transport Services,Balfour Beatty Living Places Ltd,26/06/2017,,1205.28,Other Contracted Services,"391400 - Works - Construction, Repair & Maintenance"
Solihull MBC,Managed Growth and Communities,Highways & Transport Services,Balfour Beatty Living Places Ltd,26/06/2017,,63.26,Other Contracted Services,"391400 - Works - Construction, Repair & Maintenance"
Solihull MBC,Managed Growth and Communities,Highways & Transport Services,Balfour Beatty Living Places Ltd,26/06/2017,,46.60,Other Contracted Services,"391400 - Works - Construction, Repair & Maintenance"
Solihull MBC,Managed Growth and Communities,Highways & Transport Services,Balfour Beatty Living Places Ltd,26/06/2017,,93.20,Other Contracted Services,"391400 - Works - Construction, Repair & Maintenance"
Solihull MBC,Managed Growth and Communities,Highways & Transport Services,Balfour Beatty Living Places Ltd,26/06/2017,,23.30,Other Contracted Services,"391400 - Works - Construction, Repair & Maintenance"
Solihull MBC,Managed Growth and Communities,Highways & Transport Services,Balfour Beatty Living Places Ltd,26/06/2017,,287.56,Other Contracted Services,"391400 - Works - Construction, Repair & Maintenance"
Solihull MBC,Managed Growth and Communities,Highways & Transport Services,Balfour Beatty Living Places Ltd,26/06/2017,,93.20,Other Contracted Services,"391400 - Works - Construction, Repair & Maintenance"
Solihull MBC,Managed Growth and Communities,Highways & Transport Services,Balfour Beatty Living Places Ltd,26/06/2017,,24.58,Other Contracted Services,"391400 - Works - Construction, Repair & Maintenance"
Solihull MBC,Managed Growth and Communities,Highways & Transport Services,Balfour Beatty Living Places Ltd,26/06/2017,,143.78,Other Contracted Services,"391400 - Works - Construction, Repair & Maintenance"
Solihull MBC,Managed Growth and Communities,Highways & Transport Services,Balfour Beatty Living Places Ltd,26/06/2017,,12.29,Other Contracted Services,"391400 - Works - Construction, Repair & Maintenance"
Solihull MBC,Managed Growth and Communities,Highways & Transport Services,Balfour Beatty Living Places Ltd,26/06/2017,,24.58,Other Contracted Services,"391400 - Works - Construction, Repair & Maintenance"
Solihull MBC,Managed Growth and Communities,Highways & Transport Services,Balfour Beatty Living Places Ltd,26/06/2017,,817.44,Other Contracted Services,"391400 - Works - Construction, Repair & Maintenance"
Solihull MBC,Managed Growth and Communities,Highways & Transport Services,Balfour Beatty Living Places Ltd,26/06/2017,,118.49,Other Contracted Services,"391400 - Works - Construction, Repair & Maintenance"
Solihull MBC,Managed Growth and Communities,Highways & Transport Services,Balfour Beatty Living Places Ltd,26/06/2017,,46.60,Other Contracted Services,"391400 - Works - Construction, Repair & Maintenance"
Solihull MBC,Managed Growth and Communities,Highways & Transport Services,Balfour Beatty Living Places Ltd,26/06/2017,,23.30,Other Contracted Services,"391400 - Works - Construction, Repair & Maintenance"
Solihull MBC,Managed Growth and Communities,Highways & Transport Services,Balfour Beatty Living Places Ltd,26/06/2017,,71.89,Other Contracted Services,"391400 - Works - Construction, Repair & Maintenance"
Solihull MBC,Managed Growth and Communities,Highways & Transport Services,Balfour Beatty Living Places Ltd,26/06/2017,,46.60,Other Contracted Services,"391400 - Works - Construction, Repair & Maintenance"
Solihull MBC,Managed Growth and Communities,Highways & Transport Services,Balfour Beatty Living Places Ltd,26/06/2017,,287.56,Other Contracted Services,"391400 - Works - Construction, Repair & Maintenance"
Solihull MBC,Managed Growth and Communities,Highways & Transport Services,Balfour Beatty Living Places Ltd,26/06/2017,,51.60,Other Contracted Services,"391400 - Works - Construction, Repair & Maintenance"
Solihull MBC,Managed Growth and Communities,Highways & Transport Services,Balfour Beatty Living Places Ltd,26/06/2017,,23.30,Other Contracted Services,"391400 - Works - Construction, Repair & Maintenance"
Solihull MBC,Managed Growth and Communities,Highways & Transport Services,Balfour Beatty Living Places Ltd,26/06/2017,,93.20,Other Contracted Services,"391400 - Works - Construction, Repair & Maintenance"
Solihull MBC,Managed Growth and Communities,Highways & Transport Services,Balfour Beatty Living Places Ltd,26/06/2017,,56.29,Other Contracted Services,"391400 - Works - Construction, Repair & Maintenance"
Solihull MBC,Managed Growth and Communities,Highways & Transport Services,Balfour Beatty Living Places Ltd,26/06/2017,,71.89,Other Contracted Services,"391400 - Works - Construction, Repair & Maintenance"
Solihull MBC,Managed Growth and Communities,Highways & Transport Services,Balfour Beatty Living Places Ltd,26/06/2017,,181.65,Other Contracted Services,"391400 - Works - Construction, Repair & Maintenance"
Solihull MBC,Managed Growth and Communities,Highways & Transport Services,Balfour Beatty Living Places Ltd,26/06/2017,,102.25,Other Contracted Services,"391400 - Works - Construction, Repair & Maintenance"
Solihull MBC,Managed Growth and Communities,Highways & Transport Services,Balfour Beatty Living Places Ltd,26/06/2017,,40.90,Other Contracted Services,"391400 - Works - Construction, Repair & Maintenance"
Solihull MBC,Managed Growth and Communities,Highways & Transport Services,Balfour Beatty Living Places Ltd,26/06/2017,,178.57,Other Contracted Services,"391400 - Works - Construction, Repair & Maintenance"
Solihull MBC,Managed Growth and Communities,Highways & Transport Services,Balfour Beatty Living Places Ltd,26/06/2017,,76.30,Other Contracted Services,"391400 - Works - Construction, Repair & Maintenance"
Solihull MBC,Managed Growth and Communities,Highways & Transport Services,Balfour Beatty Living Places Ltd,26/06/2017,,56.29,Other Contracted Services,"391400 - Works - Construction, Repair & Maintenance"
Solihull MBC,Managed Growth and Communities,Highways & Transport Services,Balfour Beatty Living Places Ltd,26/06/2017,,71.89,Other Contracted Services,"391400 - Works - Construction, Repair & Maintenance"
Solihull MBC,Managed Growth and Communities,Highways & Transport Services,Balfour Beatty Living Places Ltd,26/06/2017,,143.78,Other Contracted Services,"391400 - Works - Construction, Repair & Maintenance"
Solihull MBC,Managed Growth and Communities,Highways & Transport Services,Balfour Beatty Living Places Ltd,26/06/2017,,91.79,Other Contracted Services,"391400 - Works - Construction, Repair & Maintenance"
Solihull MBC,Managed Growth and Communities,Highways & Transport Services,Balfour Beatty Living Places Ltd,26/06/2017,,181.86,Other Contracted Services,"391400 - Works - Construction, Repair & Maintenance"
Solihull MBC,Managed Growth and Communities,Highways & Transport Services,Balfour Beatty Living Places Ltd,26/06/2017,,40.80,Other Contracted Services,"391400 - Works - Construction, Repair & Maintenance"
Solihull MBC,Managed Growth and Communities,Highways & Transport Services,Balfour Beatty Living Places Ltd,26/06/2017,,118.49,Other Contracted Services,"391400 - Works - Construction, Repair & Maintenance"
Solihull MBC,Managed Growth and Communities,Highways & Transport Services,Balfour Beatty Living Places Ltd,26/06/2017,,312.43,Other Contracted Services,"391400 - Works - Construction, Repair & Maintenance"
Solihull MBC,Managed Growth and Communities,Highways & Transport Services,Balfour Beatty Living Places Ltd,26/06/2017,,204.87,Other Contracted Services,"391400 - Works - Construction, Repair & Maintenance"
Solihull MBC,Managed Growth and Communities,Highways & Transport Services,Balfour Beatty Living Places Ltd,26/06/2017,,71.89,Other Contracted Services,"391400 - Works - Construction, Repair & Maintenance"
Solihull MBC,Managed Growth and Communities,Highways & Transport Services,Balfour Beatty Living Places Ltd,26/06/2017,,143.78,Other Contracted Services,"391400 - Works - Construction, Repair & Maintenance"
Solihull MBC,Managed Growth and Communities,Highways & Transport Services,Balfour Beatty Living Places Ltd,26/06/2017,,71.89,Other Contracted Services,"391400 - Works - Construction, Repair & Maintenance"
Solihull MBC,Managed Growth and Communities,Highways & Transport Services,Balfour Beatty Living Places Ltd,26/06/2017,,143.78,Other Contracted Services,"391400 - Works - Construction, Repair & Maintenance"
Solihull MBC,Managed Growth and Communities,Highways & Transport Services,Balfour Beatty Living Places Ltd,26/06/2017,,143.78,Other Contracted Services,"391400 - Works - Construction, Repair & Maintenance"
Solihull MBC,Managed Growth and Communities,Highways & Transport Services,Balfour Beatty Living Places Ltd,26/06/2017,,25.83,Other Contracted Services,"391400 - Works - Construction, Repair & Maintenance"
Solihull MBC,Managed Growth and Communities,Highways & Transport Services,Balfour Beatty Living Places Ltd,26/06/2017,,143.78,Other Contracted Services,"391400 - Works - Construction, Repair & Maintenance"
Solihull MBC,Managed Growth and Communities,Highways & Transport Services,Balfour Beatty Living Places Ltd,26/06/2017,,46.60,Other Contracted Services,"391400 - Works - Construction, Repair & Maintenance"
Solihull MBC,Managed Growth and Communities,Highways & Transport Services,Balfour Beatty Living Places Ltd,26/06/2017,,95.19,Other Contracted Services,"391400 - Works - Construction, Repair & Maintenance"
Solihull MBC,Managed Growth and Communities,Highways & Transport Services,Balfour Beatty Living Places Ltd,26/06/2017,,143.78,Other Contracted Services,"391400 - Works - Construction, Repair & Maintenance"
Solihull MBC,Managed Growth and Communities,Highways & Transport Services,Balfour Beatty Living Places Ltd,26/06/2017,,71.89,Other Contracted Services,"391400 - Works - Construction, Repair & Maintenance"
Solihull MBC,Managed Growth and Communities,Highways & Transport Services,Balfour Beatty Living Places Ltd,26/06/2017,,23.30,Other Contracted Services,"391400 - Works - Construction, Repair & Maintenance"
Solihull MBC,Managed Growth and Communities,Highways & Transport Services,Balfour Beatty Living Places Ltd,26/06/2017,,143.78,Other Contracted Services,"391400 - Works - Construction, Repair & Maintenance"
Solihull MBC,Managed Growth and Communities,Highways & Transport Services,Balfour Beatty Living Places Ltd,26/06/2017,,71.89,Other Contracted Services,"391400 - Works - Construction, Repair & Maintenance"
Solihull MBC,Managed Growth and Communities,Highways & Transport Services,Balfour Beatty Living Places Ltd,26/06/2017,,23.30,Other Contracted Services,"391400 - Works - Construction, Repair & Maintenance"
Solihull MBC,Managed Growth and Communities,Highways & Transport Services,Balfour Beatty Living Places Ltd,26/06/2017,,118.49,Other Contracted Services,"391400 - Works - Construction, Repair & Maintenance"
Solihull MBC,Managed Growth and Communities,Highways & Transport Services,Balfour Beatty Living Places Ltd,26/06/2017,,56.29,Other Contracted Services,"391400 - Works - Construction, Repair & Maintenance"
Solihull MBC,Managed Growth and Communities,Highways & Transport Services,Balfour Beatty Living Places Ltd,26/06/2017,,46.60,Other Contracted Services,"391400 - Works - Construction, Repair & Maintenance"
Solihull MBC,Managed Growth and Communities,Highways & Transport Services,Balfour Beatty Living Places Ltd,26/06/2017,,46.60,Other Contracted Services,"391400 - Works - Construction, Repair & Maintenance"
Solihull MBC,Managed Growth and Communities,Highways & Transport Services,Balfour Beatty Living Places Ltd,26/06/2017,,50.94,Other Contracted Services,"391400 - Works - Construction, Repair & Maintenance"
Solihull MBC,Managed Growth and Communities,Highways & Transport Services,Balfour Beatty Living Places Ltd,26/06/2017,,46.60,Other Contracted Services,"391400 - Works - Construction, Repair & Maintenance"
Solihull MBC,Managed Growth and Communities,Highways & Transport Services,Balfour Beatty Living Places Ltd,26/06/2017,,15422.64,Other Contracted Services,"391400 - Works - Construction, Repair & Maintenance"
Solihull MBC,Managed Growth and Communities,Highways & Transport Services,Balfour Beatty Living Places Ltd,26/06/2017,,2041.32,Other Contracted Services,"391400 - Works - Construction, Repair & Maintenance"
Solihull MBC,Managed Growth and Communities,Highways & Transport Services,Balfour Beatty Living Places Ltd,26/06/2017,,44880.12,Other Contracted Services,"391400 - Works - Construction, Repair & Maintenance"
Solihull MBC,Managed Growth and Communities,Highways & Transport Services,Balfour Beatty Living Places Ltd,26/06/2017,,137265.10,Other Contracted Services,"391400 - Works - Construction, Repair & Maintenance"
Solihull MBC,Managed Growth and Communities,Highways & Transport Services,Balfour Beatty Living Places Ltd,26/06/2017,,31.30,Other Contracted Services,"391400 - Works - Construction, Repair & Maintenance"
Solihull MBC,Managed Growth and Communities,Highways & Transport Services,Balfour Beatty Living Places Ltd,26/06/2017,,23.30,Other Contracted Services,"391400 - Works - Construction, Repair & Maintenance"
Solihull MBC,Managed Growth and Communities,Highways & Transport Services,Balfour Beatty Living Places Ltd,26/06/2017,,34.99,Contractors,"391400 - Works - Construction, Repair & Maintenance"
Solihull MBC,Managed Growth and Communities,Highways & Transport Services,Balfour Beatty Living Places Ltd,26/06/2017,,258.29,Other Contracted Services,"391400 - Works - Construction, Repair & Maintenance"
Solihull MBC,Managed Growth and Communities,Highways & Transport Services,Balfour Beatty Living Places Ltd,26/06/2017,,71.89,Other Contracted Services,"391400 - Works - Construction, Repair & Maintenance"
Solihull MBC,Managed Growth and Communities,Highways & Transport Services,Balfour Beatty Living Places Ltd,26/06/2017,,68.84,Other Contracted Services,"391400 - Works - Construction, Repair & Maintenance"
Solihull MBC,Managed Growth and Communities,Highways & Transport Services,Balfour Beatty Living Places Ltd,26/06/2017,,34.44,Other Contracted Services,"391400 - Works - Construction, Repair & Maintenance"
Solihull MBC,Managed Growth and Communities,Highways & Transport Services,Balfour Beatty Living Places Ltd,26/06/2017,,34.42,Other Contracted Services,"391400 - Works - Construction, Repair & Maintenance"
Solihull MBC,Managed Growth and Communities,Highways & Transport Services,Balfour Beatty Living Places Ltd,26/06/2017,,206.52,Other Contracted Services,"391400 - Works - Construction, Repair & Maintenance"
Solihull MBC,Managed Growth and Communities,Highways & Transport Services,Balfour Beatty Living Places Ltd,26/06/2017,,206.52,Other Contracted Services,"391400 - Works - Construction, Repair & Maintenance"
Solihull MBC,Managed Growth and Communities,Highways & Transport Services,Balfour Beatty Living Places Ltd,26/06/2017,,34.42,Other Contracted Services,"391400 - Works - Construction, Repair & Maintenance"
Solihull MBC,Managed Growth and Communities,Highways & Transport Services,Balfour Beatty Living Places Ltd,26/06/2017,,44.36,Other Contracted Services,"391400 - Works - Construction, Repair & Maintenance"
Solihull MBC,Managed Growth and Communities,Highways & Transport Services,Balfour Beatty Living Places Ltd,26/06/2017,,68.84,Other Contracted Services,"391400 - Works - Construction, Repair & Maintenance"
Solihull MBC,Managed Growth and Communities,Highways & Transport Services,Balfour Beatty Living Places Ltd,26/06/2017,,47.84,Other Contracted Services,"391400 - Works - Construction, Repair & Maintenance"
Solihull MBC,Managed Growth and Communities,Highways & Transport Services,Balfour Beatty Living Places Ltd,26/06/2017,,71.89,Other Contracted Services,"391400 - Works - Construction, Repair & Maintenance"
Solihull MBC,Managed Growth and Communities,Highways & Transport Services,Balfour Beatty Living Places Ltd,26/06/2017,,24.13,Other Contracted Services,"391400 - Works - Construction, Repair & Maintenance"
Solihull MBC,Managed Growth and Communities,Highways & Transport Services,Balfour Beatty Living Places Ltd,26/06/2017,,47.84,Other Contracted Services,"391400 - Works - Construction, Repair & Maintenance"
Solihull MBC,Managed Growth and Communities,Highways & Transport Services,Balfour Beatty Living Places Ltd,26/06/2017,,34.42,Other Contracted Services,"391400 - Works - Construction, Repair & Maintenance"
Solihull MBC,Managed Growth and Communities,Highways & Transport Services,Balfour Beatty Living Places Ltd,26/06/2017,,69.90,Other Contracted Services,"391400 - Works - Construction, Repair & Maintenance"
Solihull MBC,Managed Growth and Communities,Highways & Transport Services,Balfour Beatty Living Places Ltd,26/06/2017,,46.60,Other Contracted Services,"391400 - Works - Construction, Repair & Maintenance"
Solihull MBC,Managed Growth and Communities,Highways & Transport Services,Balfour Beatty Living Places Ltd,26/06/2017,,46.60,Other Contracted Services,"391400 - Works - Construction, Repair & Maintenance"
Solihull MBC,Managed Growth and Communities,Highways & Transport Services,Balfour Beatty Living Places Ltd,26/06/2017,,9.18,Other Contracted Services,"391400 - Works - Construction, Repair & Maintenance"
Solihull MBC,Managed Growth and Communities,Highways & Transport Services,Balfour Beatty Living Places Ltd,26/06/2017,,34.42,Other Contracted Services,"391400 - Works - Construction, Repair & Maintenance"
Solihull MBC,Managed Growth and Communities,Highways & Transport Services,Balfour Beatty Living Places Ltd,26/06/2017,,312.00,Other Contracted Services,"391400 - Works - Construction, Repair & Maintenance"
Solihull MBC,Managed Growth and Communities,Highways & Transport Services,Balfour Beatty Living Places Ltd,26/06/2017,,71.89,Other Contracted Services,"391400 - Works - Construction, Repair & Maintenance"
Solihull MBC,Managed Growth and Communities,Highways & Transport Services,Balfour Beatty Living Places Ltd,26/06/2017,,56.29,Other Contracted Services,"391400 - Works - Construction, Repair & Maintenance"
Solihull MBC,Managed Growth and Communities,Highways & Transport Services,Balfour Beatty Living Places Ltd,26/06/2017,,118.49,Other Contracted Services,"391400 - Works - Construction, Repair & Maintenance"
Solihull MBC,Managed Growth and Communities,Highways & Transport Services,Balfour Beatty Living Places Ltd,26/06/2017,,112.58,Other Contracted Services,"391400 - Works - Construction, Repair & Maintenance"
Solihull MBC,Managed Growth and Communities,Highways & Transport Services,Balfour Beatty Living Places Ltd,26/06/2017,,71.89,Other Contracted Services,"391400 - Works - Construction, Repair & Maintenance"
Solihull MBC,Managed Growth and Communities,Highways & Transport Services,Balfour Beatty Living Places Ltd,26/06/2017,,23.30,Other Contracted Services,"391400 - Works - Construction, Repair & Maintenance"
Solihull MBC,Managed Growth and Communities,Highways & Transport Services,Balfour Beatty Living Places Ltd,26/06/2017,,93.20,Other Contracted Services,"391400 - Works - Construction, Repair & Maintenance"
Solihull MBC,Managed Growth and Communities,Highways & Transport Services,Balfour Beatty Living Places Ltd,26/06/2017,,56.29,Other Contracted Services,"391400 - Works - Construction, Repair & Maintenance"
Solihull MBC,Managed Growth and Communities,Highways & Transport Services,Balfour Beatty Living Places Ltd,26/06/2017,,56.29,Other Contracted Services,"391400 - Works - Construction, Repair & Maintenance"
Solihull MBC,Managed Growth and Communities,Highways & Transport Services,Balfour Beatty Living Places Ltd,26/06/2017,,112.58,Other Contracted Services,"391400 - Works - Construction, Repair & Maintenance"
Solihull MBC,Managed Growth and Communities,Highways & Transport Services,Balfour Beatty Living Places Ltd,26/06/2017,,56.29,Other Contracted Services,"391400 - Works - Construction, Repair & Maintenance"
Solihull MBC,Managed Growth and Communities,Highways & Transport Services,Balfour Beatty Living Places Ltd,26/06/2017,,143.78,Other Contracted Services,"391400 - Works - Construction, Repair & Maintenance"
Solihull MBC,Managed Growth and Communities,Highways & Transport Services,Balfour Beatty Living Places Ltd,26/06/2017,,116.50,Other Contracted Services,"391400 - Works - Construction, Repair & Maintenance"
Solihull MBC,Managed Growth and Communities,Highways & Transport Services,Balfour Beatty Living Places Ltd,26/06/2017,,23.30,Other Contracted Services,"391400 - Works - Construction, Repair & Maintenance"
Solihull MBC,Managed Growth and Communities,Highways & Transport Services,Balfour Beatty Living Places Ltd,26/06/2017,,56.29,Other Contracted Services,"391400 - Works - Construction, Repair & Maintenance"
Solihull MBC,Managed Growth and Communities,Highways & Transport Services,Balfour Beatty Living Places Ltd,26/06/2017,,93.20,Other Contracted Services,"391400 - Works - Construction, Repair & Maintenance"
Solihull MBC,Managed Growth and Communities,Highways & Transport Services,Balfour Beatty Living Places Ltd,26/06/2017,,17.64,Other Contracted Services,"391400 - Works - Construction, Repair & Maintenance"
Solihull MBC,Managed Growth and Communities,Highways & Transport Services,Balfour Beatty Living Places Ltd,26/06/2017,,206.83,Other Contracted Services,"391400 - Works - Construction, Repair & Maintenance"
